{"text_format":"1","workbook":"xlsx","n_sheets":18,"sheets":["Deckblatt (S.1)","Infos Händler (S.2)","Infos Verarbeiter (S.2)","DuraPatina (Lager - S.3)","DuraPatina (Kom T1 - S.4)","DuraPatina (Kom T2 - S.5)","DuraAkzent (S.6)","DuraNatur (S.7)","Rombofix (S.8)","EcoGrau (S.9)","CapeCod (S.10)","CapeCod-Lagerprogramm (S.11)","Zubehör (S.12)","Endblatt (S.13)","Übersetzung","Änd. nächste Preisliste","MargenVersionen","Qualitätskriterien"],"not_rendered":{"charts":0,"images":98,"macros":1,"external_links":1,"defined_names":26,"comments":0,"pivot_tables":0},"unopened":[],"bounds":{"document_bytes":16777216,"sheet_cells":100000,"rows_first":2000,"rows_last":500,"rows_between":2000,"halvings":0,"cell_chars":16384,"cell_head_chars":4096},"cells_cut":0,"cells_raw":0,"read":"whole","date_system":"1900"}

{"sheet":"Deckblatt (S.1)","index":0,"n_rows":44,"n_cols":11,"rows_kept":44,"cut":false,"hidden":false,"merged":[]}
[]
[]
[]
[]
[]
[]
[]
[]
[]
[]
[]
[]
[]
[]
[]
[]
[]
[]
[]
[]
[]
[]
[]
[]
[]
[]
[]
[]
[]
[]
[]
[]
[]
[]
[]
[]
[]
[]
[]
[]
[]
[]
[]
[null,null,null,null,null,null,null,null,null,null," "]

{"sheet":"Infos Händler (S.2)","index":1,"n_rows":47,"n_cols":12,"rows_kept":47,"cut":false,"hidden":false,"merged":[[1,2,3,4],[6,0,6,6],[20,0,20,6],[38,0,38,6],[23,0,23,6],[26,0,26,6],[30,0,30,6],[33,0,33,6],[36,0,36,6],[27,0,27,6],[22,0,22,6]]}
[null,null,null,null,null,null,null,null,null,"a",null,"d"]
[null,null,{"$f":"IF($J$1=\"a\",(IF($L$1=\"D\",VLOOKUP(48,Übersetzung!$A$2:$D$100,2),IF($L$1=\"F\",VLOOKUP(48,Übersetzung!$A$2:$D$100,3),VLOOKUP(48,Übersetzung!$A$2:$D$100,4)))),(IF($L$1=\"D\",VLOOKUP(125,Übersetzung!$A$2:$D$150,2),IF($L$1=\"F\",VLOOKUP(125,Übersetzung!$A$2:$D$150,3),VLOOKUP(125,Übersetzung!$A$2:$D$150,4)))))","v":"Händlerpreisliste 2018"}]
[]
[]
[]
[]
[{"$f":"IF($L$1=\"D\",VLOOKUP(153,Übersetzung!$A$2:$D$300,2),IF($L$1=\"F\",VLOOKUP(153,Übersetzung!$A$2:$D$300,3),VLOOKUP(153,Übersetzung!$A$2:$D$300,4)))","v":"INHALT"}]
[]
[]
[]
[]
[]
["DuraPatina","3","DuraAkzent",6,"DuraNatur",7,"Rombofix         8"]
[]
[]
[]
[]
[]
[{"$f":"IF($L$1=\"D\",VLOOKUP(169,Übersetzung!$A$2:$D$300,2),IF($L$1=\"F\",VLOOKUP(169,Übersetzung!$A$2:$D$300,3),VLOOKUP(169,Übersetzung!$A$2:$D$300,4)))","v":"EcoGrau"},9,"CapeCod","10",{"$f":"IF($L$1=\"D\",VLOOKUP(170,Übersetzung!$A$2:$D$300,2),IF($L$1=\"F\",VLOOKUP(170,Übersetzung!$A$2:$D$300,3),VLOOKUP(170,Übersetzung!$A$2:$D$300,4)))","v":"Zubehör"},"12"]
[]
[{"$f":"IF($L$1=\"D\",VLOOKUP(154,Übersetzung!$A$2:$D$300,2),IF($L$1=\"F\",VLOOKUP(154,Übersetzung!$A$2:$D$300,3),VLOOKUP(154,Übersetzung!$A$2:$D$300,4)))","v":"INFORMATIONEN"}]
[]
[{"$f":"IF($L$1=\"D\",VLOOKUP(160,Übersetzung!$A$2:$D$300,2),IF($L$1=\"F\",VLOOKUP(160,Übersetzung!$A$2:$D$300,3),VLOOKUP(160,Übersetzung!$A$2:$D$300,4)))","v":"Preise:"}]
[{"$f":"IF($L$1=\"D\",VLOOKUP(156,Übersetzung!$A$2:$D$300,2),IF($L$1=\"F\",VLOOKUP(156,Übersetzung!$A$2:$D$300,3),VLOOKUP(156,Übersetzung!$A$2:$D$300,4)))","v":"Alle Preise in dieser Preisliste sind empfohlene VK-Preise bei Verkauf an den Verarbeiter. Sie verstehen sich zuzüglich der gesetzlichen MwSt.! Als Händler gewähren wir Ihnen auf diese Preise (außer Transportkosten) folgende Rabatte:\n- Profile, Unterkonstruktion, Rhombofix und Zuschläge: 15%. \n- Beistreichfarbe, Schrauben und Alu-Profile: 25%. "}]
[]
[{"$f":"IF($L$1=\"D\",VLOOKUP(161,Übersetzung!$A$2:$D$300,2),IF($L$1=\"F\",VLOOKUP(161,Übersetzung!$A$2:$D$300,3),VLOOKUP(161,Übersetzung!$A$2:$D$300,4)))","v":"Transportkosten: "}]
[{"$f":"IF($L$1=\"D\",VLOOKUP(157,Übersetzung!$A$2:$D$300,2),IF($L$1=\"F\",VLOOKUP(157,Übersetzung!$A$2:$D$300,3),VLOOKUP(157,Übersetzung!$A$2:$D$300,4)))","v":"Pauschal 175,- € \nAb einem netto Warenwert von 1.800,- €: Lieferung frei Haus!"}]
[{"$f":"IF($L$1=\"D\",VLOOKUP(167,Übersetzung!$A$2:$D$300,2),IF($L$1=\"F\",VLOOKUP(167,Übersetzung!$A$2:$D$300,3),VLOOKUP(167,Übersetzung!$A$2:$D$300,4)))","v":"Stapler zum Abladen muss vorhanden sein! Wir beliefern keine Baustellen!"}]
[]
[{"$f":"IF($L$1=\"D\",VLOOKUP(162,Übersetzung!$A$2:$D$300,2),IF($L$1=\"F\",VLOOKUP(162,Übersetzung!$A$2:$D$300,3),VLOOKUP(162,Übersetzung!$A$2:$D$300,4)))","v":"Paketversand:"}]
[{"$f":"IF($L$1=\"D\",VLOOKUP(158,Übersetzung!$A$2:$D$300,2),IF($L$1=\"F\",VLOOKUP(158,Übersetzung!$A$2:$D$300,3),VLOOKUP(158,Übersetzung!$A$2:$D$300,4)))","v":"Zubehör (Beistreichfarbe, Schrauben, usw.) bis 19 kg\n- BELGIEN: 10,- €\n- LUXEMBURG, NIEDERLANDE & FRANKREICH: 15,- €\nLiefrezeit: 2 bis 3 Arbeitstage!"}]
[]
[{"$f":"IF($L$1=\"D\",VLOOKUP(163,Übersetzung!$A$2:$D$300,2),IF($L$1=\"F\",VLOOKUP(163,Übersetzung!$A$2:$D$300,3),VLOOKUP(163,Übersetzung!$A$2:$D$300,4)))","v":"Lieferzeiten: "}]
[{"$f":"IF($L$1=\"D\",VLOOKUP(159,Übersetzung!$A$2:$D$300,2),IF($L$1=\"F\",VLOOKUP(159,Übersetzung!$A$2:$D$300,3),VLOOKUP(159,Übersetzung!$A$2:$D$300,4)))","v":"Siehe die jeweiligen Preislisten der verschiedenen Produktgruppen! Achtung: Auch Lagerware kann je nach Auftragslage kurzzeitig vergriffen sein! Einen genauen Liefertermin teilen wir Ihnen gerne auf Anfrage mit!"}]
[]
[{"$f":"IF($L$1=\"D\",VLOOKUP(165,Übersetzung!$A$2:$D$300,2),IF($L$1=\"F\",VLOOKUP(165,Übersetzung!$A$2:$D$300,3),VLOOKUP(165,Übersetzung!$A$2:$D$300,4)))","v":"Farbtöne:"}]
[{"$f":"IF($L$1=\"D\",VLOOKUP(166,Übersetzung!$A$2:$D$300,2),IF($L$1=\"F\",VLOOKUP(166,Übersetzung!$A$2:$D$300,3),VLOOKUP(166,Übersetzung!$A$2:$D$300,4)))","v":"Bitte achten Sie darauf, immer die komplett benötigte Menge Ihres Projektes auf einmal zu bestellen! Holz ist ein natürlicher und lebendiger Rohstoff. Unterschiede in der Struktur sind naturgegeben. Bei späteren Nachlieferungen kann es deshalb zu Farbunterschieden kommen! Wir möchten darauf hinweisen, dass diese keinen Reklamationsgrund darstellen!\n\nAufgrund einer neuen EU-Verordnung wurde das für die Behandlung verwendete Öl leicht modifiziert. Leichte Farbtonunterschiede zu alten Variante (vor 09/2015) sind möglich. Bitte bei Nachbestellungen zu älteren Lieferungen bitte immer unsere Auftragsbestätigungs-Nr angeben. Wir können immer noch in der alten Variante produzieren lassen."}]
[]
[{"$f":"IF($L$1=\"D\",VLOOKUP(155,Übersetzung!$A$2:$D$300,2),IF($L$1=\"F\",VLOOKUP(155,Übersetzung!$A$2:$D$300,3),VLOOKUP(155,Übersetzung!$A$2:$D$300,4)))","v":"KONTAKT"}]
[]
["W&R-TRADE PGmbH"]
["Morsheck 7a",null,null,null,"Fax.: +32 (0)80/42 94 19"]
["B - 4760 Büllingen",null,null,null,"info@wr-trade.eu"]
["Tel.: +32 (0)80/42 94 18",null,null,null,"www.wr-trade.eu"]
[]
[]
[{"$f":"IF($L$1=\"D\",VLOOKUP(107,Übersetzung!$A$2:$D$149,2),IF($L$1=\"F\",VLOOKUP(107,Übersetzung!$A$2:$D$149,3),VLOOKUP(107,Übersetzung!$A$2:$D$149,4)))","v":"Gültig ab 1. März 2018 !"},null,null,{"$f":"IF($L$1=\"D\",VLOOKUP(152,Übersetzung!$A$2:$D$300,2),IF($L$1=\"F\",VLOOKUP(152,Übersetzung!$A$2:$D$300,3),VLOOKUP(152,Übersetzung!$A$2:$D$300,4)))","v":"Seite: "},{"$f":"_xlfn.SHEET(D73) & \"/\" & MargenVersionen!K6","v":"2/13"},null,{"$f":"IF($L$1=\"D\",VLOOKUP(185,Übersetzung!$A$2:$D$300,2),IF($L$1=\"F\",VLOOKUP(185,Übersetzung!$A$2:$D$300,3),VLOOKUP(185,Übersetzung!$A$2:$D$300,4)))","v":"v01"}]

{"sheet":"Infos Verarbeiter (S.2)","index":2,"n_rows":52,"n_cols":12,"rows_kept":52,"cut":false,"hidden":false,"merged":[[1,2,3,4],[37,0,37,6],[40,0,40,6],[42,0,42,6],[7,0,7,6],[25,0,25,6],[28,0,28,6],[31,0,31,6],[34,0,34,6]]}
[null,null,null,null,null,null,null,null,null,"b",null,"n"]
[null,null,{"$f":"IF($J$1=\"a\",(IF($L$1=\"D\",VLOOKUP(48,Übersetzung!$A$2:$D$100,2),IF($L$1=\"F\",VLOOKUP(48,Übersetzung!$A$2:$D$100,3),VLOOKUP(48,Übersetzung!$A$2:$D$100,4)))),(IF($L$1=\"D\",VLOOKUP(125,Übersetzung!$A$2:$D$150,2),IF($L$1=\"F\",VLOOKUP(125,Übersetzung!$A$2:$D$150,3),VLOOKUP(125,Übersetzung!$A$2:$D$150,4)))))","v":"Prijslijst aannemers 2018"}]
[]
[]
[]
[]
[]
[{"$f":"IF($L$1=\"D\",VLOOKUP(153,Übersetzung!$A$2:$D$300,2),IF($L$1=\"F\",VLOOKUP(153,Übersetzung!$A$2:$D$300,3),VLOOKUP(153,Übersetzung!$A$2:$D$300,4)))","v":"INHOUD"}]
[]
[]
[]
[]
[]
[]
["DuraPatina","3","DuraAkzent",5,"DuraNatur",7,"Rombofix           8"]
[]
[]
[]
[]
[]
[]
[]
[{"$f":"IF($L$1=\"D\",VLOOKUP(169,Übersetzung!$A$2:$D$300,2),IF($L$1=\"F\",VLOOKUP(169,Übersetzung!$A$2:$D$300,3),VLOOKUP(169,Übersetzung!$A$2:$D$300,4)))","v":"EcoGrijs"},9,"CapeCod","10",{"$f":"IF($L$1=\"D\",VLOOKUP(170,Übersetzung!$A$2:$D$300,2),IF($L$1=\"F\",VLOOKUP(170,Übersetzung!$A$2:$D$300,3),VLOOKUP(170,Übersetzung!$A$2:$D$300,4)))","v":"Accessoires"},"12"]
[]
[]
[{"$f":"IF($L$1=\"D\",VLOOKUP(154,Übersetzung!$A$2:$D$300,2),IF($L$1=\"F\",VLOOKUP(154,Übersetzung!$A$2:$D$300,3),VLOOKUP(154,Übersetzung!$A$2:$D$300,4)))","v":"INFORMATIES"}]
[]
[{"$f":"IF($L$1=\"D\",VLOOKUP(160,Übersetzung!$A$2:$D$300,2),IF($L$1=\"F\",VLOOKUP(160,Übersetzung!$A$2:$D$300,3),VLOOKUP(160,Übersetzung!$A$2:$D$300,4)))","v":"Prijzen:"}]
[{"$f":"IF($L$1=\"D\",VLOOKUP(181,Übersetzung!$A$2:$D$300,2),IF($L$1=\"F\",VLOOKUP(181,Übersetzung!$A$2:$D$300,3),VLOOKUP(181,Übersetzung!$A$2:$D$300,4)))","v":"Alle prijzen in deze prijslijst zijn netto zonder btw! "}]
[]
[{"$f":"IF($L$1=\"D\",VLOOKUP(161,Übersetzung!$A$2:$D$300,2),IF($L$1=\"F\",VLOOKUP(161,Übersetzung!$A$2:$D$300,3),VLOOKUP(161,Übersetzung!$A$2:$D$300,4)))","v":"Transportkosten: "}]
[{"$f":"IF($L$1=\"D\",VLOOKUP(180,Übersetzung!$A$2:$D$300,2),IF($L$1=\"F\",VLOOKUP(180,Übersetzung!$A$2:$D$300,3),VLOOKUP(180,Übersetzung!$A$2:$D$300,4)))","v":"Alle prijzen zijn vanaf magazijn Büllingen - Transportkosten op aanvraag!"}]
[]
[{"$f":"IF($L$1=\"D\",VLOOKUP(162,Übersetzung!$A$2:$D$300,2),IF($L$1=\"F\",VLOOKUP(162,Übersetzung!$A$2:$D$300,3),VLOOKUP(162,Übersetzung!$A$2:$D$300,4)))","v":"Pakketverzending:"}]
[{"$f":"IF($L$1=\"D\",VLOOKUP(158,Übersetzung!$A$2:$D$300,2),IF($L$1=\"F\",VLOOKUP(158,Übersetzung!$A$2:$D$300,3),VLOOKUP(158,Übersetzung!$A$2:$D$300,4)))","v":"Accessoires (kleur voor het behandelen van de snijkanten, schroeven, enz.) tot 19 kg\n- BELGIË:  10,- €\n- LUXEMBURG, NEDERLAND & FRANKRIJK: 15,- €\nLevertijd: 2 tot 3 werkdagen!"}]
[]
[{"$f":"IF($L$1=\"D\",VLOOKUP(163,Übersetzung!$A$2:$D$300,2),IF($L$1=\"F\",VLOOKUP(163,Übersetzung!$A$2:$D$300,3),VLOOKUP(163,Übersetzung!$A$2:$D$300,4)))","v":"Levertijd: "}]
[{"$f":"IF($L$1=\"D\",VLOOKUP(159,Übersetzung!$A$2:$D$300,2),IF($L$1=\"F\",VLOOKUP(159,Übersetzung!$A$2:$D$300,3),VLOOKUP(159,Übersetzung!$A$2:$D$300,4)))","v":"Zie de verschillende prijslijsten van de verschillende productseries! Opgelet: afhankelijk van de ordersituatie kunnen ook magazijngoederen gedurende een korte periode niet leverbaar zijn! Aarzel niet ons te contacteren voor een precieze levertermijn! "}]
[]
[{"$f":"IF($L$1=\"D\",VLOOKUP(165,Übersetzung!$A$2:$D$300,2),IF($L$1=\"F\",VLOOKUP(165,Übersetzung!$A$2:$D$300,3),VLOOKUP(165,Übersetzung!$A$2:$D$300,4)))","v":"Kleuren:"}]
[{"$f":"IF($L$1=\"D\",VLOOKUP(166,Übersetzung!$A$2:$D$300,2),IF($L$1=\"F\",VLOOKUP(166,Übersetzung!$A$2:$D$300,3),VLOOKUP(166,Übersetzung!$A$2:$D$300,4)))","v":"Bestel altijd de volledig benodigde hoeveelheid van het project in één keer! Hout is een natuurlijk en levend product. Verschillen in de structuur zijn normaal. Bij latere leveringen kunnen er derhalve kleurverschillen optreden! We zouden er graag op wijzen dat deze geen reden voor een klacht zijn!\n\nDoor een nieuw europees directief wordt de samenstelling van het behandelingsproduct licht veranderd. Kleine verschillen met de oude versie (vóór 09/2015) zijn mogelijk. Indien u voor een oude levering nabestelt, deel ons het nummer van onze orderbevestiging mee. Wij kunnen alltijd nog met de oude versie laten produceren."}]
[]
[{"$f":"IF($L$1=\"D\",VLOOKUP(155,Übersetzung!$A$2:$D$300,2),IF($L$1=\"F\",VLOOKUP(155,Übersetzung!$A$2:$D$300,3),VLOOKUP(155,Übersetzung!$A$2:$D$300,4)))","v":"CONTACT"}]
[]
["W&R-TRADE PGmbH"]
["Morsheck 7a",null,null,null,"Fax.: +32 (0)80/42 94 19"]
["B - 4760 Büllingen",null,null,null,"info@wr-trade.eu"]
["Tel.: +32 (0)80/42 94 18",null,null,null,"www.wr-trade.eu"]
[]
[]
[]
[{"$f":"IF($L$1=\"D\",VLOOKUP(107,Übersetzung!$A$2:$D$149,2),IF($L$1=\"F\",VLOOKUP(107,Übersetzung!$A$2:$D$149,3),VLOOKUP(107,Übersetzung!$A$2:$D$149,4)))","v":"Geldig vanaf 1 maart 2018 !"},null,null,{"$f":"IF($L$1=\"D\",VLOOKUP(152,Übersetzung!$A$2:$D$300,2),IF($L$1=\"F\",VLOOKUP(152,Übersetzung!$A$2:$D$300,3),VLOOKUP(152,Übersetzung!$A$2:$D$300,4)))","v":"pagina:"},{"$f":"_xlfn.SHEET(D73)-1 & \"/\" & MargenVersionen!K6","v":"2/13"},null,{"$f":"IF($L$1=\"D\",VLOOKUP(185,Übersetzung!$A$2:$D$300,2),IF($L$1=\"F\",VLOOKUP(185,Übersetzung!$A$2:$D$300,3),VLOOKUP(185,Übersetzung!$A$2:$D$300,4)))","v":"v01"}]

{"sheet":"DuraPatina (Lager - S.3)","index":3,"n_rows":61,"n_cols":20,"rows_kept":61,"cut":false,"hidden":false,"merged":[[12,16,13,16],[12,17,13,17],[12,18,13,18],[12,19,13,19],[3,11,3,14],[3,16,3,19],[4,16,4,19],[6,16,6,19],[12,6,13,6],[10,4,11,4],[10,3,11,3],[4,11,4,14],[5,0,5,7],[6,11,6,14],[7,0,8,0],[7,4,9,4],[12,7,13,7],[12,11,13,11],[12,12,13,12],[12,13,13,13],[12,14,13,14],[20,0,20,4],[14,18,15,18],[14,19,15,19],[14,4,15,4],[14,2,15,2],[14,3,15,3],[14,7,15,7],[14,1,15,1],[14,6,15,6],[14,5,15,5],[14,16,15,16],[14,17,15,17],[14,11,15,11],[14,12,15,12],[14,13,15,13],[14,14,15,14],[1,1,2,5],[18,0,18,4],[19,0,19,4],[10,1,11,1],[12,1,13,1],[16,0,16,4],[12,4,13,4],[12,2,13,2],[12,3,13,3],[12,5,13,5]]}
[null,null,null,null,null,null,null,null,null,"a",null,"d"]
[null,{"$f":"IF($J$1=\"a\",(IF($L$1=\"D\",VLOOKUP(48,Übersetzung!$A$2:$D$100,2),IF($L$1=\"F\",VLOOKUP(48,Übersetzung!$A$2:$D$100,3),VLOOKUP(48,Übersetzung!$A$2:$D$100,4)))),(IF($L$1=\"D\",VLOOKUP(125,Übersetzung!$A$2:$D$150,2),IF($L$1=\"F\",VLOOKUP(125,Übersetzung!$A$2:$D$150,3),VLOOKUP(125,Übersetzung!$A$2:$D$150,4)))))","v":"Händlerpreisliste 2018"}]
[]
[null,null,null,null,null,null,null,null,null,null,null,"Leithändlerpreise 02/2018",null,null,null,null,"Umrechnung auf Nutzfläche (wo nötig)"]
[null,null,null,null,null,null,null,null,null,null,null,"Leithändlerpreise 01/2013",null,null,null,null,"Leithändlerpreise 01/2013"]
[{"$f":"IF($L$1=\"D\",VLOOKUP(25,Übersetzung!$A$2:$D$100,2),IF($L$1=\"F\",VLOOKUP(25,Übersetzung!$A$2:$D$100,3),VLOOKUP(25,Übersetzung!$A$2:$D$100,4)))","v":"LAGERWARE (nur in den Farbtönen - Kristallgrau / Lavagrau / Gletschergrau)\n- Bei der Qualität \"Selekt\" sind Verschnittlängen (200/250/300/350 cm) bis 10 % mitgehend!\n- Für Lieferungen ohne Kurzlängen berechnen wir 7% Aufpreis. \n- Bitte bei Bestellung angeben, ob Bestellmenge zzgl. oder inkl. Verschnitt ist.\n  Wenn Sie nichts angeben, liefern wir inkl. Verschnittlängen.\n- Lieferzeit: ca. 2 Wochen (Genaue Lieferzeit auf Anfrage!)"},null,null,null,null,null,null,null,null,null,"Marge W&R auf EK Habis","Kommisions- Preis","Anbruch-Preis ab 1 Paket","Paketpreis","6 Pakete",null,"Kommisions- Preis","Anbruch-preis ab 1 Paket","Paketpreis","6 Pakete"]
[{"$f":"IF($L$1=\"D\",VLOOKUP(1,Übersetzung!$A$2:$D$100,2),IF($L$1=\"F\",VLOOKUP(1,Übersetzung!$A$2:$D$100,3),VLOOKUP(1,Übersetzung!$A$2:$D$100,4)))","v":"Profile"},{"$f":"IF($L$1=\"D\",VLOOKUP(91,Übersetzung!$A$2:$D$100,2),IF($L$1=\"F\",VLOOKUP(91,Übersetzung!$A$2:$D$100,3),VLOOKUP(91,Übersetzung!$A$2:$D$100,4)))","v":"Qualität"},{"$f":"IF($L$1=\"D\",VLOOKUP(2,Übersetzung!$A$2:$D$100,2),IF($L$1=\"F\",VLOOKUP(2,Übersetzung!$A$2:$D$100,3),VLOOKUP(2,Übersetzung!$A$2:$D$100,4)))","v":"Dimension in mm Stärke x Breite"},{"$f":"IF($L$1=\"D\",VLOOKUP(3,Übersetzung!$A$2:$D$100,2),IF($L$1=\"F\",VLOOKUP(3,Übersetzung!$A$2:$D$100,3),VLOOKUP(3,Übersetzung!$A$2:$D$100,4)))","v":"Länge\n(m)"},{"$f":"IF($L$1=\"D\",VLOOKUP(4,Übersetzung!$A$2:$D$100,2),IF($L$1=\"F\",VLOOKUP(4,Übersetzung!$A$2:$D$100,3),VLOOKUP(4,Übersetzung!$A$2:$D$100,4)))","v":"VPE Bund/Paket"},{"$f":"IF($L$1=\"D\",VLOOKUP(176,Übersetzung!$A$2:$D$301,2),IF($L$1=\"F\",VLOOKUP(176,Übersetzung!$A$2:$D$301,3),VLOOKUP(176,Übersetzung!$A$2:$D$301,4)))","v":"Bedarf (m/m²)"},{"$f":"IF($L$1=\"D\",VLOOKUP(5,Übersetzung!$A$2:$D$100,2),IF($L$1=\"F\",VLOOKUP(5,Übersetzung!$A$2:$D$100,3),VLOOKUP(5,Übersetzung!$A$2:$D$100,4)))","v":"Kommissions-preis (weniger als ein Paket)"},{"$f":"IF($L$1=\"D\",VLOOKUP(7,Übersetzung!$A$2:$D$100,2),IF($L$1=\"F\",VLOOKUP(7,Übersetzung!$A$2:$D$100,3),VLOOKUP(7,Übersetzung!$A$2:$D$100,4)))","v":"Paketpreis"},null,null,{"$f":"IF($J$1=\"A\",VLOOKUP(1,MargenVersionen!$A$9:$G$12,2),IF($J$1=\"B\",VLOOKUP(1,MargenVersionen!$A$9:$G$12,4),VLOOKUP(1,MargenVersionen!$A$9:$G$12,6)))","v":0.3},"Hier die Preise eingeben!",null,null,null,null,"Felder werden automatisch berechnet!"]
[{"$f":"IF($L$1=\"D\",VLOOKUP(16,Übersetzung!$A$2:$D$100,2),IF($L$1=\"F\",VLOOKUP(16,Übersetzung!$A$2:$D$100,3),VLOOKUP(16,Übersetzung!$A$2:$D$100,4)))","v":"Rhombus 15° "},{"$f":"IF($L$1=\"D\",VLOOKUP(139,Übersetzung!$A$2:$D$301,2),IF($L$1=\"F\",VLOOKUP(139,Übersetzung!$A$2:$D$301,3),VLOOKUP(139,Übersetzung!$A$2:$D$301,4)))","v":"Premium"},"23 x 75",5,"4 / 224","12,50*",{"$f":"L8+L8*$K$7","v":4.42},4.2249999999999996,null,null,null,3.4,3.25,3.1,2.85]
[null,{"$f":"IF($L$1=\"D\",VLOOKUP(138,Übersetzung!$A$2:$D$301,2),IF($L$1=\"F\",VLOOKUP(138,Übersetzung!$A$2:$D$301,3),VLOOKUP(138,Übersetzung!$A$2:$D$301,4)))","v":"Selekt"},"21 x 65","4,0 / 5,0",null,"14,29*",3.5750000000000002,3.38,null,null,null,2.75,2.6,2.5,2.2999999999999998]
[{"$f":"IF($L$1=\"D\",VLOOKUP(104,Übersetzung!$A$2:$D$149,2),IF($L$1=\"F\",VLOOKUP(104,Übersetzung!$A$2:$D$149,3),VLOOKUP(104,Übersetzung!$A$2:$D$149,4)))","v":"Leistenbreite = Berechnungsbreite"},{"$f":"IF($L$1=\"D\",VLOOKUP(140,Übersetzung!$A$2:$D$301,2),IF($L$1=\"F\",VLOOKUP(140,Übersetzung!$A$2:$D$301,3),VLOOKUP(140,Übersetzung!$A$2:$D$301,4)))","v":"Keilgezinkt"},"21 x 65","4,0 / 5,0 / 6,0",null,"14,29*",3.77,3.5750000000000002,null,null,null,2.9,2.75,2.6,2.4]
[{"$f":"IF($L$1=\"D\",VLOOKUP(11,Übersetzung!$A$2:$D$100,2),IF($L$1=\"F\",VLOOKUP(11,Übersetzung!$A$2:$D$100,3),VLOOKUP(11,Übersetzung!$A$2:$D$100,4)))","v":"Glattkant"},{"$f":"IF($L$1=\"D\",VLOOKUP(138,Übersetzung!$A$2:$D$301,2),IF($L$1=\"F\",VLOOKUP(138,Übersetzung!$A$2:$D$301,3),VLOOKUP(138,Übersetzung!$A$2:$D$301,4)))","v":"Selekt"},"21 x 116",5,"1 / 112",8.48,{"$f":"L11+L11*$K$7","v":46.8},{"$f":"M11+M11*$K$7","v":44.46},null,null,null,36,34.200000000000003,32.5,29.85]
[{"$f":"IF($L$1=\"D\",VLOOKUP(103,Übersetzung!$A$2:$D$149,2),IF($L$1=\"F\",VLOOKUP(103,Übersetzung!$A$2:$D$149,3),VLOOKUP(103,Übersetzung!$A$2:$D$149,4)))","v":"Brettbreite = Berechnungsbreite"},null,"21 x 140",null,null,7.15,46.8,{"$f":"M12+M12*$K$7","v":44.46},null,null,null,36,34.200000000000003,32.5,29.85]
[{"$f":"IF($L$1=\"D\",VLOOKUP(10,Übersetzung!$A$2:$D$100,2),IF($L$1=\"F\",VLOOKUP(10,Übersetzung!$A$2:$D$100,3),VLOOKUP(10,Übersetzung!$A$2:$D$100,4)))","v":"Trapez"},{"$f":"IF($L$1=\"D\",VLOOKUP(138,Übersetzung!$A$2:$D$3002,2),IF($L$1=\"F\",VLOOKUP(138,Übersetzung!$A$2:$D$301,3),VLOOKUP(138,Übersetzung!$A$2:$D$301,4)))","v":"Selekt"},{"$f":"IF($L$1=\"D\",VLOOKUP(26,Übersetzung!$A$2:$D$100,2),IF($L$1=\"F\",VLOOKUP(26,Übersetzung!$A$2:$D$100,3),VLOOKUP(26,Übersetzung!$A$2:$D$100,4)))","v":"22 x 142\nDeckmaß: 125 mm"},"4,0 / 5,0","4 / 224",8,{"$f":"Q13+Q13*$K$7","v":53.1648},{"$f":"R13+R13*$K$7","v":50.506560000000007},null,null,null,36,34.200000000000003,32.5,29.85,null,{"$f":"L13*142/125","v":40.896000000000001},{"$f":"M13*142/125","v":38.851200000000006},{"$f":"N13*142/125","v":36.92},{"$f":"O13*142/125","v":33.909599999999998}]
[{"$f":"IF($L$1=\"D\",VLOOKUP(102,Übersetzung!$A$2:$D$149,2),IF($L$1=\"F\",VLOOKUP(102,Übersetzung!$A$2:$D$149,3),VLOOKUP(102,Übersetzung!$A$2:$D$149,4)))","v":"Deckmaß = Berechnungsbreite"}]
[{"$f":"IF($L$1=\"D\",VLOOKUP(14,Übersetzung!$A$2:$D$100,2),IF($L$1=\"F\",VLOOKUP(14,Übersetzung!$A$2:$D$100,3),VLOOKUP(14,Übersetzung!$A$2:$D$100,4)))","v":"Nimbus"},{"$f":"IF($L$1=\"D\",VLOOKUP(138,Übersetzung!$A$2:$D$301,2),IF($L$1=\"F\",VLOOKUP(138,Übersetzung!$A$2:$D$301,3),VLOOKUP(138,Übersetzung!$A$2:$D$301,4)))","v":"Selekt"},{"$f":"IF($L$1=\"D\",VLOOKUP(27,Übersetzung!$A$2:$D$100,2),IF($L$1=\"F\",VLOOKUP(27,Übersetzung!$A$2:$D$100,3),VLOOKUP(27,Übersetzung!$A$2:$D$100,4)))","v":"21 x 92\nDeckmaß: 80 mm"},"4,0 / 5,0","4 / 160",12.5,{"$f":"Q15+Q15*$K$7","v":58.454500000000003},{"$f":"R15+R15*$K$7","v":55.539249999999996},null,null,null,39.1,37.15,35.200000000000003,32.35,null,{"$f":"L15*92/80","v":44.965000000000003},{"$f":"M15*92/80","v":42.722499999999997},40.480000000000004,37.202500000000001]
[{"$f":"IF($L$1=\"D\",VLOOKUP(102,Übersetzung!$A$2:$D$149,2),IF($L$1=\"F\",VLOOKUP(102,Übersetzung!$A$2:$D$149,3),VLOOKUP(102,Übersetzung!$A$2:$D$149,4)))","v":"Deckmaß = Berechnungsbreite"}]
[{"$f":"IF($L$1=\"D\",VLOOKUP(175,Übersetzung!$A$2:$D$301,2),IF($L$1=\"F\",VLOOKUP(175,Übersetzung!$A$2:$D$301,3),VLOOKUP(175,Übersetzung!$A$2:$D$301,4)))","v":"*Auf Basis einer Schattenfuge von 10mm!!!"},null,null,null,null,8]
[]
[{"$f":"IF($L$1=\"D\",VLOOKUP(51,Übersetzung!$A$2:$D$100,2),IF($L$1=\"F\",VLOOKUP(51,Übersetzung!$A$2:$D$100,3),VLOOKUP(51,Übersetzung!$A$2:$D$100,4)))","v":"Beistreichfarbe"},null,null,null,null,{"$f":"IF($L$1=\"D\",VLOOKUP(179,Übersetzung!$A$2:$D$301,2),IF($L$1=\"F\",VLOOKUP(179,Übersetzung!$A$2:$D$301,3),VLOOKUP(179,Übersetzung!$A$2:$D$301,4)))","v":"Verbrauch (m²/Liter)"},{"$f":"IF($L$1=\"D\",VLOOKUP(20,Übersetzung!$A$2:$D$100,2),IF($L$1=\"F\",VLOOKUP(20,Übersetzung!$A$2:$D$100,3),VLOOKUP(20,Übersetzung!$A$2:$D$100,4)))","v":"Gebinde 1L "},{"$f":"IF($L$1=\"D\",VLOOKUP(21,Übersetzung!$A$2:$D$100,2),IF($L$1=\"F\",VLOOKUP(21,Übersetzung!$A$2:$D$100,3),VLOOKUP(21,Übersetzung!$A$2:$D$100,4)))","v":"Gebinde 5L"},null,null,{"$f":"IF($J$1=\"A\",VLOOKUP(4,MargenVersionen!$A$9:$G$12,2),IF($J$1=\"B\",VLOOKUP(4,MargenVersionen!$A$9:$G$12,4),VLOOKUP(4,MargenVersionen!$A$9:$G$12,6)))","v":0.6}]
[{"$f":"IF($L$1=\"D\",VLOOKUP(35,Übersetzung!$A$2:$D$100,2),IF($L$1=\"F\",VLOOKUP(35,Übersetzung!$A$2:$D$100,3),VLOOKUP(35,Übersetzung!$A$2:$D$100,4)))","v":"Zum Streichen von Schnittkanten. Für Farbtöne: Lavagrau, Gletschergrau, Kristallgrau, Basaltgrau, Tundragrau, Schiefergrau"},null,null,null,null,"max. 70",{"$f":"L20+L20*$K$19","v":28.48},{"$f":"M20+M20*$K$19","v":113.92},null,null,null,17.8,71.2]
[{"$f":"IF($L$1=\"D\",VLOOKUP(36,Übersetzung!$A$2:$D$100,2),IF($L$1=\"F\",VLOOKUP(36,Übersetzung!$A$2:$D$100,3),VLOOKUP(36,Übersetzung!$A$2:$D$100,4)))","v":"Für angrenzende Bauteile aus Fichte gehobelt, z.Bsp. Sichtgebälk, Schalung, usw. \nImprägnierlasur 3.01 für Farbtöne: Lavagrau, Gletschergrau, Kristallgrau, Basaltgrau, Tundragrau, Schiefergrau"},null,null,null,null,"ca. 6,25",{"$f":"L21+L21*$K$19","v":28},{"$f":"M21+M21*$K$19","v":95.199999999999989},null,null,null,17.5,59.5]
[]
[]
[]
[]
[]
[]
[]
[]
[]
[]
[]
[]
[]
[]
[]
[]
[]
[]
[]
[]
[]
[]
[]
[]
[]
[]
[]
[]
[]
[]
[]
[]
[]
[]
[]
[]
[]
[]
[]
[{"$f":"IF($L$1=\"D\",VLOOKUP(107,Übersetzung!$A$2:$D$149,2),IF($L$1=\"F\",VLOOKUP(107,Übersetzung!$A$2:$D$149,3),VLOOKUP(107,Übersetzung!$A$2:$D$149,4)))","v":"Gültig ab 1. März 2018 !"},null,null,{"$f":"IF($L$1=\"D\",VLOOKUP(152,Übersetzung!$A$2:$D$300,2),IF($L$1=\"F\",VLOOKUP(152,Übersetzung!$A$2:$D$300,3),VLOOKUP(152,Übersetzung!$A$2:$D$300,4)))","v":"Seite: "},{"$f":"_xlfn.SHEET(D73)-1 & \"/\" & MargenVersionen!K6","v":"3/13"},null,null,{"$f":"IF($L$1=\"D\",VLOOKUP(185,Übersetzung!$A$2:$D$300,2),IF($L$1=\"F\",VLOOKUP(185,Übersetzung!$A$2:$D$300,3),VLOOKUP(185,Übersetzung!$A$2:$D$300,4)))","v":"v01"}]

{"sheet":"DuraPatina (Kom T1 - S.4)","index":4,"n_rows":53,"n_cols":19,"rows_kept":53,"cut":false,"hidden":false,"merged":[[6,0,6,7],[22,4,24,4],[22,10,24,10],[39,4,40,4],[12,12,14,12],[39,7,40,7],[36,0,36,7],[12,3,14,3],[22,3,24,3],[12,6,14,6],[22,6,24,6],[30,0,30,7],[28,0,28,1],[28,4,28,7],[22,7,24,7],[12,7,14,7],[3,10,3,13],[3,15,3,18],[7,15,7,18],[4,12,4,15],[4,17,4,20],[5,15,5,18],[32,0,32,7],[33,0,33,7],[34,0,34,7],[39,1,40,1],[39,2,40,2],[39,3,40,3],[39,5,40,5],[39,6,40,6],[39,11,40,11],[39,12,40,12],[39,13,40,13],[12,15,14,15],[12,13,14,13],[41,0,41,4],[1,1,2,5],[12,16,14,16],[12,17,14,17],[22,11,24,11],[22,12,24,12],[12,4,14,4],[7,10,7,13],[22,13,24,13],[12,10,14,10],[12,11,14,11],[8,0,27,0],[8,1,27,1],[5,0,5,7],[5,10,5,13],[39,10,40,10],[12,18,14,18],[22,15,24,15],[22,16,24,16],[22,17,24,17],[22,18,24,18]]}
[null,null,null,null,null,null,null,null,null,"a",null,"d"]
[null,{"$f":"IF($J$1=\"a\",(IF($L$1=\"D\",VLOOKUP(48,Übersetzung!$A$2:$D$100,2),IF($L$1=\"F\",VLOOKUP(48,Übersetzung!$A$2:$D$100,3),VLOOKUP(48,Übersetzung!$A$2:$D$100,4)))),(IF($L$1=\"D\",VLOOKUP(125,Übersetzung!$A$2:$D$150,2),IF($L$1=\"F\",VLOOKUP(125,Übersetzung!$A$2:$D$150,3),VLOOKUP(125,Übersetzung!$A$2:$D$150,4)))))","v":"Händlerpreisliste 2018"}]
[]
[null,null,null,null,null,null,null,null,null,null,"Leithändlerpreise 02/2018",null,null,null,null,"Umrechnung auf Nutzfläche (wo nötig)"]
[null,null,null,null,null,null,null,null,null,null,null,null,"Leithändlerpreise 01/2013",null,null,null,null,"Leithändlerpreise 01/2013"]
[{"$f":"IF($L$1=\"D\",VLOOKUP(193,Übersetzung!$A$2:$D$301,2),IF($L$1=\"F\",VLOOKUP(193,Übersetzung!$A$2:$D$301,3),VLOOKUP(193,Übersetzung!$A$2:$D$301,4)))","v":"KOMMISSIONSWARE"}]
[{"$f":"IF($L$1=\"D\",VLOOKUP(133,Übersetzung!$A$2:$D$301,2),IF($L$1=\"F\",VLOOKUP(133,Übersetzung!$A$2:$D$301,3),VLOOKUP(133,Übersetzung!$A$2:$D$301,4)))","v":"- Produktion ab 50m² (kleinere Mengen nur als Sammelauftrag möglich - Achtung: evt. längere Lieferzeit!).\n- Mindermengenzuschlag bis 100m² - Farbtöne Kristall, Lava & Gletscher: 55,- €.\n- Mindermengenzuschlag bis 100m² - Farbtöne Basalt, Tundra & Schiefer: 170,- €.\n- Verschnittlängen (200/250/300/350 cm) bis 10% mitgehend!\n- Für Lieferungen ohne Kurzlängen berechnen wir 7% Aufpreis. \n- Bitte bei Bestellung angeben, ob Bestellmenge zzgl. oder inkl. Verschnitt ist. \n  Wenn Sie nichts angeben, liefern wir inkl. Verschnittlängen!\n- Lieferzeit: 6 - 8 Wochen (Genaue Lieferzeit auf Anfrage!)."},null,null,null,null,null,null,null,null,"Marge W&R auf EK Habis","Kommisions- Preis","Anbruch-Preis ab 1 Paket","Paketpreis","6 Pakete",null,"Kommisions- Preis","Anbruch-preis ab 1 Paket","Paketpreis","6 Pakete"]
[{"$f":"IF($L$1=\"D\",VLOOKUP(1,Übersetzung!$A$2:$D$100,2),IF($L$1=\"F\",VLOOKUP(1,Übersetzung!$A$2:$D$100,3),VLOOKUP(1,Übersetzung!$A$2:$D$100,4)))","v":"Profile"},{"$f":"IF($L$1=\"D\",VLOOKUP(91,Übersetzung!$A$2:$D$100,2),IF($L$1=\"F\",VLOOKUP(91,Übersetzung!$A$2:$D$100,3),VLOOKUP(91,Übersetzung!$A$2:$D$100,4)))","v":"Qualität"},{"$f":"IF($L$1=\"D\",VLOOKUP(2,Übersetzung!$A$2:$D$100,2),IF($L$1=\"F\",VLOOKUP(2,Übersetzung!$A$2:$D$100,3),VLOOKUP(2,Übersetzung!$A$2:$D$100,4)))","v":"Dimension in mm Stärke x Breite"},{"$f":"IF($L$1=\"D\",VLOOKUP(3,Übersetzung!$A$2:$D$100,2),IF($L$1=\"F\",VLOOKUP(3,Übersetzung!$A$2:$D$100,3),VLOOKUP(3,Übersetzung!$A$2:$D$100,4)))","v":"Länge\n(m)"},{"$f":"IF($L$1=\"D\",VLOOKUP(4,Übersetzung!$A$2:$D$100,2),IF($L$1=\"F\",VLOOKUP(4,Übersetzung!$A$2:$D$100,3),VLOOKUP(4,Übersetzung!$A$2:$D$100,4)))","v":"VPE Bund/Paket"},{"$f":"IF($L$1=\"D\",VLOOKUP(176,Übersetzung!$A$2:$D$301,2),IF($L$1=\"F\",VLOOKUP(176,Übersetzung!$A$2:$D$301,3),VLOOKUP(176,Übersetzung!$A$2:$D$301,4)))","v":"Bedarf (m/m²)"},{"$f":"IF($L$1=\"D\",VLOOKUP(5,Übersetzung!$A$2:$D$100,2),IF($L$1=\"F\",VLOOKUP(5,Übersetzung!$A$2:$D$100,3),VLOOKUP(5,Übersetzung!$A$2:$D$100,4)))","v":"Kommissions-preis (weniger als ein Paket)"},{"$f":"IF($L$1=\"D\",VLOOKUP(7,Übersetzung!$A$2:$D$100,2),IF($L$1=\"F\",VLOOKUP(7,Übersetzung!$A$2:$D$100,3),VLOOKUP(7,Übersetzung!$A$2:$D$100,4)))","v":"Paketpreis"},null,{"$f":"IF($J$1=\"A\",VLOOKUP(1,MargenVersionen!$A$9:$G$12,2),IF($J$1=\"B\",VLOOKUP(1,MargenVersionen!$A$9:$G$12,4),VLOOKUP(1,MargenVersionen!$A$9:$G$12,6)))","v":0.3},"Hier die Preise eingeben!",null,null,null,null,"Felder werden automatisch berechnet!"]
[{"$f":"IF($L$1=\"D\",VLOOKUP(142,Übersetzung!$A$2:$D$301,2),IF($L$1=\"F\",VLOOKUP(142,Übersetzung!$A$2:$D$301,3),VLOOKUP(142,Übersetzung!$A$2:$D$301,4)))","v":"Große Auswahl an Profilen! Die technische Machbarkeit muss geprüft werden! Bitte fragen Sie uns!"},{"$f":"IF($L$1=\"D\",VLOOKUP(138,Übersetzung!$A$2:$D$301,2),IF($L$1=\"F\",VLOOKUP(138,Übersetzung!$A$2:$D$301,3),VLOOKUP(138,Übersetzung!$A$2:$D$301,4)))","v":"Selekt"},"21 x 40","4,0 / 5,0","4 / 224","/",{"$f":"K9+K9*$J$8","v":2.7949999999999999},2.6649999999999996,null,null,2.15,2.0499999999999998,1.95,1.8]
[null,null,"21 x 55","4,0 / 5,0","4 / 224","/",3.38,3.1850000000000001,null,null,2.6,2.4500000000000002,2.2999999999999998,2.1]
[null,null,"21 x 65","4,0 / 5,0","4 / 224","/",3.5750000000000002,3.38,null,null,2.75,2.6,2.5,2.2999999999999998]
[null,null,"21 x 90","4,0 / 5,0","4 / 160","/",50.83,48.295000000000002,null,null,39.1,37.15,35.200000000000003,32.35]
[null,null,"21 x 116","4,0 / 5,0","4 / 112",null,54.339999999999996,51.61,null,null,41.8,39.700000000000003,37.700000000000003,34.700000000000003]
[null,null,"21 x 140",null,null,"/"]
[null,null,"21 x 170"]
[null,null,"26 x 40","4,0 / 5,0","4 / 224","/",{"$f":"K16+K16*$J$8","v":3.38},{"$f":"L16+L16*$J$8","v":3.25},null,null,2.6,2.5,2.4,2.25]
[null,null,"26 x 65","4,0 / 5,0","4 / 224","/",4.2249999999999996,4.03,null,null,3.25,3.1,2.95,2.75]
[null,null,"26 x 140","4,0 / 5,0","4 /112","/",62.269999999999996,59.15,null,null,47.9,45.5,43.2,39.799999999999997]
[null,null,"40 x 40","4,0 / 5,0","4 / 224","/",4.55,4.3550000000000004,null,null,3.5,3.35,3.2,2.95]
[null,null,"40 x 55","4,0 / 5,0","4 / 224","/",5.5250000000000004,5.2649999999999997,null,null,4.25,4.05,3.85,3.55]
[null,null,"40 x 65","4,0 / 5,0","4 / 224","/",6.37,6.0449999999999999,null,null,4.9000000000000004,4.6500000000000004,4.4000000000000004,4.05]
[null,null,"40 x 90","4,0 / 5,0","4 / 160","/",90.87,86.45,null,null,69.900000000000006,66.5,63.2,58.2]
[null,null,"40 x 116","4,0 / 5,0","4 / 112",null,89.960000000000008,85.474999999999994,null,null,69.2,65.75,62.5,57.5]
[null,null,"40 x 140",null,null,"/"]
[null,null,"40 x 170"]
[null,null,"50 x 40","4,0 / 5,0","4 / 224","/",{"$f":"K26+K26*$J$8","v":5.6549999999999994},5.3950000000000005,null,null,4.3499999999999996,4.1500000000000004,3.95,3.65]
[null,null,"50 x 65","4,0 / 5,0","4 / 224","/",7.4749999999999996,7.15,null,null,5.75,5.5,5.25,4.8499999999999996]
[null,null,"50 x 140","4,0 / 5,0","4 / 112","/",106.34,101.01,null,null,81.8,77.7,73.8,67.95]
[{"$f":"IF($L$1=\"D\",VLOOKUP(103,Übersetzung!$A$2:$D$149,2),IF($L$1=\"F\",VLOOKUP(103,Übersetzung!$A$2:$D$149,3),VLOOKUP(103,Übersetzung!$A$2:$D$149,4))) & \"!!!\"","v":"Brettbreite = Berechnungsbreite!!!"},null,null,null,{"$f":"IF($L$1=\"D\",VLOOKUP(192,Übersetzung!$A$2:$D$301,2),IF($L$1=\"F\",VLOOKUP(192,Übersetzung!$A$2:$D$301,3),VLOOKUP(192,Übersetzung!$A$2:$D$301,4)))","v":"Beispielprofile finden Sie auf Seite 5."}]
[]
[{"$f":"IF($L$1=\"D\",VLOOKUP(141,Übersetzung!$A$2:$D$301,2),IF($L$1=\"F\",VLOOKUP(141,Übersetzung!$A$2:$D$301,3),VLOOKUP(141,Übersetzung!$A$2:$D$301,4)))","v":"Qualität: KEILGEZINKT"}]
[]
[{"$f":"IF($L$1=\"D\",VLOOKUP(15,Übersetzung!$A$2:$D$301,2),IF($L$1=\"F\",VLOOKUP(15,Übersetzung!$A$2:$D$301,3),VLOOKUP(15,Übersetzung!$A$2:$D$301,4)))","v":"- Standardlängen von 3,0m bis 6,0m in Schritten von 10cm!\n- Keine Kurzlängen wie bei der Qualität \"Selekt\", dafür Mehrlieferungen bis 5% mitgehend!\n- Alle Dimensionen wie bei der Qualität \"Selekt\" möglich, außer 21x170mm und 40x170mm."}]
[{"$f":"IF($L$1=\"D\",VLOOKUP(190,Übersetzung!$A$2:$D$301,2),IF($L$1=\"F\",VLOOKUP(190,Übersetzung!$A$2:$D$301,3),VLOOKUP(190,Übersetzung!$A$2:$D$301,4)))","v":"- Preisbasis: Qualität \"Selekt\" + 5% Aufschlag."}]
[{"$f":"IF($L$1=\"D\",VLOOKUP(191,Übersetzung!$A$2:$D$301,2),IF($L$1=\"F\",VLOOKUP(191,Übersetzung!$A$2:$D$301,3),VLOOKUP(191,Übersetzung!$A$2:$D$301,4)))","v":"- Sonderlängen (z. Bsp. 3,54m oder 5,42m) sowie Überlängen (>6,0m) auf Anfrage möglich."}]
[]
[{"$f":"IF($L$1=\"D\",VLOOKUP(9,Übersetzung!$A$2:$D$301,2),IF($L$1=\"F\",VLOOKUP(9,Übersetzung!$A$2:$D$301,3),VLOOKUP(9,Übersetzung!$A$2:$D$301,4)))","v":"Qualität: PREMIUM"}]
[]
[{"$f":"IF($L$1=\"D\",VLOOKUP(1,Übersetzung!$A$2:$D$100,2),IF($L$1=\"F\",VLOOKUP(1,Übersetzung!$A$2:$D$100,3),VLOOKUP(1,Übersetzung!$A$2:$D$100,4)))","v":"Profile"},{"$f":"IF($L$1=\"D\",VLOOKUP(91,Übersetzung!$A$2:$D$100,2),IF($L$1=\"F\",VLOOKUP(91,Übersetzung!$A$2:$D$100,3),VLOOKUP(91,Übersetzung!$A$2:$D$100,4)))","v":"Qualität"},{"$f":"IF($L$1=\"D\",VLOOKUP(2,Übersetzung!$A$2:$D$100,2),IF($L$1=\"F\",VLOOKUP(2,Übersetzung!$A$2:$D$100,3),VLOOKUP(2,Übersetzung!$A$2:$D$100,4)))","v":"Dimension in mm Stärke x Breite"},{"$f":"IF($L$1=\"D\",VLOOKUP(3,Übersetzung!$A$2:$D$100,2),IF($L$1=\"F\",VLOOKUP(3,Übersetzung!$A$2:$D$100,3),VLOOKUP(3,Übersetzung!$A$2:$D$100,4)))","v":"Länge\n(m)"},{"$f":"IF($L$1=\"D\",VLOOKUP(4,Übersetzung!$A$2:$D$100,2),IF($L$1=\"F\",VLOOKUP(4,Übersetzung!$A$2:$D$100,3),VLOOKUP(4,Übersetzung!$A$2:$D$100,4)))","v":"VPE Bund/Paket"},{"$f":"IF($L$1=\"D\",VLOOKUP(176,Übersetzung!$A$2:$D$301,2),IF($L$1=\"F\",VLOOKUP(176,Übersetzung!$A$2:$D$301,3),VLOOKUP(176,Übersetzung!$A$2:$D$301,4)))","v":"Bedarf (m/m²)"},{"$f":"IF($L$1=\"D\",VLOOKUP(5,Übersetzung!$A$2:$D$100,2),IF($L$1=\"F\",VLOOKUP(5,Übersetzung!$A$2:$D$100,3),VLOOKUP(5,Übersetzung!$A$2:$D$100,4)))","v":"Kommissions-preis (weniger als ein Paket)"},{"$f":"IF($L$1=\"D\",VLOOKUP(7,Übersetzung!$A$2:$D$100,2),IF($L$1=\"F\",VLOOKUP(7,Übersetzung!$A$2:$D$100,3),VLOOKUP(7,Übersetzung!$A$2:$D$100,4)))","v":"Paketpreis"},null,{"$f":"IF($J$1=\"A\",VLOOKUP(1,MargenVersionen!$A$9:$G$12,2),IF($J$1=\"B\",VLOOKUP(1,MargenVersionen!$A$9:$G$12,4),VLOOKUP(1,MargenVersionen!$A$9:$G$12,6)))","v":0.3}]
[{"$f":"IF($L$1=\"D\",VLOOKUP(100,Übersetzung!$A$2:$D$100,2),IF($L$1=\"F\",VLOOKUP(100,Übersetzung!$A$2:$D$100,3),VLOOKUP(100,Übersetzung!$A$2:$D$100,4)))","v":"Deckleiste"},{"$f":"IF($L$1=\"D\",VLOOKUP(139,Übersetzung!$A$2:$D$301,2),IF($L$1=\"F\",VLOOKUP(139,Übersetzung!$A$2:$D$301,3),VLOOKUP(139,Übersetzung!$A$2:$D$301,4)))","v":"Premium"},"23 x 75",5,"4 /224","11,77*",{"$f":"K40+K40*$J$39","v":4.42},{"$f":"L40+L40*$J$39","v":4.2249999999999996},null,null,3.4,3.25,3.1,2.85]
[{"$f":"IF($L$1=\"D\",VLOOKUP(104,Übersetzung!$A$2:$D$149,2),IF($L$1=\"F\",VLOOKUP(104,Übersetzung!$A$2:$D$149,3),VLOOKUP(104,Übersetzung!$A$2:$D$149,4)))","v":"Leistenbreite = Berechnungsbreite"}]
[{"$f":"IF($L$1=\"D\",VLOOKUP(175,Übersetzung!$A$2:$D$301,2),IF($L$1=\"F\",VLOOKUP(175,Übersetzung!$A$2:$D$301,3),VLOOKUP(175,Übersetzung!$A$2:$D$301,4)))","v":"*Auf Basis einer Schattenfuge von 10mm!!!"},null,null,null,null,8]
[]
[]
[]
[]
[]
[]
[]
[]
[]
[]
[{"$f":"IF($L$1=\"D\",VLOOKUP(107,Übersetzung!$A$2:$D$149,2),IF($L$1=\"F\",VLOOKUP(107,Übersetzung!$A$2:$D$149,3),VLOOKUP(107,Übersetzung!$A$2:$D$149,4)))","v":"Gültig ab 1. März 2018 !"},null,null,{"$f":"IF($L$1=\"D\",VLOOKUP(152,Übersetzung!$A$2:$D$300,2),IF($L$1=\"F\",VLOOKUP(152,Übersetzung!$A$2:$D$300,3),VLOOKUP(152,Übersetzung!$A$2:$D$300,4)))","v":"Seite: "},{"$f":"_xlfn.SHEET(D73)-1 & \"/\" & MargenVersionen!K6","v":"4/13"},null,null,{"$f":"IF($L$1=\"D\",VLOOKUP(185,Übersetzung!$A$2:$D$300,2),IF($L$1=\"F\",VLOOKUP(185,Übersetzung!$A$2:$D$300,3),VLOOKUP(185,Übersetzung!$A$2:$D$300,4)))","v":"v01"}]

{"sheet":"DuraPatina (Kom T2 - S.5)","index":5,"n_rows":61,"n_cols":12,"rows_kept":61,"cut":false,"hidden":false,"merged":[[37,0,37,7],[47,5,47,7],[9,0,9,7],[35,0,35,7],[1,1,2,5],[3,10,3,13],[3,15,3,18],[4,12,4,15],[4,17,4,20],[6,0,6,7],[5,0,5,7]]}
[null,null,null,null,null,null,null,null,null,"a",null,"n"]
[null,{"$f":"IF($J$1=\"a\",(IF($L$1=\"D\",VLOOKUP(48,Übersetzung!$A$2:$D$100,2),IF($L$1=\"F\",VLOOKUP(48,Übersetzung!$A$2:$D$100,3),VLOOKUP(48,Übersetzung!$A$2:$D$100,4)))),(IF($L$1=\"D\",VLOOKUP(125,Übersetzung!$A$2:$D$150,2),IF($L$1=\"F\",VLOOKUP(125,Übersetzung!$A$2:$D$150,3),VLOOKUP(125,Übersetzung!$A$2:$D$150,4)))))","v":"Prijslijst handelaars 2018"}]
[]
[]
[]
[{"$f":"IF($L$1=\"D\",VLOOKUP(194,Übersetzung!$A$2:$D$301,2),IF($L$1=\"F\",VLOOKUP(194,Übersetzung!$A$2:$D$301,3),VLOOKUP(194,Übersetzung!$A$2:$D$301,4)))","v":"OP BESTELLING BESCHIKBAAR (voortzetting)"}]
[{"$f":"IF($L$1=\"D\",VLOOKUP(133,Übersetzung!$A$2:$D$301,2),IF($L$1=\"F\",VLOOKUP(133,Übersetzung!$A$2:$D$301,3),VLOOKUP(133,Übersetzung!$A$2:$D$301,4)))","v":"- Productie vanaf 50m² (kleinere hoeveelheden alleen maar als gegroepeerde bestelling mogelijk - Let op: eventueel langere levertermijn!).\n- Toeslag voor kleine hoeveelheden tot 100m² - kleuren kristal, lava & gletsjer: 55,- €.\n- Toeslag voor kleine hoeveelheden tot 100m² - kleuren basalt, toendra & leisteen: 170,- €.\n- Kortlengtes (200/250/300/350 cm) tot 10% getolereed.\n- Voor leveringen zonder kortlengtes berekenen wij 7% meerkosten!\n- Gelieve alltijd aan te geven of de bestelde hoeveelheid inclusief of zonder kortlengtes is. \n  Als er niets aangegeven wordt, zullen wij uw hoeveelheden altijd inclusief kortlengtes leveren.\n- Levertijd 6 - 8 weken (Een precieze levertermijn op aanvraag!)."}]
[]
[]
[{"$f":"IF($L$1=\"D\",VLOOKUP(137,Übersetzung!$A$2:$D$301,2),IF($L$1=\"F\",VLOOKUP(137,Übersetzung!$A$2:$D$301,3),VLOOKUP(137,Übersetzung!$A$2:$D$301,4)))","v":"Alle profielen, die technisch mogelijk zijn, kunnen op bestelling gefabriciëert worden. \nHier enkele voorbeelden. U vindt de prijzen op pagina 4."}]
[]
[]
[]
[]
[]
[]
[]
[]
[]
[]
[]
[]
[]
[]
[]
[]
[]
[]
[]
[]
[]
[]
[]
[]
[]
[{"$f":"IF($L$1=\"D\",VLOOKUP(195,Übersetzung!$A$2:$D$301,2),IF($L$1=\"F\",VLOOKUP(195,Übersetzung!$A$2:$D$301,3),VLOOKUP(195,Übersetzung!$A$2:$D$301,4)))","v":"3D-gevelbekleding"}]
[]
[{"$f":"IF($L$1=\"D\",VLOOKUP(200,Übersetzung!$A$2:$D$301,2),IF($L$1=\"F\",VLOOKUP(200,Übersetzung!$A$2:$D$301,3),VLOOKUP(200,Übersetzung!$A$2:$D$301,4)))","v":"Voorbeeldgevelbekleding in de kwaliteit \"select\" (3D-gevelbekleding is beschikbaar in een oneindelijk vele variaties. Voor uw persoonlijke variatie, contacteer ons!"}]
[]
[{"$f":"IF($L$1=\"D\",VLOOKUP(196,Übersetzung!$A$2:$D$301,2),IF($L$1=\"F\",VLOOKUP(196,Übersetzung!$A$2:$D$301,3),VLOOKUP(196,Übersetzung!$A$2:$D$301,4))) & \" 1\"","v":"Profiel 1"},"20x65mm"]
[{"$f":"IF($L$1=\"D\",VLOOKUP(196,Übersetzung!$A$2:$D$301,2),IF($L$1=\"F\",VLOOKUP(196,Übersetzung!$A$2:$D$301,3),VLOOKUP(196,Übersetzung!$A$2:$D$301,4))) & \" 2\"","v":"Profiel 2"},"60x40mm"]
[{"$f":"IF($L$1=\"D\",VLOOKUP(196,Übersetzung!$A$2:$D$301,2),IF($L$1=\"F\",VLOOKUP(196,Übersetzung!$A$2:$D$301,3),VLOOKUP(196,Übersetzung!$A$2:$D$301,4))) & \" 3\"","v":"Profiel 3"},"26x80mm"]
[{"$f":"IF($L$1=\"D\",VLOOKUP(196,Übersetzung!$A$2:$D$301,2),IF($L$1=\"F\",VLOOKUP(196,Übersetzung!$A$2:$D$301,3),VLOOKUP(196,Übersetzung!$A$2:$D$301,4))) & \" 4\"","v":"Profiel 4"},"20x140mm"]
[{"$f":"IF($L$1=\"D\",VLOOKUP(196,Übersetzung!$A$2:$D$301,2),IF($L$1=\"F\",VLOOKUP(196,Übersetzung!$A$2:$D$301,3),VLOOKUP(196,Übersetzung!$A$2:$D$301,4))) & \" 5\"","v":"Profiel 5"},"26x40mm"]
[{"$f":"IF($L$1=\"D\",VLOOKUP(196,Übersetzung!$A$2:$D$301,2),IF($L$1=\"F\",VLOOKUP(196,Übersetzung!$A$2:$D$301,3),VLOOKUP(196,Übersetzung!$A$2:$D$301,4))) & \" 6\"","v":"Profiel 6"},"20x65mm"]
[]
[]
[{"$f":"IF($L$1=\"D\",VLOOKUP(197,Übersetzung!$A$2:$D$301,2),IF($L$1=\"F\",VLOOKUP(197,Übersetzung!$A$2:$D$301,3),VLOOKUP(197,Übersetzung!$A$2:$D$301,4)))","v":"Richtprijs voor 100m²:"},"88,10 €/m²",null,null,null,{"$f":"IF($L$1=\"D\",VLOOKUP(198,Übersetzung!$A$2:$D$301,2),IF($L$1=\"F\",VLOOKUP(198,Übersetzung!$A$2:$D$301,3),VLOOKUP(198,Übersetzung!$A$2:$D$301,4)))","v":"Verbruik per profiel: ca. 2,8 m'/m²"}]
[]
[{"$f":"IF($L$1=\"D\",VLOOKUP(199,Übersetzung!$A$2:$D$301,2),IF($L$1=\"F\",VLOOKUP(199,Übersetzung!$A$2:$D$301,3),VLOOKUP(199,Übersetzung!$A$2:$D$301,4)))","v":"Voor deze 3D-gevelbekleding in DuraAkzent of DuraNatur (kwaliteit \"select\") berekenen wij meerkosten van 8%!"}]
[]
[]
[]
[]
[]
[]
[]
[]
[]
[]
[{"$f":"IF($L$1=\"D\",VLOOKUP(107,Übersetzung!$A$2:$D$149,2),IF($L$1=\"F\",VLOOKUP(107,Übersetzung!$A$2:$D$149,3),VLOOKUP(107,Übersetzung!$A$2:$D$149,4)))","v":"Geldig vanaf 1 maart 2018 !"},null,null,{"$f":"IF($L$1=\"D\",VLOOKUP(152,Übersetzung!$A$2:$D$300,2),IF($L$1=\"F\",VLOOKUP(152,Übersetzung!$A$2:$D$300,3),VLOOKUP(152,Übersetzung!$A$2:$D$300,4)))","v":"pagina:"},{"$f":"_xlfn.SHEET(D73)-1 & \"/\" & MargenVersionen!K6","v":"5/13"},null,null,{"$f":"IF($L$1=\"D\",VLOOKUP(185,Übersetzung!$A$2:$D$300,2),IF($L$1=\"F\",VLOOKUP(185,Übersetzung!$A$2:$D$300,3),VLOOKUP(185,Übersetzung!$A$2:$D$300,4)))","v":"v01"}]

{"sheet":"DuraAkzent (S.6)","index":6,"n_rows":59,"n_cols":19,"rows_kept":59,"cut":false,"hidden":false,"merged":[[37,11,38,11],[37,12,38,12],[3,15,3,18],[37,15,38,15],[37,16,38,16],[37,17,38,17],[37,18,38,18],[22,18,24,18],[7,15,7,18],[37,13,38,13],[22,13,24,13],[22,15,24,15],[22,16,24,16],[22,17,24,17],[22,11,24,11],[22,12,24,12],[37,6,38,6],[37,7,38,7],[39,0,39,4],[37,9,38,9],[37,10,38,10],[28,0,28,1],[28,4,28,7],[30,0,30,7],[3,9,3,13],[4,11,4,14],[22,3,24,3],[22,4,24,4],[12,3,14,3],[22,6,24,6],[22,7,24,7],[22,10,24,10],[4,16,4,19],[12,4,14,4],[12,13,14,13],[12,15,14,15],[12,16,14,16],[12,17,14,17],[12,18,14,18],[12,6,14,6],[12,7,14,7],[12,11,14,11],[12,12,14,12],[5,10,5,13],[5,15,5,18],[7,10,7,13],[12,10,14,10],[40,0,40,4],[41,0,41,4],[8,0,27,0],[8,1,27,1],[1,1,2,4],[6,0,6,7],[5,0,5,7],[31,0,31,7],[32,0,32,7],[33,0,33,7],[35,0,35,7],[37,1,38,1],[37,2,38,2],[37,3,38,3],[37,4,38,4],[37,5,38,5]]}
[null,null,null,null,null,null,null,null,null,"a",null,"d"]
[null,{"$f":"\"          \" & IF($J$1=\"a\",(IF($L$1=\"D\",VLOOKUP(48,Übersetzung!$A$2:$D$100,2),IF($L$1=\"F\",VLOOKUP(48,Übersetzung!$A$2:$D$100,3),VLOOKUP(48,Übersetzung!$A$2:$D$100,4)))),(IF($L$1=\"D\",VLOOKUP(125,Übersetzung!$A$2:$D$150,2),IF($L$1=\"F\",VLOOKUP(125,Übersetzung!$A$2:$D$150,3),VLOOKUP(125,Übersetzung!$A$2:$D$150,4)))))","v":"          Händlerpreisliste 2018"}]
[]
[null,null,null,null,null,null,null,null,null,"Leithändlerpreise 02/2018",null,null,null,null,null,"Umrechnung auf Nutzfläche (wo nötig)"]
[null,null,null,null,null,null,null,null,null,null,null,"Leithändlerpreise 01/2013",null,null,null,null,"Leithändlerpreise 01/2013"]
[{"$f":"IF($L$1=\"D\",VLOOKUP(193,Übersetzung!$A$2:$D$301,2),IF($L$1=\"F\",VLOOKUP(193,Übersetzung!$A$2:$D$301,3),VLOOKUP(193,Übersetzung!$A$2:$D$301,4)))","v":"KOMMISSIONSWARE"}]
[{"$f":"IF($L$1=\"D\",VLOOKUP(133,Übersetzung!$A$2:$D$301,2),IF($L$1=\"F\",VLOOKUP(133,Übersetzung!$A$2:$D$301,3),VLOOKUP(133,Übersetzung!$A$2:$D$301,4)))","v":"- Produktion ab 50m² (kleinere Mengen nur als Sammelauftrag möglich - Achtung: evt. längere Lieferzeit!).\n- Mindermengenzuschlag bis 100m² - Farbtöne Kristall, Lava & Gletscher: 55,- €.\n- Mindermengenzuschlag bis 100m² - Farbtöne Basalt, Tundra & Schiefer: 170,- €.\n- Verschnittlängen (200/250/300/350 cm) bis 10% mitgehend!\n- Für Lieferungen ohne Kurzlängen berechnen wir 7% Aufpreis. \n- Bitte bei Bestellung angeben, ob Bestellmenge zzgl. oder inkl. Verschnitt ist. \n  Wenn Sie nichts angeben, liefern wir inkl. Verschnittlängen!\n- Lieferzeit: 6 - 8 Wochen (Genaue Lieferzeit auf Anfrage!)."},null,null,null,null,null,null,null,null,"Marge W&R auf EK Habis","Kommisions- Preis","Anbruch-Preis ab 1 Paket","Paketpreis","6 Pakete",null,"Kommisions- Preis","Anbruch-preis ab 1 Paket","Paketpreis","6 Pakete"]
[{"$f":"IF($L$1=\"D\",VLOOKUP(1,Übersetzung!$A$2:$D$100,2),IF($L$1=\"F\",VLOOKUP(1,Übersetzung!$A$2:$D$100,3),VLOOKUP(1,Übersetzung!$A$2:$D$100,4)))","v":"Profile"},{"$f":"IF($L$1=\"D\",VLOOKUP(91,Übersetzung!$A$2:$D$100,2),IF($L$1=\"F\",VLOOKUP(91,Übersetzung!$A$2:$D$100,3),VLOOKUP(91,Übersetzung!$A$2:$D$100,4)))","v":"Qualität"},{"$f":"IF($L$1=\"D\",VLOOKUP(2,Übersetzung!$A$2:$D$100,2),IF($L$1=\"F\",VLOOKUP(2,Übersetzung!$A$2:$D$100,3),VLOOKUP(2,Übersetzung!$A$2:$D$100,4)))","v":"Dimension in mm Stärke x Breite"},{"$f":"IF($L$1=\"D\",VLOOKUP(3,Übersetzung!$A$2:$D$100,2),IF($L$1=\"F\",VLOOKUP(3,Übersetzung!$A$2:$D$100,3),VLOOKUP(3,Übersetzung!$A$2:$D$100,4)))","v":"Länge\n(m)"},{"$f":"IF($L$1=\"D\",VLOOKUP(4,Übersetzung!$A$2:$D$100,2),IF($L$1=\"F\",VLOOKUP(4,Übersetzung!$A$2:$D$100,3),VLOOKUP(4,Übersetzung!$A$2:$D$100,4)))","v":"VPE Bund/Paket"},{"$f":"IF($L$1=\"D\",VLOOKUP(176,Übersetzung!$A$2:$D$301,2),IF($L$1=\"F\",VLOOKUP(176,Übersetzung!$A$2:$D$301,3),VLOOKUP(176,Übersetzung!$A$2:$D$301,4)))","v":"Bedarf (m/m²)"},{"$f":"IF($L$1=\"D\",VLOOKUP(5,Übersetzung!$A$2:$D$100,2),IF($L$1=\"F\",VLOOKUP(5,Übersetzung!$A$2:$D$100,3),VLOOKUP(5,Übersetzung!$A$2:$D$100,4)))","v":"Kommissions-preis (weniger als ein Paket)"},{"$f":"IF($L$1=\"D\",VLOOKUP(7,Übersetzung!$A$2:$D$100,2),IF($L$1=\"F\",VLOOKUP(7,Übersetzung!$A$2:$D$100,3),VLOOKUP(7,Übersetzung!$A$2:$D$100,4)))","v":"Paketpreis"},null,{"$f":"IF($J$1=\"A\",VLOOKUP(1,MargenVersionen!$A$9:$G$12,2),IF($J$1=\"B\",VLOOKUP(1,MargenVersionen!$A$9:$G$12,4),VLOOKUP(1,MargenVersionen!$A$9:$G$12,6)))","v":0.3},"Hier die Preise eingeben!",null,null,null,null,"Felder werden automatisch berechnet!"]
[{"$f":"IF($L$1=\"D\",VLOOKUP(142,Übersetzung!$A$2:$D$301,2),IF($L$1=\"F\",VLOOKUP(142,Übersetzung!$A$2:$D$301,3),VLOOKUP(142,Übersetzung!$A$2:$D$301,4)))","v":"Große Auswahl an Profilen! Die technische Machbarkeit muss geprüft werden! Bitte fragen Sie uns!"},{"$f":"IF($L$1=\"D\",VLOOKUP(138,Übersetzung!$A$2:$D$301,2),IF($L$1=\"F\",VLOOKUP(138,Übersetzung!$A$2:$D$301,3),VLOOKUP(138,Übersetzung!$A$2:$D$301,4)))","v":"Selekt"},"21 x 40","4,0 / 5,0","4 / 224","/",{"$f":"K9+K9*$J$8","v":2.9899999999999998},2.8600000000000003,null,null,2.2999999999999998,2.2000000000000002,2.1,1.95]
[null,null,"21 x 55","4,0 / 5,0","4 / 224","/",3.6399999999999997,3.4449999999999998,null,null,2.8,2.65,2.5,2.2999999999999998]
[null,null,"21 x 65","4,0 / 5,0","4 / 224","/",3.835,3.6399999999999997,null,null,2.95,2.8,2.7,2.4500000000000002]
[null,null,"21 x 90","4,0 / 5,0","4 / 160","/",54.47,51.87,null,null,41.9,39.9,37.9,34.9]
[null,null,"21 x 116","4,0 / 5,0","4 / 112",null,58.760000000000005,55.769999999999996,null,null,45.2,42.9,40.700000000000003,37.5]
[null,null,"21 x 140",null,null,"/"]
[null,null,"21 x 170"]
[null,null,"26 x 40","4,0 / 5,0","4 / 224","/",{"$f":"K16+K16*$J$8","v":3.6399999999999997},3.5100000000000002,null,null,2.8,2.7,2.5499999999999998,2.35]
[null,null,"26 x 65","4,0 / 5,0","4 / 224","/",4.55,4.29,null,null,3.5,3.3,3.15,2.9]
[null,null,"26 x 140","4,0 / 5,0","4 /112","/",66.95,63.569999999999993,null,null,51.5,48.9,46.5,42.8]
[null,null,"40 x 40","4,0 / 5,0","4 / 224","/",4.9399999999999995,4.68,null,null,3.8,3.6,3.45,3.2]
[null,null,"40 x 55","4,0 / 5,0","4 / 224","/",5.9799999999999995,5.6549999999999994,null,null,4.5999999999999996,4.3499999999999996,4.1500000000000004,3.8]
[null,null,"40 x 65","4,0 / 5,0","4 / 224","/",6.8250000000000002,6.4350000000000005,null,null,5.25,4.95,4.7,4.3]
[null,null,"40 x 90","4,0 / 5,0","4 / 160","/",98.15,93.210000000000008,null,null,75.5,71.7,68.099999999999994,62.5]
[null,null,"40 x 116","4,0 / 5,0","4 / 112",null,94.25,89.570000000000007,null,null,72.5,68.900000000000006,65.5,60.3]
[null,null,"40 x 140",null,null,"/"]
[null,null,"40 x 170"]
[null,null,"50 x 40","4,0 / 5,0","4 / 224","/",{"$f":"K26+K26*$J$8","v":5.9799999999999995},5.6549999999999994,null,null,4.5999999999999996,4.3499999999999996,4.0999999999999996,3.8]
[null,null,"50 x 65","4,0 / 5,0","4 / 224","/",8.06,7.67,null,null,6.2,5.9,5.6,5.15]
[null,null,"50 x 140","4,0 / 5,0","4 / 112","/",113.75,108.02999999999999,null,null,87.5,83.1,78.900000000000006,72.5]
[{"$f":"IF($L$1=\"D\",VLOOKUP(103,Übersetzung!$A$2:$D$149,2),IF($L$1=\"F\",VLOOKUP(103,Übersetzung!$A$2:$D$149,3),VLOOKUP(103,Übersetzung!$A$2:$D$149,4))) & \"!!!\"","v":"Brettbreite = Berechnungsbreite!!!"},null,null,null,{"$f":"IF($L$1=\"D\",VLOOKUP(192,Übersetzung!$A$2:$D$301,2),IF($L$1=\"F\",VLOOKUP(192,Übersetzung!$A$2:$D$301,3),VLOOKUP(192,Übersetzung!$A$2:$D$301,4)))","v":"Beispielprofile finden Sie auf Seite 5."}]
[]
[{"$f":"IF($L$1=\"D\",VLOOKUP(141,Übersetzung!$A$2:$D$301,2),IF($L$1=\"F\",VLOOKUP(141,Übersetzung!$A$2:$D$301,3),VLOOKUP(141,Übersetzung!$A$2:$D$301,4)))","v":"Qualität: KEILGEZINKT"}]
[{"$f":"IF($L$1=\"D\",VLOOKUP(15,Übersetzung!$A$2:$D$301,2),IF($L$1=\"F\",VLOOKUP(15,Übersetzung!$A$2:$D$301,3),VLOOKUP(15,Übersetzung!$A$2:$D$301,4)))","v":"- Standardlängen von 3,0m bis 6,0m in Schritten von 10cm!\n- Keine Kurzlängen wie bei der Qualität \"Selekt\", dafür Mehrlieferungen bis 5% mitgehend!\n- Alle Dimensionen wie bei der Qualität \"Selekt\" möglich, außer 21x170mm und 40x170mm."}]
[{"$f":"IF($L$1=\"D\",VLOOKUP(190,Übersetzung!$A$2:$D$301,2),IF($L$1=\"F\",VLOOKUP(190,Übersetzung!$A$2:$D$301,3),VLOOKUP(190,Übersetzung!$A$2:$D$301,4)))","v":"- Preisbasis: Qualität \"Selekt\" + 5% Aufschlag."}]
[{"$f":"IF($L$1=\"D\",VLOOKUP(191,Übersetzung!$A$2:$D$301,2),IF($L$1=\"F\",VLOOKUP(191,Übersetzung!$A$2:$D$301,3),VLOOKUP(191,Übersetzung!$A$2:$D$301,4)))","v":"- Sonderlängen (z. Bsp. 3,54m oder 5,42m) sowie Überlängen (>6,0m) auf Anfrage möglich."}]
[]
[{"$f":"IF($L$1=\"D\",VLOOKUP(9,Übersetzung!$A$2:$D$301,2),IF($L$1=\"F\",VLOOKUP(9,Übersetzung!$A$2:$D$301,3),VLOOKUP(9,Übersetzung!$A$2:$D$301,4)))","v":"Qualität: PREMIUM"}]
[{"$f":"IF($L$1=\"D\",VLOOKUP(1,Übersetzung!$A$2:$D$100,2),IF($L$1=\"F\",VLOOKUP(1,Übersetzung!$A$2:$D$100,3),VLOOKUP(1,Übersetzung!$A$2:$D$100,4)))","v":"Profile"},{"$f":"IF($L$1=\"D\",VLOOKUP(91,Übersetzung!$A$2:$D$100,2),IF($L$1=\"F\",VLOOKUP(91,Übersetzung!$A$2:$D$100,3),VLOOKUP(91,Übersetzung!$A$2:$D$100,4)))","v":"Qualität"},{"$f":"IF($L$1=\"D\",VLOOKUP(2,Übersetzung!$A$2:$D$100,2),IF($L$1=\"F\",VLOOKUP(2,Übersetzung!$A$2:$D$100,3),VLOOKUP(2,Übersetzung!$A$2:$D$100,4)))","v":"Dimension in mm Stärke x Breite"},{"$f":"IF($L$1=\"D\",VLOOKUP(3,Übersetzung!$A$2:$D$100,2),IF($L$1=\"F\",VLOOKUP(3,Übersetzung!$A$2:$D$100,3),VLOOKUP(3,Übersetzung!$A$2:$D$100,4)))","v":"Länge\n(m)"},{"$f":"IF($L$1=\"D\",VLOOKUP(4,Übersetzung!$A$2:$D$100,2),IF($L$1=\"F\",VLOOKUP(4,Übersetzung!$A$2:$D$100,3),VLOOKUP(4,Übersetzung!$A$2:$D$100,4)))","v":"VPE Bund/Paket"},{"$f":"IF($L$1=\"D\",VLOOKUP(176,Übersetzung!$A$2:$D$301,2),IF($L$1=\"F\",VLOOKUP(176,Übersetzung!$A$2:$D$301,3),VLOOKUP(176,Übersetzung!$A$2:$D$301,4)))","v":"Bedarf (m/m²)"},{"$f":"IF($L$1=\"D\",VLOOKUP(5,Übersetzung!$A$2:$D$100,2),IF($L$1=\"F\",VLOOKUP(5,Übersetzung!$A$2:$D$100,3),VLOOKUP(5,Übersetzung!$A$2:$D$100,4)))","v":"Kommissions-preis (weniger als ein Paket)"},{"$f":"IF($L$1=\"D\",VLOOKUP(7,Übersetzung!$A$2:$D$100,2),IF($L$1=\"F\",VLOOKUP(7,Übersetzung!$A$2:$D$100,3),VLOOKUP(7,Übersetzung!$A$2:$D$100,4)))","v":"Paketpreis"}]
[{"$f":"IF($L$1=\"D\",VLOOKUP(100,Übersetzung!$A$2:$D$100,2),IF($L$1=\"F\",VLOOKUP(100,Übersetzung!$A$2:$D$100,3),VLOOKUP(100,Übersetzung!$A$2:$D$100,4)))","v":"Deckleiste"},{"$f":"IF($L$1=\"D\",VLOOKUP(139,Übersetzung!$A$2:$D$301,2),IF($L$1=\"F\",VLOOKUP(139,Übersetzung!$A$2:$D$301,3),VLOOKUP(139,Übersetzung!$A$2:$D$301,4)))","v":"Premium"},"23 x 75",5,"4 / 224","11,77*",{"$f":"K38+K38*$J$38","v":4.8100000000000005},{"$f":"L38+L38*$J$38","v":4.55},null,{"$f":"IF($J$1=\"A\",VLOOKUP(1,MargenVersionen!$A$9:$G$12,2),IF($J$1=\"B\",VLOOKUP(1,MargenVersionen!$A$9:$G$12,4),VLOOKUP(1,MargenVersionen!$A$9:$G$12,6)))","v":0.3},3.7,3.5,3.3,3.05]
[{"$f":"IF($L$1=\"D\",VLOOKUP(104,Übersetzung!$A$2:$D$149,2),IF($L$1=\"F\",VLOOKUP(104,Übersetzung!$A$2:$D$149,3),VLOOKUP(104,Übersetzung!$A$2:$D$149,4)))","v":"Leistenbreite = Berechnungsbreite"}]
[{"$f":"IF($L$1=\"D\",VLOOKUP(175,Übersetzung!$A$2:$D$301,2),IF($L$1=\"F\",VLOOKUP(175,Übersetzung!$A$2:$D$301,3),VLOOKUP(175,Übersetzung!$A$2:$D$301,4)))","v":"*Auf Basis einer Schattenfuge von 10mm!!!"},null,null,null,null,8]
[{"$f":"IF($L$1=\"D\",VLOOKUP(51,Übersetzung!$A$2:$D$100,2),IF($L$1=\"F\",VLOOKUP(51,Übersetzung!$A$2:$D$100,3),VLOOKUP(51,Übersetzung!$A$2:$D$100,4)))","v":"Beistreichfarbe"},null,null,null,null,{"$f":"IF($L$1=\"D\",VLOOKUP(179,Übersetzung!$A$2:$D$301,2),IF($L$1=\"F\",VLOOKUP(179,Übersetzung!$A$2:$D$301,3),VLOOKUP(179,Übersetzung!$A$2:$D$301,4)))","v":"Verbrauch (m²/Liter)"},{"$f":"IF($L$1=\"D\",VLOOKUP(20,Übersetzung!$A$2:$D$100,2),IF($L$1=\"F\",VLOOKUP(20,Übersetzung!$A$2:$D$100,3),VLOOKUP(20,Übersetzung!$A$2:$D$100,4)))","v":"Gebinde 1L "},{"$f":"IF($L$1=\"D\",VLOOKUP(21,Übersetzung!$A$2:$D$100,2),IF($L$1=\"F\",VLOOKUP(21,Übersetzung!$A$2:$D$100,3),VLOOKUP(21,Übersetzung!$A$2:$D$100,4)))","v":"Gebinde 5L"}]
[{"$f":"IF($L$1=\"D\",VLOOKUP(206,Übersetzung!$A$2:$D$301,2),IF($L$1=\"F\",VLOOKUP(206,Übersetzung!$A$2:$D$301,3),VLOOKUP(206,Übersetzung!$A$2:$D$301,4)))","v":"Zum Streichen von Schnittkanten und zum vollflächigen Überarbeiten. \nFür Farbton: Mattschwarz"},null,null,null,null,"max. 70",{"$f":"K42+K42*$J$42","v":28.48},{"$f":"L42+L42*$J$42","v":113.92},null,{"$f":"IF($J$1=\"A\",VLOOKUP(4,MargenVersionen!$A$9:$G$12,2),IF($J$1=\"B\",VLOOKUP(4,MargenVersionen!$A$9:$G$12,4),VLOOKUP(4,MargenVersionen!$A$9:$G$12,6)))","v":0.6},17.8,71.2]
[]
[]
[]
[]
[]
[]
[]
[]
[]
[]
[]
[]
[]
[]
[]
[]
[{"$f":"IF($L$1=\"D\",VLOOKUP(107,Übersetzung!$A$2:$D$149,2),IF($L$1=\"F\",VLOOKUP(107,Übersetzung!$A$2:$D$149,3),VLOOKUP(107,Übersetzung!$A$2:$D$149,4)))","v":"Gültig ab 1. März 2018 !"},null,null,{"$f":"IF($L$1=\"D\",VLOOKUP(152,Übersetzung!$A$2:$D$300,2),IF($L$1=\"F\",VLOOKUP(152,Übersetzung!$A$2:$D$300,3),VLOOKUP(152,Übersetzung!$A$2:$D$300,4)))","v":"Seite: "},{"$f":"_xlfn.SHEET(D73)-1 & \"/\" & MargenVersionen!K6","v":"6/13"},null,null,{"$f":"IF($L$1=\"D\",VLOOKUP(185,Übersetzung!$A$2:$D$300,2),IF($L$1=\"F\",VLOOKUP(185,Übersetzung!$A$2:$D$300,3),VLOOKUP(185,Übersetzung!$A$2:$D$300,4)))","v":"v01"}]

{"sheet":"DuraNatur (S.7)","index":7,"n_rows":56,"n_cols":19,"rows_kept":56,"cut":false,"hidden":false,"merged":[[22,10,24,10],[22,11,24,11],[22,12,24,12],[22,13,24,13],[28,0,28,1],[28,4,28,7],[12,17,14,17],[12,18,14,18],[34,0,34,7],[36,0,36,7],[39,9,40,9],[39,10,40,10],[39,15,40,15],[39,7,40,7],[39,6,40,6],[39,11,40,11],[30,0,30,7],[32,0,32,7],[33,0,33,7],[22,3,24,3],[22,4,24,4],[22,6,24,6],[12,11,14,11],[12,12,14,12],[12,13,14,13],[12,15,14,15],[12,16,14,16],[39,16,40,16],[39,17,40,17],[39,18,40,18],[22,15,24,15],[1,2,2,6],[6,0,6,7],[2,8,3,8],[3,15,3,18],[4,11,4,14],[4,16,4,19],[5,10,5,13],[5,15,5,18],[3,10,3,13],[12,6,14,6],[12,7,14,7],[12,10,14,10],[5,0,5,7],[39,1,40,1],[22,16,24,16],[41,0,42,4],[41,5,42,5],[39,4,40,4],[39,3,40,3],[39,2,40,2],[7,10,7,13],[7,15,7,18],[12,3,14,3],[12,4,14,4],[22,17,24,17],[22,18,24,18],[39,13,40,13],[39,12,40,12],[44,9,45,9],[8,0,27,0],[8,1,27,1],[45,0,45,4],[39,5,40,5],[44,0,44,4],[43,0,43,4],[22,7,24,7]]}
[null,null,null,null,null,null,null,null,null,"a",null,"n"]
[null,null,{"$f":"IF($J$1=\"a\",(IF($L$1=\"D\",VLOOKUP(48,Übersetzung!$A$2:$D$100,2),IF($L$1=\"F\",VLOOKUP(48,Übersetzung!$A$2:$D$100,3),VLOOKUP(48,Übersetzung!$A$2:$D$100,4)))),(IF($L$1=\"D\",VLOOKUP(125,Übersetzung!$A$2:$D$150,2),IF($L$1=\"F\",VLOOKUP(125,Übersetzung!$A$2:$D$150,3),VLOOKUP(125,Übersetzung!$A$2:$D$150,4)))))","v":"Prijslijst handelaars 2018"},{"$f":"IF($L$1=\"D\",VLOOKUP(3,Übersetzung!$A$2:$D$100,2),IF($L$1=\"F\",VLOOKUP(3,Übersetzung!$A$2:$D$100,3),VLOOKUP(3,Übersetzung!$A$2:$D$100,4)))","v":"Lengte\n(m)"},{"$f":"IF($L$1=\"D\",VLOOKUP(3,Übersetzung!$A$2:$D$100,2),IF($L$1=\"F\",VLOOKUP(3,Übersetzung!$A$2:$D$100,3),VLOOKUP(3,Übersetzung!$A$2:$D$100,4)))","v":"Lengte\n(m)"},null,{"$f":"IF($L$1=\"D\",VLOOKUP(3,Übersetzung!$A$2:$D$100,2),IF($L$1=\"F\",VLOOKUP(3,Übersetzung!$A$2:$D$100,3),VLOOKUP(3,Übersetzung!$A$2:$D$100,4)))","v":"Lengte\n(m)"}]
[null,null,{"$f":"IF($L$1=\"D\",VLOOKUP(3,Übersetzung!$A$2:$D$100,2),IF($L$1=\"F\",VLOOKUP(3,Übersetzung!$A$2:$D$100,3),VLOOKUP(3,Übersetzung!$A$2:$D$100,4)))","v":"Lengte\n(m)"},{"$f":"IF($L$1=\"D\",VLOOKUP(3,Übersetzung!$A$2:$D$100,2),IF($L$1=\"F\",VLOOKUP(3,Übersetzung!$A$2:$D$100,3),VLOOKUP(3,Übersetzung!$A$2:$D$100,4)))","v":"Lengte\n(m)"},{"$f":"IF($L$1=\"D\",VLOOKUP(3,Übersetzung!$A$2:$D$100,2),IF($L$1=\"F\",VLOOKUP(3,Übersetzung!$A$2:$D$100,3),VLOOKUP(3,Übersetzung!$A$2:$D$100,4)))","v":"Lengte\n(m)"},null,{"$f":"IF($L$1=\"D\",VLOOKUP(3,Übersetzung!$A$2:$D$100,2),IF($L$1=\"F\",VLOOKUP(3,Übersetzung!$A$2:$D$100,3),VLOOKUP(3,Übersetzung!$A$2:$D$100,4)))","v":"Lengte\n(m)"}]
[null,null,null,null,null,null,null,null,null,null,"Leithändlerpreise 03/2016",null,null,null,null,"Umrechnung auf Nutzfläche (wo nötig)"]
[null,null,null,null,null,null,null,null,null,null,null,"Leithändlerpreise 01/2013",null,null,null,null,"Leithändlerpreise 01/2013"]
[{"$f":"IF($L$1=\"D\",VLOOKUP(193,Übersetzung!$A$2:$D$301,2),IF($L$1=\"F\",VLOOKUP(193,Übersetzung!$A$2:$D$301,3),VLOOKUP(193,Übersetzung!$A$2:$D$301,4)))","v":"OP BESTELLING BESCHIKBAAR"}]
[{"$f":"IF($L$1=\"D\",VLOOKUP(133,Übersetzung!$A$2:$D$301,2),IF($L$1=\"F\",VLOOKUP(133,Übersetzung!$A$2:$D$301,3),VLOOKUP(133,Übersetzung!$A$2:$D$301,4)))","v":"- Productie vanaf 50m² (kleinere hoeveelheden alleen maar als gegroepeerde bestelling mogelijk - Let op: eventueel langere levertermijn!).\n- Toeslag voor kleine hoeveelheden tot 100m² - kleuren kristal, lava & gletsjer: 55,- €.\n- Toeslag voor kleine hoeveelheden tot 100m² - kleuren basalt, toendra & leisteen: 170,- €.\n- Kortlengtes (200/250/300/350 cm) tot 10% getolereed.\n- Voor leveringen zonder kortlengtes berekenen wij 7% meerkosten!\n- Gelieve alltijd aan te geven of de bestelde hoeveelheid inclusief of zonder kortlengtes is. \n  Als er niets aangegeven wordt, zullen wij uw hoeveelheden altijd inclusief kortlengtes leveren.\n- Levertijd 6 - 8 weken (Een precieze levertermijn op aanvraag!)."},null,null,null,null,null,null,null,null,"Marge W&R auf EK Habis","Kommisions- Preis","Anbruch-Preis ab 1 Paket","Paketpreis","6 Pakete",null,"Kommisions- Preis","Anbruch-preis ab 1 Paket","Paketpreis","6 Pakete"]
[{"$f":"IF($L$1=\"D\",VLOOKUP(1,Übersetzung!$A$2:$D$100,2),IF($L$1=\"F\",VLOOKUP(1,Übersetzung!$A$2:$D$100,3),VLOOKUP(1,Übersetzung!$A$2:$D$100,4)))","v":"Profielen"},{"$f":"IF($L$1=\"D\",VLOOKUP(91,Übersetzung!$A$2:$D$100,2),IF($L$1=\"F\",VLOOKUP(91,Übersetzung!$A$2:$D$100,3),VLOOKUP(91,Übersetzung!$A$2:$D$100,4)))","v":"Kwaliteit"},{"$f":"IF($L$1=\"D\",VLOOKUP(2,Übersetzung!$A$2:$D$100,2),IF($L$1=\"F\",VLOOKUP(2,Übersetzung!$A$2:$D$100,3),VLOOKUP(2,Übersetzung!$A$2:$D$100,4)))","v":"Afmeting in mm dikte x breedte"},{"$f":"IF($L$1=\"D\",VLOOKUP(3,Übersetzung!$A$2:$D$100,2),IF($L$1=\"F\",VLOOKUP(3,Übersetzung!$A$2:$D$100,3),VLOOKUP(3,Übersetzung!$A$2:$D$100,4)))","v":"Lengte\n(m)"},{"$f":"IF($L$1=\"D\",VLOOKUP(4,Übersetzung!$A$2:$D$100,2),IF($L$1=\"F\",VLOOKUP(4,Übersetzung!$A$2:$D$100,3),VLOOKUP(4,Übersetzung!$A$2:$D$100,4)))","v":"Verpakking per bundel/pakket"},{"$f":"IF($L$1=\"D\",VLOOKUP(176,Übersetzung!$A$2:$D$301,2),IF($L$1=\"F\",VLOOKUP(176,Übersetzung!$A$2:$D$301,3),VLOOKUP(176,Übersetzung!$A$2:$D$301,4)))","v":"Verbruik (m/m²)"},{"$f":"IF($L$1=\"D\",VLOOKUP(5,Übersetzung!$A$2:$D$100,2),IF($L$1=\"F\",VLOOKUP(5,Übersetzung!$A$2:$D$100,3),VLOOKUP(5,Übersetzung!$A$2:$D$100,4)))","v":"Prijs kleine hoeveelheid (minder dan één pakket)"},{"$f":"IF($L$1=\"D\",VLOOKUP(7,Übersetzung!$A$2:$D$100,2),IF($L$1=\"F\",VLOOKUP(7,Übersetzung!$A$2:$D$100,3),VLOOKUP(7,Übersetzung!$A$2:$D$100,4)))","v":"Pakketprijs"},null,{"$f":"IF($J$1=\"A\",VLOOKUP(1,MargenVersionen!$A$9:$G$12,2),IF($J$1=\"B\",VLOOKUP(1,MargenVersionen!$A$9:$G$12,4),VLOOKUP(1,MargenVersionen!$A$9:$G$12,6)))","v":0.3},"Hier die Preise eingeben!",null,null,null,null,"Felder werden automatisch berechnet!"]
[{"$f":"IF($L$1=\"D\",VLOOKUP(142,Übersetzung!$A$2:$D$301,2),IF($L$1=\"F\",VLOOKUP(142,Übersetzung!$A$2:$D$301,3),VLOOKUP(142,Übersetzung!$A$2:$D$301,4)))","v":"Groote keuze aan profielen! De technische haalbaarheid moet gecontrolleerd worden! Contacteer ons!"},{"$f":"IF($L$1=\"D\",VLOOKUP(138,Übersetzung!$A$2:$D$301,2),IF($L$1=\"F\",VLOOKUP(138,Übersetzung!$A$2:$D$301,3),VLOOKUP(138,Übersetzung!$A$2:$D$301,4)))","v":"Select"},"21 x 40","4,0 / 5,0","4 / 224","/",{"$f":"K9+K9*$J$8","v":2.9899999999999998},2.8600000000000003,null,null,2.2999999999999998,2.2000000000000002,2.1,1.95]
[null,null,"21 x 55","4,0 / 5,0","4 / 224","/",3.6399999999999997,3.4449999999999998,null,null,2.8,2.65,2.5,2.2999999999999998]
[null,null,"21 x 65","4,0 / 5,0","4 / 224","/",3.835,3.6399999999999997,null,null,2.95,2.8,2.7,2.4500000000000002]
[null,null,"21 x 90","4,0 / 5,0","4 / 160","/",54.47,51.87,null,null,41.9,39.9,37.9,34.9]
[null,null,"21 x 116","4,0 / 5,0","4 / 112",null,58.760000000000005,55.769999999999996,null,null,45.2,42.9,40.700000000000003,37.5]
[null,null,"21 x 140",null,null,"/"]
[null,null,"21 x 170"]
[null,null,"26 x 40","4,0 / 5,0","4 / 224","/",{"$f":"K16+K16*$J$8","v":3.6399999999999997},3.5100000000000002,null,null,2.8,2.7,2.5499999999999998,2.35]
[null,null,"26 x 65","4,0 / 5,0","4 / 224","/",4.55,4.29,null,null,3.5,3.3,3.15,2.9]
[null,null,"26 x 140","4,0 / 5,0","4 /112","/",66.95,63.569999999999993,null,null,51.5,48.9,46.5,42.8]
[null,null,"40 x 40","4,0 / 5,0","4 / 224","/",4.9399999999999995,4.68,null,null,3.8,3.6,3.45,3.2]
[null,null,"40 x 55","4,0 / 5,0","4 / 224","/",5.9799999999999995,5.6549999999999994,null,null,4.5999999999999996,4.3499999999999996,4.1500000000000004,3.8]
[null,null,"40 x 65","4,0 / 5,0","4 / 224","/",6.8250000000000002,6.4350000000000005,null,null,5.25,4.95,4.7,4.3]
[null,null,"40 x 90","4,0 / 5,0","4 / 160","/",98.15,93.210000000000008,null,null,75.5,71.7,68.099999999999994,62.5]
[null,null,"40 x 116","4,0 / 5,0","4 / 112",null,94.25,89.570000000000007,null,null,72.5,68.900000000000006,65.5,60.3]
[null,null,"40 x 140",null,null,"/"]
[null,null,"40 x 170"]
[null,null,"50 x 40","4,0 / 5,0","4 / 224","/",{"$f":"K26+K26*$J$8","v":5.9799999999999995},5.6549999999999994,null,null,4.5999999999999996,4.3499999999999996,4.0999999999999996,3.8]
[null,null,"50 x 65","4,0 / 5,0","4 / 224","/",8.06,7.67,null,null,6.2,5.9,5.6,5.15]
[null,null,"50 x 140","4,0 / 5,0","4 / 112","/",113.75,108.02999999999999,null,null,87.5,83.1,78.900000000000006,72.5]
[{"$f":"IF($L$1=\"D\",VLOOKUP(103,Übersetzung!$A$2:$D$149,2),IF($L$1=\"F\",VLOOKUP(103,Übersetzung!$A$2:$D$149,3),VLOOKUP(103,Übersetzung!$A$2:$D$149,4))) & \"!!!\"","v":"Plankbreedte = berekeningsmaat!!!"},null,null,null,{"$f":"IF($L$1=\"D\",VLOOKUP(192,Übersetzung!$A$2:$D$301,2),IF($L$1=\"F\",VLOOKUP(192,Übersetzung!$A$2:$D$301,3),VLOOKUP(192,Übersetzung!$A$2:$D$301,4)))","v":"Voorbeeldprofielen vind u op pagina 5."}]
[]
[{"$f":"IF($L$1=\"D\",VLOOKUP(141,Übersetzung!$A$2:$D$301,2),IF($L$1=\"F\",VLOOKUP(141,Übersetzung!$A$2:$D$301,3),VLOOKUP(141,Übersetzung!$A$2:$D$301,4)))","v":"Kwaliteit: GEVINGERLAST"}]
[]
[{"$f":"IF($L$1=\"D\",VLOOKUP(15,Übersetzung!$A$2:$D$301,2),IF($L$1=\"F\",VLOOKUP(15,Übersetzung!$A$2:$D$301,3),VLOOKUP(15,Übersetzung!$A$2:$D$301,4)))","v":"- Standaardlengtes van 3,0m tot 6,0m in stappen van 10cm!\n- Geen kortlengtes zoals bij de kwaliteit \"select\", maar tot 5% meerlevering mogelijk!\n- Alle afmetingen zoals bij de kwallteit \"select\", behalve 21x170mm en 40x170mm."}]
[{"$f":"IF($L$1=\"D\",VLOOKUP(190,Übersetzung!$A$2:$D$301,2),IF($L$1=\"F\",VLOOKUP(190,Übersetzung!$A$2:$D$301,3),VLOOKUP(190,Übersetzung!$A$2:$D$301,4)))","v":"- Prijsbasis: Kwaliteit \"select\" + 5% toeslag."}]
[{"$f":"IF($L$1=\"D\",VLOOKUP(191,Übersetzung!$A$2:$D$301,2),IF($L$1=\"F\",VLOOKUP(191,Übersetzung!$A$2:$D$301,3),VLOOKUP(191,Übersetzung!$A$2:$D$301,4)))","v":"- Speciale lengtes (bvb. 3,54m of 5,42m), alsook grotere lengtes (>6,0m) op aanvraag mogelijk. "}]
[]
[{"$f":"IF($L$1=\"D\",VLOOKUP(9,Übersetzung!$A$2:$D$301,2),IF($L$1=\"F\",VLOOKUP(9,Übersetzung!$A$2:$D$301,3),VLOOKUP(9,Übersetzung!$A$2:$D$301,4)))","v":"Kwaliteit: PREMIUM"}]
[]
[{"$f":"IF($L$1=\"D\",VLOOKUP(1,Übersetzung!$A$2:$D$100,2),IF($L$1=\"F\",VLOOKUP(1,Übersetzung!$A$2:$D$100,3),VLOOKUP(1,Übersetzung!$A$2:$D$100,4)))","v":"Profielen"},{"$f":"IF($L$1=\"D\",VLOOKUP(91,Übersetzung!$A$2:$D$100,2),IF($L$1=\"F\",VLOOKUP(91,Übersetzung!$A$2:$D$100,3),VLOOKUP(91,Übersetzung!$A$2:$D$100,4)))","v":"Kwaliteit"},{"$f":"IF($L$1=\"D\",VLOOKUP(2,Übersetzung!$A$2:$D$100,2),IF($L$1=\"F\",VLOOKUP(2,Übersetzung!$A$2:$D$100,3),VLOOKUP(2,Übersetzung!$A$2:$D$100,4)))","v":"Afmeting in mm dikte x breedte"},{"$f":"IF($L$1=\"D\",VLOOKUP(3,Übersetzung!$A$2:$D$100,2),IF($L$1=\"F\",VLOOKUP(3,Übersetzung!$A$2:$D$100,3),VLOOKUP(3,Übersetzung!$A$2:$D$100,4)))","v":"Lengte\n(m)"},{"$f":"IF($L$1=\"D\",VLOOKUP(4,Übersetzung!$A$2:$D$100,2),IF($L$1=\"F\",VLOOKUP(4,Übersetzung!$A$2:$D$100,3),VLOOKUP(4,Übersetzung!$A$2:$D$100,4)))","v":"Verpakking per bundel/pakket"},{"$f":"IF($L$1=\"D\",VLOOKUP(176,Übersetzung!$A$2:$D$301,2),IF($L$1=\"F\",VLOOKUP(176,Übersetzung!$A$2:$D$301,3),VLOOKUP(176,Übersetzung!$A$2:$D$301,4)))","v":"Verbruik (m/m²)"},{"$f":"IF($L$1=\"D\",VLOOKUP(5,Übersetzung!$A$2:$D$100,2),IF($L$1=\"F\",VLOOKUP(5,Übersetzung!$A$2:$D$100,3),VLOOKUP(5,Übersetzung!$A$2:$D$100,4)))","v":"Prijs kleine hoeveelheid (minder dan één pakket)"},{"$f":"IF($L$1=\"D\",VLOOKUP(7,Übersetzung!$A$2:$D$100,2),IF($L$1=\"F\",VLOOKUP(7,Übersetzung!$A$2:$D$100,3),VLOOKUP(7,Übersetzung!$A$2:$D$100,4)))","v":"Pakketprijs"}]
[{"$f":"IF($L$1=\"D\",VLOOKUP(100,Übersetzung!$A$2:$D$100,2),IF($L$1=\"F\",VLOOKUP(100,Übersetzung!$A$2:$D$100,3),VLOOKUP(100,Übersetzung!$A$2:$D$100,4)))","v":"Deklijst "},{"$f":"IF($L$1=\"D\",VLOOKUP(139,Übersetzung!$A$2:$D$301,2),IF($L$1=\"F\",VLOOKUP(139,Übersetzung!$A$2:$D$301,3),VLOOKUP(139,Übersetzung!$A$2:$D$301,4)))","v":"Premium"},"23 x 75",5,"4 / 224","11,77*",{"$f":"K40+K40*$J$40","v":4.8100000000000005},{"$f":"L40+L40*$J$40","v":4.55},null,{"$f":"IF($J$1=\"A\",VLOOKUP(1,MargenVersionen!$A$9:$G$12,2),IF($J$1=\"B\",VLOOKUP(1,MargenVersionen!$A$9:$G$12,4),VLOOKUP(1,MargenVersionen!$A$9:$G$12,6)))","v":0.3},3.7,3.5,3.3,3.05]
[{"$f":"IF($L$1=\"D\",VLOOKUP(104,Übersetzung!$A$2:$D$149,2),IF($L$1=\"F\",VLOOKUP(104,Übersetzung!$A$2:$D$149,3),VLOOKUP(104,Übersetzung!$A$2:$D$149,4)))","v":"Breedte lijst  = berekeningsmaat"}]
[{"$f":"IF($L$1=\"D\",VLOOKUP(175,Übersetzung!$A$2:$D$301,2),IF($L$1=\"F\",VLOOKUP(175,Übersetzung!$A$2:$D$301,3),VLOOKUP(175,Übersetzung!$A$2:$D$301,4)))","v":"*Op basis van een schaduwvoeg van 10mm!!"},null,null,null,null,8]
[]
[{"$f":"IF($L$1=\"D\",VLOOKUP(51,Übersetzung!$A$2:$D$100,2),IF($L$1=\"F\",VLOOKUP(51,Übersetzung!$A$2:$D$100,3),VLOOKUP(51,Übersetzung!$A$2:$D$100,4)))","v":"Verf"},null,null,null,null,{"$f":"IF($L$1=\"D\",VLOOKUP(179,Übersetzung!$A$2:$D$301,2),IF($L$1=\"F\",VLOOKUP(179,Übersetzung!$A$2:$D$301,3),VLOOKUP(179,Übersetzung!$A$2:$D$301,4)))","v":"Verbruik (m²/liter)"},{"$f":"IF($L$1=\"D\",VLOOKUP(20,Übersetzung!$A$2:$D$100,2),IF($L$1=\"F\",VLOOKUP(20,Übersetzung!$A$2:$D$100,3),VLOOKUP(20,Übersetzung!$A$2:$D$100,4)))","v":"Blik 1 l"},{"$f":"IF($L$1=\"D\",VLOOKUP(21,Übersetzung!$A$2:$D$100,2),IF($L$1=\"F\",VLOOKUP(21,Übersetzung!$A$2:$D$100,3),VLOOKUP(21,Übersetzung!$A$2:$D$100,4)))","v":"Blik 5 l"}]
[{"$f":"IF($L$1=\"D\",VLOOKUP(183,Übersetzung!$A$2:$D$301,2),IF($L$1=\"F\",VLOOKUP(183,Übersetzung!$A$2:$D$301,3),VLOOKUP(183,Übersetzung!$A$2:$D$301,4)))","v":"Om de snijkanten en volledige oppervlakken te behandelen. \nVoor de kleuren: Arizona, Nubia, Savanna"},null,null,null,null,"max. 70",{"$f":"K45+K45*$J$45","v":28.48},{"$f":"L45+L45*$J$45","v":113.92},null,{"$f":"IF($J$1=\"A\",VLOOKUP(4,MargenVersionen!$A$9:$G$12,2),IF($J$1=\"B\",VLOOKUP(4,MargenVersionen!$A$9:$G$12,4),VLOOKUP(4,MargenVersionen!$A$9:$G$12,6)))","v":0.6},17.8,71.2]
[{"$f":"IF($L$1=\"D\",VLOOKUP(184,Übersetzung!$A$2:$D$301,2),IF($L$1=\"F\",VLOOKUP(184,Übersetzung!$A$2:$D$301,3),VLOOKUP(184,Übersetzung!$A$2:$D$301,4)))","v":"Voor aangrenzende bouwdelen uit geschaafde spar, bijv. zichtbare balken. \nVoor de kleuren: Arizona, Nubia, Savanna"},null,null,null,null,"ca. 6,25",{"$f":"K46+K46*$J$45","v":28},{"$f":"L46+L46*$J$45","v":95.199999999999989},null,null,17.5,59.5]
[]
[]
[]
[]
[]
[]
[]
[]
[]
[{"$f":"IF($L$1=\"D\",VLOOKUP(107,Übersetzung!$A$2:$D$149,2),IF($L$1=\"F\",VLOOKUP(107,Übersetzung!$A$2:$D$149,3),VLOOKUP(107,Übersetzung!$A$2:$D$149,4)))","v":"Geldig vanaf 1 maart 2018 !"},null,null,{"$f":"IF($L$1=\"D\",VLOOKUP(152,Übersetzung!$A$2:$D$300,2),IF($L$1=\"F\",VLOOKUP(152,Übersetzung!$A$2:$D$300,3),VLOOKUP(152,Übersetzung!$A$2:$D$300,4)))","v":"pagina:"},{"$f":"_xlfn.SHEET(D73)-1 & \"/\" & MargenVersionen!K6","v":"7/13"},null,null,{"$f":"IF($L$1=\"D\",VLOOKUP(185,Übersetzung!$A$2:$D$300,2),IF($L$1=\"F\",VLOOKUP(185,Übersetzung!$A$2:$D$300,3),VLOOKUP(185,Übersetzung!$A$2:$D$300,4)))","v":"v01"}]

{"sheet":"Rombofix (S.8)","index":8,"n_rows":59,"n_cols":12,"rows_kept":59,"cut":false,"hidden":false,"merged":[[1,1,2,4],[19,0,19,5],[17,0,17,5],[3,10,3,11],[14,10,14,11],[12,0,12,5],[9,0,9,5],[13,0,13,5],[15,0,15,1],[16,0,16,1],[15,2,15,3],[15,4,15,5],[16,2,16,3],[16,4,16,5]]}
[null,null,null,null,null,null,null,null,null,"a",null,"d"]
[null,{"$f":"\"                 \" & IF($J$1=\"a\",(IF($L$1=\"D\",VLOOKUP(48,Übersetzung!$A$2:$D$100,2),IF($L$1=\"F\",VLOOKUP(48,Übersetzung!$A$2:$D$100,3),VLOOKUP(48,Übersetzung!$A$2:$D$100,4)))),(IF($L$1=\"D\",VLOOKUP(125,Übersetzung!$A$2:$D$150,2),IF($L$1=\"F\",VLOOKUP(125,Übersetzung!$A$2:$D$150,3),VLOOKUP(125,Übersetzung!$A$2:$D$150,4)))))","v":"                 Händlerpreisliste 2018"}]
[]
[]
[]
[]
[]
[]
[]
[{"$f":"IF($L$1=\"D\",VLOOKUP(146,Übersetzung!$A$2:$D$301,2),IF($L$1=\"F\",VLOOKUP(146,Übersetzung!$A$2:$D$301,3),VLOOKUP(146,Übersetzung!$A$2:$D$301,4)))","v":"ROMBOFIX - UNSICHTBARE BEFESTIGUNG"}]
[]
[]
[{"$f":"IF($L$1=\"D\",VLOOKUP(147,Übersetzung!$A$2:$D$301,2),IF($L$1=\"F\",VLOOKUP(147,Übersetzung!$A$2:$D$301,3),VLOOKUP(147,Übersetzung!$A$2:$D$301,4)))","v":"ROMBOFIX MONTAGEPACK:"}]
[{"$f":"IF($L$1=\"D\",VLOOKUP(148,Übersetzung!$A$2:$D$301,2),IF($L$1=\"F\",VLOOKUP(148,Übersetzung!$A$2:$D$301,3),VLOOKUP(148,Übersetzung!$A$2:$D$301,4)))","v":"* 100 Klammern inkl. Schrauben ø4,5 x 45mm\n* 15 Ausgleichs Clips\n* 1 Bit (TX20)\n* 10 Schrauben \"BohrFix\" FB ø4,2 x 22mm\n* Montageanleitung\n* Verbrauch für Rhombusleiste 21x65mm bei einem Abstand der Unterkonstruktion von 40-50cm: ca. 38-48 St./m²\n\nBitte beachten Sie: \n- Bei dieser Sonderfräsung können bei allen Qualitäten zusätzlich bis 10% Kurzlängen anfallen! \n  Eine Bestellung inklusive Kurzlängen ist nur in der Qualität \"Selekt\" möglich.\n\n- Erhältlich in den Längen 4,00m, 4,50m und 5,00m, je nach Verfügbarkeit!"}]
[null,null,null,null,null,null,null,null,null,null,"Leithändlerpreise 02/2018"]
[null,null,{"$f":"IF($L$1=\"D\",VLOOKUP(149,Übersetzung!$A$2:$D$301,2),IF($L$1=\"F\",VLOOKUP(149,Übersetzung!$A$2:$D$301,3),VLOOKUP(149,Übersetzung!$A$2:$D$301,4)))","v":"Packpreis "},null,{"$f":"IF($L$1=\"D\",VLOOKUP(150,Übersetzung!$A$2:$D$301,2),IF($L$1=\"F\",VLOOKUP(150,Übersetzung!$A$2:$D$301,3),VLOOKUP(150,Übersetzung!$A$2:$D$301,4)))","v":"Packpreis ab 25 Pack "},null,null,null,null,"Marge W&R auf EK Habis","Einzelpreis","Paketpreis"]
[{"$f":"IF($L$1=\"D\",VLOOKUP(147,Übersetzung!$A$2:$D$301,2),IF($L$1=\"F\",VLOOKUP(147,Übersetzung!$A$2:$D$301,3),VLOOKUP(147,Übersetzung!$A$2:$D$301,4)))","v":"ROMBOFIX MONTAGEPACK:"},null,{"$f":"K17+(K17*$J$17)","v":66.825000000000003},null,{"$f":"L17+(L17*$J$17)","v":60.75},null,null,null,null,{"$f":"IF($J$1=\"A\",VLOOKUP(2,MargenVersionen!$A$9:$G$12,2),IF($J$1=\"B\",VLOOKUP(2,MargenVersionen!$A$9:$G$12,4),VLOOKUP(2,MargenVersionen!$A$9:$G$12,6)))","v":0.35},49.5,45]
[{"$f":"IF($L$1=\"D\",VLOOKUP(151,Übersetzung!$A$2:$D$301,2),IF($L$1=\"F\",VLOOKUP(151,Übersetzung!$A$2:$D$301,3),VLOOKUP(151,Übersetzung!$A$2:$D$301,4)))","v":"Zuschlag auf Rhombusleiste für Sonderfräsung: 0,34 €/lfm"}]
[]
[{"$f":"IF($L$1=\"D\",VLOOKUP(164,Übersetzung!$A$2:$D$301,2),IF($L$1=\"F\",VLOOKUP(164,Übersetzung!$A$2:$D$301,3),VLOOKUP(164,Übersetzung!$A$2:$D$301,4)))","v":"Lieferzeit: 6 - 8 Wochen"}]
[]
[]
[]
[]
[]
[]
[]
[]
[]
[]
[]
[]
[]
[]
[]
[]
[]
[]
[]
[]
[]
[]
[]
[]
[]
[]
[]
[]
[]
[]
[]
[]
[]
[]
[]
[]
[]
[]
[{"$f":"IF($L$1=\"D\",VLOOKUP(108,Übersetzung!$A$2:$D$107,2),IF($L$1=\"F\",VLOOKUP(108,Übersetzung!$A$2:$D$107,3),VLOOKUP(108,Übersetzung!$A$2:$D$107,4)))","v":"Gültig ab 1. März 2018 !"},null,{"$f":"IF($L$1=\"D\",VLOOKUP(152,Übersetzung!$A$2:$D$300,2),IF($L$1=\"F\",VLOOKUP(152,Übersetzung!$A$2:$D$300,3),VLOOKUP(152,Übersetzung!$A$2:$D$300,4)))","v":"Seite: "},{"$f":"_xlfn.SHEET(D73)-1 & \"/\" & MargenVersionen!K6","v":"8/13"},null,{"$f":"IF($L$1=\"D\",VLOOKUP(185,Übersetzung!$A$2:$D$300,2),IF($L$1=\"F\",VLOOKUP(185,Übersetzung!$A$2:$D$300,3),VLOOKUP(185,Übersetzung!$A$2:$D$300,4)))","v":"v01"}]

{"sheet":"EcoGrau (S.9)","index":9,"n_rows":59,"n_cols":20,"rows_kept":59,"cut":false,"hidden":false,"merged":[[4,0,4,7],[44,0,44,1],[44,4,44,7],[28,14,30,14],[38,14,40,14],[22,0,22,7],[38,19,40,19],[28,19,30,19],[28,3,30,3],[28,4,30,4],[28,6,30,6],[28,7,30,7],[28,11,30,11],[28,12,30,12],[28,13,30,13],[28,16,30,16],[28,17,30,17],[28,18,30,18],[38,3,40,3],[38,4,40,4],[38,6,40,6],[38,7,40,7],[16,19,17,19],[18,19,19,19],[38,17,40,17],[16,17,17,17],[16,18,17,18],[18,16,19,16],[18,17,19,17],[18,18,19,18],[20,0,21,4],[18,3,19,3],[18,11,19,11],[18,12,19,12],[20,5,21,5],[18,13,19,13],[18,14,19,14],[38,18,40,18],[16,16,17,16],[16,3,17,3],[16,11,17,11],[16,12,17,12],[16,13,17,13],[16,14,17,14],[16,6,17,6],[46,0,46,7],[47,0,47,7],[38,11,40,11],[38,12,40,12],[38,13,40,13],[38,16,40,16],[14,12,15,12],[14,13,15,13],[14,14,15,14],[18,7,19,7],[18,6,19,6],[18,5,19,5],[18,4,19,4],[16,7,17,7],[14,16,15,16],[14,4,15,4],[14,5,15,5],[14,6,15,6],[14,7,15,7],[10,2,11,2],[10,5,11,5],[10,6,11,6],[10,7,11,7],[10,11,11,11],[10,12,11,12],[10,13,11,13],[10,14,11,14],[12,1,13,1],[12,2,13,2],[12,3,13,3],[12,4,13,4],[12,5,13,5],[12,6,13,6],[12,7,13,7],[12,11,13,11],[12,12,13,12],[10,1,11,1],[8,7,9,7],[8,11,9,11],[8,12,9,12],[8,13,9,13],[8,14,9,14],[6,11,6,14],[6,16,6,19],[8,5,9,5],[8,6,9,6],[3,11,3,14],[3,16,3,19],[4,11,4,14],[4,16,4,19],[14,17,15,17],[14,18,15,18],[14,19,15,19],[12,13,13,13],[12,14,13,14],[12,16,13,16],[12,17,13,17],[12,18,13,18],[12,19,13,19],[14,11,15,11],[52,0,52,5],[51,0,51,5],[50,0,50,7],[24,0,43,0],[24,1,43,1],[1,0,2,0],[10,3,11,3],[10,4,11,4],[8,1,9,1],[8,2,9,2],[8,3,9,3],[8,4,9,4],[18,1,19,1],[1,1,2,5],[5,0,5,7],[16,4,17,4],[16,1,17,1],[16,2,17,2],[16,5,17,5],[7,0,7,7],[14,1,15,1],[14,2,15,2],[14,3,15,3],[18,2,19,2]]}
[null,null,null,null,null,null,null,null,"a",null,null,"d"]
[null,{"$f":"IF($I$1=\"a\",(IF($L$1=\"D\",VLOOKUP(48,Übersetzung!$A$2:$D$100,2),IF($L$1=\"F\",VLOOKUP(48,Übersetzung!$A$2:$D$100,3),VLOOKUP(48,Übersetzung!$A$2:$D$100,4)))),(IF($L$1=\"D\",VLOOKUP(125,Übersetzung!$A$2:$D$150,2),IF($L$1=\"F\",VLOOKUP(125,Übersetzung!$A$2:$D$150,3),VLOOKUP(125,Übersetzung!$A$2:$D$150,4)))))","v":"Händlerpreisliste 2018"}]
[]
[null,null,null,null,null,null,null,null,null,null,null,"Leithändlerpreise 02/2018",null,null,null,null,"Umrechnung auf Nutzfläche (wo nötig)"]
[{"$f":"IF($L$1=\"D\",VLOOKUP(193,Übersetzung!$A$2:$D$301,2),IF($L$1=\"F\",VLOOKUP(193,Übersetzung!$A$2:$D$301,3),VLOOKUP(193,Übersetzung!$A$2:$D$301,4)))","v":"KOMMISSIONSWARE"},null,null,null,null,null,null,null,null,null,null,"Leithändlerpreise 01/2013",null,null,null,null,"Leithändlerpreise 01/2013"]
[{"$f":"IF($L$1=\"D\",VLOOKUP(133,Übersetzung!$A$2:$D$201,2),IF($L$1=\"F\",VLOOKUP(133,Übersetzung!$A$2:$D$201,3),VLOOKUP(133,Übersetzung!$A$2:$D$201,4)))","v":"- Produktion ab 50m² (kleinere Mengen nur als Sammelauftrag möglich - Achtung: evt. längere Lieferzeit!).\n- Mindermengenzuschlag bis 100m² - Farbtöne Kristall, Lava & Gletscher: 55,- €.\n- Mindermengenzuschlag bis 100m² - Farbtöne Basalt, Tundra & Schiefer: 170,- €.\n- Verschnittlängen (200/250/300/350 cm) bis 10% mitgehend!\n- Für Lieferungen ohne Kurzlängen berechnen wir 7% Aufpreis. \n- Bitte bei Bestellung angeben, ob Bestellmenge zzgl. oder inkl. Verschnitt ist. \n  Wenn Sie nichts angeben, liefern wir inkl. Verschnittlängen!\n- Lieferzeit: 6 - 8 Wochen (Genaue Lieferzeit auf Anfrage!)."},null,null,null,null,null,null,null,null,null,"Marge W&R auf EK Habis","Kommisions- Preis","Anbruch-Preis ab 1 Paket","Paketpreis","6 Pakete",null,"Kommisions- Preis","Anbruch-preis ab 1 Paket","Paketpreis","6 Pakete"]
[{"$f":"IF($L$1=\"D\",VLOOKUP(1,Übersetzung!$A$2:$D$100,2),IF($L$1=\"F\",VLOOKUP(1,Übersetzung!$A$2:$D$100,3),VLOOKUP(1,Übersetzung!$A$2:$D$100,4)))","v":"Profile"},{"$f":"IF($L$1=\"D\",VLOOKUP(91,Übersetzung!$A$2:$D$100,2),IF($L$1=\"F\",VLOOKUP(91,Übersetzung!$A$2:$D$100,3),VLOOKUP(91,Übersetzung!$A$2:$D$100,4)))","v":"Qualität"},{"$f":"IF($L$1=\"D\",VLOOKUP(2,Übersetzung!$A$2:$D$100,2),IF($L$1=\"F\",VLOOKUP(2,Übersetzung!$A$2:$D$100,3),VLOOKUP(2,Übersetzung!$A$2:$D$100,4)))","v":"Dimension in mm Stärke x Breite"},{"$f":"IF($L$1=\"D\",VLOOKUP(3,Übersetzung!$A$2:$D$100,2),IF($L$1=\"F\",VLOOKUP(3,Übersetzung!$A$2:$D$100,3),VLOOKUP(3,Übersetzung!$A$2:$D$100,4)))","v":"Länge\n(m)"},{"$f":"IF($L$1=\"D\",VLOOKUP(4,Übersetzung!$A$2:$D$100,2),IF($L$1=\"F\",VLOOKUP(4,Übersetzung!$A$2:$D$100,3),VLOOKUP(4,Übersetzung!$A$2:$D$100,4)))","v":"VPE Bund/Paket"},{"$f":"IF($L$1=\"D\",VLOOKUP(176,Übersetzung!$A$2:$D$301,2),IF($L$1=\"F\",VLOOKUP(176,Übersetzung!$A$2:$D$301,3),VLOOKUP(176,Übersetzung!$A$2:$D$301,4)))","v":"Bedarf (m/m²)"},{"$f":"IF($L$1=\"D\",VLOOKUP(5,Übersetzung!$A$2:$D$100,2),IF($L$1=\"F\",VLOOKUP(5,Übersetzung!$A$2:$D$100,3),VLOOKUP(5,Übersetzung!$A$2:$D$100,4)))","v":"Kommissions-preis (weniger als ein Paket)"},{"$f":"IF($L$1=\"D\",VLOOKUP(7,Übersetzung!$A$2:$D$100,2),IF($L$1=\"F\",VLOOKUP(7,Übersetzung!$A$2:$D$100,3),VLOOKUP(7,Übersetzung!$A$2:$D$100,4)))","v":"Paketpreis"},null,null,{"$f":"IF($I$1=\"A\",VLOOKUP(1,MargenVersionen!$A$9:$G$12,2),IF($I$1=\"B\",VLOOKUP(1,MargenVersionen!$A$9:$G$12,4),VLOOKUP(1,MargenVersionen!$A$9:$G$12,6)))","v":0.3},"Hier die Preise eingeben!",null,null,null,null,"Felder werden automatisch berechnet!"]
[{"$f":"IF($L$1=\"D\",VLOOKUP(132,Übersetzung!$A$2:$D$149,2),IF($L$1=\"F\",VLOOKUP(132,Übersetzung!$A$2:$D$149,3),VLOOKUP(132,Übersetzung!$A$2:$D$149,4)))","v":"ECO GRAU - Fichte"}]
[{"$f":"IF($L$1=\"D\",VLOOKUP(16,Übersetzung!$A$2:$D$100,2),IF($L$1=\"F\",VLOOKUP(16,Übersetzung!$A$2:$D$100,3),VLOOKUP(16,Übersetzung!$A$2:$D$100,4)))","v":"Rhombus 15° "},"Basic","21 x 65","4,0 / 5,0","4 / 224","14,29*",{"$f":"L9+L9*$K$17","v":1.6},{"$f":"M9+M9*$K$17","v":1.55},null,null,null,1.6,1.55,1.45,1.35]
[{"$f":"IF($L$1=\"D\",VLOOKUP(104,Übersetzung!$A$2:$D$149,2),IF($L$1=\"F\",VLOOKUP(104,Übersetzung!$A$2:$D$149,3),VLOOKUP(104,Übersetzung!$A$2:$D$149,4)))","v":"Leistenbreite = Berechnungsbreite"}]
[{"$f":"IF($L$1=\"D\",VLOOKUP(100,Übersetzung!$A$2:$D$100,2),IF($L$1=\"F\",VLOOKUP(100,Übersetzung!$A$2:$D$100,3),VLOOKUP(100,Übersetzung!$A$2:$D$100,4)))","v":"Deckleiste"},"Basic","21 x 65","4,0 / 5,0","4 / 224","13,34*",{"$f":"L11+L11*$L$41","v":1.6},{"$f":"M11+M11*$L$41","v":1.55},null,null,null,1.6,1.55,1.45,1.35]
[{"$f":"IF($L$1=\"D\",VLOOKUP(104,Übersetzung!$A$2:$D$149,2),IF($L$1=\"F\",VLOOKUP(104,Übersetzung!$A$2:$D$149,3),VLOOKUP(104,Übersetzung!$A$2:$D$149,4)))","v":"Leistenbreite = Berechnungsbreite"}]
[{"$f":"IF($L$1=\"D\",VLOOKUP(11,Übersetzung!$A$2:$D$100,2),IF($L$1=\"F\",VLOOKUP(11,Übersetzung!$A$2:$D$100,3),VLOOKUP(11,Übersetzung!$A$2:$D$100,4)))","v":"Glattkant"},"Basic","21 x 140","4,0 / 5,0","4 / 112",7.14,{"$f":"L13+L13*$K$7","v":28.73},{"$f":"M13+M13*$K$7","v":27.234999999999999},null,null,null,22.1,20.95,19.95,18.95]
[{"$f":"IF($L$1=\"D\",VLOOKUP(103,Übersetzung!$A$2:$D$149,2),IF($L$1=\"F\",VLOOKUP(103,Übersetzung!$A$2:$D$149,3),VLOOKUP(103,Übersetzung!$A$2:$D$149,4)))","v":"Brettbreite = Berechnungsbreite"}]
[{"$f":"IF($L$1=\"D\",VLOOKUP(10,Übersetzung!$A$2:$D$100,2),IF($L$1=\"F\",VLOOKUP(10,Übersetzung!$A$2:$D$100,3),VLOOKUP(10,Übersetzung!$A$2:$D$100,4)))","v":"Trapez"},"Basic",{"$f":"IF($L$1=\"D\",VLOOKUP(26,Übersetzung!$A$2:$D$100,2),IF($L$1=\"F\",VLOOKUP(26,Übersetzung!$A$2:$D$100,3),VLOOKUP(26,Übersetzung!$A$2:$D$100,4)))","v":"22 x 142\nDeckmaß: 125 mm"},"4,0 / 5,0","4 / 112",8,{"$f":"Q15+Q15*$K$7","v":34.85248},{"$f":"R15+R15*$K$7","v":33.080319999999993},null,null,null,23.6,22.4,21.3,20.25,null,{"$f":"L15*142/125","v":26.809600000000003},{"$f":"M15*142/125","v":25.446399999999997},{"$f":"N15*142/125","v":24.1968},{"$f":"O15*142/125","v":23.004000000000001}]
[{"$f":"IF($L$1=\"D\",VLOOKUP(102,Übersetzung!$A$2:$D$149,2),IF($L$1=\"F\",VLOOKUP(102,Übersetzung!$A$2:$D$149,3),VLOOKUP(102,Übersetzung!$A$2:$D$149,4)))","v":"Deckmaß = Berechnungsbreite"}]
[{"$f":"IF($L$1=\"D\",VLOOKUP(14,Übersetzung!$A$2:$D$100,2),IF($L$1=\"F\",VLOOKUP(14,Übersetzung!$A$2:$D$100,3),VLOOKUP(14,Übersetzung!$A$2:$D$100,4)))","v":"Nimbus"},"Basic",{"$f":"IF($L$1=\"D\",VLOOKUP(27,Übersetzung!$A$2:$D$100,2),IF($L$1=\"F\",VLOOKUP(27,Übersetzung!$A$2:$D$100,3),VLOOKUP(27,Übersetzung!$A$2:$D$100,4)))","v":"21 x 92\nDeckmaß: 80 mm"},"4,0 / 5,0","4 / 160",12.5,{"$f":"Q17+Q17*$K$7","v":37.300250000000005},{"$f":"R17+R17*$K$7","v":35.4315},null,null,null,24.95,23.7,22.5,21.4,null,{"$f":"L17*92/80","v":28.692500000000003},{"$f":"M17*92/80","v":27.255000000000003},{"$f":"N17*92/80","v":25.875},{"$f":"O17*92/80","v":24.61}]
[{"$f":"IF($L$1=\"D\",VLOOKUP(102,Übersetzung!$A$2:$D$149,2),IF($L$1=\"F\",VLOOKUP(102,Übersetzung!$A$2:$D$149,3),VLOOKUP(102,Übersetzung!$A$2:$D$149,4)))","v":"Deckmaß = Berechnungsbreite"}]
[{"$f":"IF($L$1=\"D\",VLOOKUP(31,Übersetzung!$A$2:$D$100,2),IF($L$1=\"F\",VLOOKUP(31,Übersetzung!$A$2:$D$100,3),VLOOKUP(31,Übersetzung!$A$2:$D$100,4)))","v":"Doppelrhombus 15° Schräge"},"Basic",{"$f":"IF($L$1=\"D\",VLOOKUP(106,Übersetzung!$A$2:$D$149,2),IF($L$1=\"F\",VLOOKUP(106,Übersetzung!$A$2:$D$149,3),VLOOKUP(106,Übersetzung!$A$2:$D$149,4)))","v":"21 x 140\nDeckmaß: 128 mm"},"4,0 / 5,0","4 / 112",7.82,{"$f":"Q19+Q19*$K$7","v":34.8359375},{"$f":"R19+R19*$K$7","v":32.987499999999997},null,null,null,24.5,23.2,21.95,20.9,null,{"$f":"L19*140/128","v":26.796875},{"$f":"M19*140/128","v":25.375},{"$f":"N19*140/128","v":24.0078125},{"$f":"O19*140/128","v":22.859375}]
[{"$f":"IF($L$1=\"D\",VLOOKUP(102,Übersetzung!$A$2:$D$149,2),IF($L$1=\"F\",VLOOKUP(102,Übersetzung!$A$2:$D$149,3),VLOOKUP(102,Übersetzung!$A$2:$D$149,4)))","v":"Deckmaß = Berechnungsbreite"}]
[{"$f":"IF($L$1=\"D\",VLOOKUP(175,Übersetzung!$A$2:$D$301,2),IF($L$1=\"F\",VLOOKUP(175,Übersetzung!$A$2:$D$301,3),VLOOKUP(175,Übersetzung!$A$2:$D$301,4)))","v":"*Auf Basis einer Schattenfuge von 10mm!!!"},null,null,null,null,8]
[]
[{"$f":"IF($L$1=\"D\",VLOOKUP(131,Übersetzung!$A$2:$D$301,2),IF($L$1=\"F\",VLOOKUP(131,Übersetzung!$A$2:$D$301,3),VLOOKUP(131,Übersetzung!$A$2:$D$301,4)))","v":"ECO GRAU - Weisstanne"}]
[{"$f":"IF($L$1=\"D\",VLOOKUP(1,Übersetzung!$A$2:$D$100,2),IF($L$1=\"F\",VLOOKUP(1,Übersetzung!$A$2:$D$100,3),VLOOKUP(1,Übersetzung!$A$2:$D$100,4)))","v":"Profile"},{"$f":"IF($L$1=\"D\",VLOOKUP(91,Übersetzung!$A$2:$D$100,2),IF($L$1=\"F\",VLOOKUP(91,Übersetzung!$A$2:$D$100,3),VLOOKUP(91,Übersetzung!$A$2:$D$100,4)))","v":"Qualität"},{"$f":"IF($L$1=\"D\",VLOOKUP(2,Übersetzung!$A$2:$D$100,2),IF($L$1=\"F\",VLOOKUP(2,Übersetzung!$A$2:$D$100,3),VLOOKUP(2,Übersetzung!$A$2:$D$100,4)))","v":"Dimension in mm Stärke x Breite"},{"$f":"IF($L$1=\"D\",VLOOKUP(3,Übersetzung!$A$2:$D$100,2),IF($L$1=\"F\",VLOOKUP(3,Übersetzung!$A$2:$D$100,3),VLOOKUP(3,Übersetzung!$A$2:$D$100,4)))","v":"Länge\n(m)"},{"$f":"IF($L$1=\"D\",VLOOKUP(4,Übersetzung!$A$2:$D$100,2),IF($L$1=\"F\",VLOOKUP(4,Übersetzung!$A$2:$D$100,3),VLOOKUP(4,Übersetzung!$A$2:$D$100,4)))","v":"VPE Bund/Paket"},{"$f":"IF($L$1=\"D\",VLOOKUP(176,Übersetzung!$A$2:$D$301,2),IF($L$1=\"F\",VLOOKUP(176,Übersetzung!$A$2:$D$301,3),VLOOKUP(176,Übersetzung!$A$2:$D$301,4)))","v":"Bedarf (m/m²)"},{"$f":"IF($L$1=\"D\",VLOOKUP(5,Übersetzung!$A$2:$D$100,2),IF($L$1=\"F\",VLOOKUP(5,Übersetzung!$A$2:$D$100,3),VLOOKUP(5,Übersetzung!$A$2:$D$100,4)))","v":"Kommissions-preis (weniger als ein Paket)"},{"$f":"IF($L$1=\"D\",VLOOKUP(7,Übersetzung!$A$2:$D$100,2),IF($L$1=\"F\",VLOOKUP(7,Übersetzung!$A$2:$D$100,3),VLOOKUP(7,Übersetzung!$A$2:$D$100,4)))","v":"Paketpreis"},null,null,{"$f":"IF($I$1=\"A\",VLOOKUP(1,MargenVersionen!$A$9:$G$12,2),IF($I$1=\"B\",VLOOKUP(1,MargenVersionen!$A$9:$G$12,4),VLOOKUP(1,MargenVersionen!$A$9:$G$12,6)))","v":0.3}]
[{"$f":"IF($L$1=\"D\",VLOOKUP(142,Übersetzung!$A$2:$D$301,2),IF($L$1=\"F\",VLOOKUP(142,Übersetzung!$A$2:$D$301,3),VLOOKUP(142,Übersetzung!$A$2:$D$301,4)))","v":"Große Auswahl an Profilen! Die technische Machbarkeit muss geprüft werden! Bitte fragen Sie uns!"},{"$f":"IF($L$1=\"D\",VLOOKUP(138,Übersetzung!$A$2:$D$301,2),IF($L$1=\"F\",VLOOKUP(138,Übersetzung!$A$2:$D$301,3),VLOOKUP(138,Übersetzung!$A$2:$D$301,4)))","v":"Selekt"},"21 x 40","4,0 / 5,0","4 / 224","/",{"$f":"L25+L25*$K$24","v":2.21},2.08,null,null,null,1.7,1.6,1.5,1.4]
[null,null,"21 x 55","4,0 / 5,0","4 / 224","/",2.6649999999999996,2.5350000000000001,null,null,null,2.0499999999999998,1.95,1.85,1.7]
[null,null,"21 x 65","4,0 / 5,0","4 / 224","/",2.7949999999999999,2.6649999999999996,null,null,null,2.15,2.0499999999999998,1.95,1.8]
[null,null,"21 x 90","4,0 / 5,0","4 / 160","/",41.730000000000004,39.65,null,null,null,32.1,30.5,28.95,26.7]
[null,null,"21 x 116","4,0 / 5,0","4 / 112",null,39.909999999999997,37.96,null,null,null,30.7,29.2,27.75,25.55]
[null,null,"21 x 140",null,null,"/"]
[null,null,"21 x 170"]
[null,null,"26 x 40","4,0 / 5,0","4 / 224","/",{"$f":"L32+L32*$K$24","v":2.73},2.6,null,null,null,2.1,2,1.9,1.75]
[null,null,"26 x 65","4,0 / 5,0","4 / 224","/",3.25,3.12," ",null,null,2.5,2.4,2.2999999999999998,2.1]
[null,null,"26 x 140","4,0 / 5,0","4 /112","/",46.605000000000004,44.264999999999993,null,null,null,35.85,34.049999999999997,32.35,29.8]
[null,null,"40 x 40","4,0 / 5,0","4 / 224","/",3.6399999999999997,3.4449999999999998,null,null,null,2.8,2.65,2.5,2.4]
[null,null,"40 x 55","4,0 / 5,0","4 / 224","/",4.68,4.42,null,null,null,3.6,3.4,3.2,2.95]
[null,null,"40 x 65","4,0 / 5,0","4 / 224","/",5.3950000000000005,5.1349999999999998,null,null,null,4.1500000000000004,3.95,3.75,3.45]
[null,null,"40 x 90","4,0 / 5,0","4 / 160","/",76.180000000000007,72.41,null,null,null,58.6,55.7,52.9,48.7]
[null,null,"40 x 116","4,0 / 5,0","4 / 112",null,76.180000000000007,72.41,null,null,null,58.6,55.7,52.9,48.7]
[null,null,"40 x 140",null,null,"/"]
[null,null,"40 x 170"]
[null,null,"50 x 40","4,0 / 5,0","4 / 224","/",{"$f":"L42+L42*$K$24","v":4.9399999999999995},4.68,null,null,null,3.8,3.6,3.4,3.1]
[null,null,"50 x 65","4,0 / 5,0","4 / 224","/",6.76,6.4350000000000005,null,null,null,5.2,4.95,4.7,4.3]
[null,null,"50 x 140","4,0 / 5,0","4 / 112","/",93.86,89.05,null,null,null,72.2,68.5,64.900000000000006,59.7]
[{"$f":"IF($L$1=\"D\",VLOOKUP(103,Übersetzung!$A$2:$D$149,2),IF($L$1=\"F\",VLOOKUP(103,Übersetzung!$A$2:$D$149,3),VLOOKUP(103,Übersetzung!$A$2:$D$149,4))) & \"!!!\"","v":"Brettbreite = Berechnungsbreite!!!"},null,null,null,{"$f":"IF($L$1=\"D\",VLOOKUP(192,Übersetzung!$A$2:$D$301,2),IF($L$1=\"F\",VLOOKUP(192,Übersetzung!$A$2:$D$301,3),VLOOKUP(192,Übersetzung!$A$2:$D$301,4)))","v":"Beispielprofile finden Sie auf Seite 5."}]
[]
[{"$f":"IF($L$1=\"D\",VLOOKUP(141,Übersetzung!$A$2:$D$301,2),IF($L$1=\"F\",VLOOKUP(141,Übersetzung!$A$2:$D$301,3),VLOOKUP(141,Übersetzung!$A$2:$D$301,4)))","v":"Qualität: KEILGEZINKT"}]
[{"$f":"IF($L$1=\"D\",VLOOKUP(204,Übersetzung!$A$2:$D$301,2),IF($L$1=\"F\",VLOOKUP(204,Übersetzung!$A$2:$D$301,3),VLOOKUP(204,Übersetzung!$A$2:$D$301,4)))","v":"- Alle Dimensionen wie bei ECOGRAU Weisstanne in der Qualität \"BASIC\" möglich, außer 21x170mm und 40x170mm."}]
[{"$f":"IF($L$1=\"D\",VLOOKUP(205,Übersetzung!$A$2:$D$301,2),IF($L$1=\"F\",VLOOKUP(205,Übersetzung!$A$2:$D$301,3),VLOOKUP(205,Übersetzung!$A$2:$D$301,4)))","v":"- Preisbasis: Qualität Basic + 10% Aufschlag."}]
[{"$f":"IF($L$1=\"D\",VLOOKUP(34,Übersetzung!$A$2:$D$100,2),IF($L$1=\"F\",VLOOKUP(34,Übersetzung!$A$2:$D$100,3),VLOOKUP(34,Übersetzung!$A$2:$D$100,4)))","v":"*Schindeln: Premiumqualität bei Überlappung 50%"}]
[{"$f":"IF($L$1=\"D\",VLOOKUP(51,Übersetzung!$A$2:$D$100,2),IF($L$1=\"F\",VLOOKUP(51,Übersetzung!$A$2:$D$100,3),VLOOKUP(51,Übersetzung!$A$2:$D$100,4)))","v":"Beistreichfarbe"}]
[{"$f":"IF($L$1=\"D\",VLOOKUP(19,Übersetzung!$A$2:$D$100,2),IF($L$1=\"F\",VLOOKUP(19,Übersetzung!$A$2:$D$100,3),VLOOKUP(19,Übersetzung!$A$2:$D$100,4)))","v":"Zum Streichen von Schnittkanten und zum vollflächigen Überarbeiten (Reichweite für Schnittkanten ca. 70m² Giebelbekleidung pro Liter)"},null,null,null,null,null,{"$f":"IF($L$1=\"D\",VLOOKUP(179,Übersetzung!$A$2:$D$301,2),IF($L$1=\"F\",VLOOKUP(179,Übersetzung!$A$2:$D$301,3),VLOOKUP(179,Übersetzung!$A$2:$D$301,4)))","v":"Verbrauch (m²/Liter)"},{"$f":"IF($L$1=\"D\",VLOOKUP(20,Übersetzung!$A$2:$D$100,2),IF($L$1=\"F\",VLOOKUP(20,Übersetzung!$A$2:$D$100,3),VLOOKUP(20,Übersetzung!$A$2:$D$100,4)))","v":"Gebinde 1L "},null,null,{"$f":"IF($I$1=\"A\",VLOOKUP(4,MargenVersionen!$A$9:$G$12,2),IF($I$1=\"B\",VLOOKUP(4,MargenVersionen!$A$9:$G$12,4),VLOOKUP(4,MargenVersionen!$A$9:$G$12,6)))","v":0.6}]
[{"$f":"IF($L$1=\"D\",VLOOKUP(134,Übersetzung!$A$2:$D$301,2),IF($L$1=\"F\",VLOOKUP(134,Übersetzung!$A$2:$D$301,3),VLOOKUP(134,Übersetzung!$A$2:$D$301,4)))","v":"Eisgrau, Sandgrau, Betongrau, Steingrau, Graphitgrau"},null,null,null,null,null,"max. 70",{"$f":"L53+L53*$K$52","v":28.48},null,null,null,17.8]
[]
[]
[]
[]
[]
[{"$f":"IF($L$1=\"D\",VLOOKUP(107,Übersetzung!$A$2:$D$149,2),IF($L$1=\"F\",VLOOKUP(107,Übersetzung!$A$2:$D$149,3),VLOOKUP(107,Übersetzung!$A$2:$D$149,4)))","v":"Gültig ab 1. März 2018 !"},null,null,{"$f":"IF($L$1=\"D\",VLOOKUP(152,Übersetzung!$A$2:$D$300,2),IF($L$1=\"F\",VLOOKUP(152,Übersetzung!$A$2:$D$300,3),VLOOKUP(152,Übersetzung!$A$2:$D$300,4)))","v":"Seite: "},"9/12",null,null,{"$f":"IF($L$1=\"D\",VLOOKUP(185,Übersetzung!$A$2:$D$300,2),IF($L$1=\"F\",VLOOKUP(185,Übersetzung!$A$2:$D$300,3),VLOOKUP(185,Übersetzung!$A$2:$D$300,4)))","v":"v01"}]

{"sheet":"CapeCod (S.10)","index":10,"n_rows":73,"n_cols":18,"rows_kept":73,"cut":false,"hidden":false,"merged":[[47,0,47,5],[1,1,2,3],[5,3,6,3],[10,3,11,3],[14,3,15,3],[7,3,8,3],[12,3,13,3],[16,3,17,3],[18,0,19,2],[18,3,19,3],[14,5,15,5],[16,5,17,5],[16,4,17,4],[16,2,17,2],[10,1,11,1],[7,1,8,1],[12,5,13,5],[12,4,13,4],[12,2,13,2],[12,1,13,1],[7,5,8,5],[7,4,8,4],[7,2,8,2],[46,0,46,5],[29,0,29,5],[31,0,31,5],[32,0,33,0],[34,0,34,5],[35,0,36,0],[37,0,37,5],[44,0,44,5],[5,5,6,5],[5,4,6,4],[5,2,6,2],[5,1,6,1],[42,0,42,2],[25,0,26,0],[9,0,10,0],[38,0,40,0],[41,0,41,5],[16,1,17,1],[14,1,15,1],[14,2,15,2],[14,4,15,4],[10,5,11,5],[10,4,11,4],[10,2,11,2],[1,8,1,11],[1,14,1,17],[2,14,3,17],[16,17,17,17],[16,16,17,16],[16,15,17,15],[16,14,17,14],[14,14,15,14],[14,15,15,15],[14,16,15,16],[14,17,15,17],[16,9,17,9],[16,10,17,10],[16,11,17,11],[14,11,15,11],[14,10,15,10],[14,9,15,9],[16,8,17,8],[14,8,15,8],[12,16,13,16],[12,17,13,17],[10,14,11,14],[10,15,11,15],[10,16,11,16],[12,14,13,14],[12,15,13,15],[7,11,8,11],[7,10,8,10],[5,8,6,8],[5,9,6,9],[5,10,6,10],[5,11,6,11],[7,14,8,14],[7,15,8,15],[12,8,13,8],[12,9,13,9],[12,10,13,10],[12,11,13,11],[7,9,8,9],[7,8,8,8],[10,11,11,11],[10,8,11,8],[10,9,11,9],[10,10,11,10],[10,17,11,17],[5,15,6,15],[5,16,6,16],[5,17,6,17],[5,14,6,14],[7,16,8,16],[7,17,8,17],[2,6,3,6],[2,7,3,7],[2,8,3,11]]}
[null,null,null,null,null,null,null,null,"a",null,null,"d"]
[null,{"$f":"IF($I$1=\"a\",(IF($L$1=\"D\",VLOOKUP(48,Übersetzung!$A$2:$D$100,2),IF($L$1=\"F\",VLOOKUP(48,Übersetzung!$A$2:$D$100,3),VLOOKUP(48,Übersetzung!$A$2:$D$100,4)))),(IF($L$1=\"D\",VLOOKUP(125,Übersetzung!$A$2:$D$150,2),IF($L$1=\"F\",VLOOKUP(125,Übersetzung!$A$2:$D$150,3),VLOOKUP(125,Übersetzung!$A$2:$D$150,4)))))","v":"Händlerpreisliste 2018"},null,null,null,null,null,null,"Leithändlerpreise 02/2018",null,null,null,null,null,"Umrechnung auf Nutzfläche (wo nötig)"]
[null,null,null,null,null,null,null,"Marge W&R auf EK Habis","Hier die Preise eingeben!",null,null,null,null,null,"Felder werden automatisch berechnet!"]
[]
[{"$f":"IF($L$1=\"D\",VLOOKUP(1,Übersetzung!$A$2:$D$100,2),IF($L$1=\"F\",VLOOKUP(1,Übersetzung!$A$2:$D$100,3),VLOOKUP(1,Übersetzung!$A$2:$D$100,4)))","v":"Profile"},{"$f":"IF($L$1=\"D\",VLOOKUP(2,Übersetzung!$A$2:$D$100,2),IF($L$1=\"F\",VLOOKUP(2,Übersetzung!$A$2:$D$100,3),VLOOKUP(2,Übersetzung!$A$2:$D$100,4)))","v":"Dimension in mm Stärke x Breite"},{"$f":"IF($L$1=\"D\",VLOOKUP(4,Übersetzung!$A$2:$D$100,2),IF($L$1=\"F\",VLOOKUP(4,Übersetzung!$A$2:$D$100,3),VLOOKUP(4,Übersetzung!$A$2:$D$100,4)))","v":"VPE Bund/Paket"},{"$f":"IF($L$1=\"D\",VLOOKUP(176,Übersetzung!$A$2:$D$301,2),IF($L$1=\"F\",VLOOKUP(176,Übersetzung!$A$2:$D$301,3),VLOOKUP(176,Übersetzung!$A$2:$D$301,4)))","v":"Bedarf (m/m²)"},{"$f":"IF($L$1=\"D\",VLOOKUP(5,Übersetzung!$A$2:$D$100,2),IF($L$1=\"F\",VLOOKUP(5,Übersetzung!$A$2:$D$100,3),VLOOKUP(5,Übersetzung!$A$2:$D$100,4)))","v":"Kommissions-preis (weniger als ein Paket)"},{"$f":"IF($L$1=\"D\",VLOOKUP(7,Übersetzung!$A$2:$D$100,2),IF($L$1=\"F\",VLOOKUP(7,Übersetzung!$A$2:$D$100,3),VLOOKUP(7,Übersetzung!$A$2:$D$100,4)))","v":"Paketpreis"},null,{"$f":"IF($I$1=\"A\",VLOOKUP(1,MargenVersionen!$A$9:$G$12,2),IF($I$1=\"B\",VLOOKUP(1,MargenVersionen!$A$9:$G$12,4),VLOOKUP(1,MargenVersionen!$A$9:$G$12,6)))","v":0.3},"Kommisions- Preis","Anbruch-preis ab 1 Paket","Paketpreis","6 Pakete",null,null,"Kommisions- Preis","Anbruch-preis ab 1 Paket","Paketpreis","6 Pakete"]
[{"$f":"IF($L$1=\"D\",VLOOKUP(37,Übersetzung!$A$2:$D$100,2),IF($L$1=\"F\",VLOOKUP(37,Übersetzung!$A$2:$D$100,3),VLOOKUP(37,Übersetzung!$A$2:$D$100,4)))","v":"Bevel"},{"$f":"IF($L$1=\"D\",VLOOKUP(93,Übersetzung!$A$2:$D$100,2),IF($L$1=\"F\",VLOOKUP(93,Übersetzung!$A$2:$D$100,3),VLOOKUP(93,Übersetzung!$A$2:$D$100,4)))","v":"24 x 137\nDeckmaß: 124 mm"},"6 / 252",8.07,{"$f":"O6+O6*$H$5","v":38.061693548387098},{"$f":"P6+P6*$H$5","v":36.122701612903228},null,null,26.5,25.15,23.9,21.6,null,null,{"$f":"I6*137/124","v":29.278225806451612},{"$f":"J6*137/124","v":27.786693548387095},26.40564516129032,23.86451612903226]
[{"$f":"IF($L$1=\"D\",VLOOKUP(102,Übersetzung!$A$2:$D$149,2),IF($L$1=\"F\",VLOOKUP(102,Übersetzung!$A$2:$D$149,3),VLOOKUP(102,Übersetzung!$A$2:$D$149,4)))","v":"Deckmaß = Berechnungsbreite"}]
[{"$f":"IF($L$1=\"D\",VLOOKUP(38,Übersetzung!$A$2:$D$100,2),IF($L$1=\"F\",VLOOKUP(38,Übersetzung!$A$2:$D$100,3),VLOOKUP(38,Übersetzung!$A$2:$D$100,4)))","v":"Channel Profil"},{"$f":"IF($L$1=\"D\",VLOOKUP(94,Übersetzung!$A$2:$D$100,2),IF($L$1=\"F\",VLOOKUP(94,Übersetzung!$A$2:$D$100,3),VLOOKUP(94,Übersetzung!$A$2:$D$100,4)))","v":"18,5 x 137\nDeckmaß: 124 mm"},"6 / 210",8.07,{"$f":"O8+O8*$H$5","v":40.93427419354839},{"$f":"P8+P8*$H$5","v":38.851653225806452},null,null,28.5,27.05,25.7,22.95,null,null,{"$f":"I8*137/124","v":31.487903225806452},{"$f":"J8*137/124","v":29.885887096774194},28.394354838709678,25.356048387096774]
[{"$f":"IF($L$1=\"D\",VLOOKUP(102,Übersetzung!$A$2:$D$149,2),IF($L$1=\"F\",VLOOKUP(102,Übersetzung!$A$2:$D$149,3),VLOOKUP(102,Übersetzung!$A$2:$D$149,4)))","v":"Deckmaß = Berechnungsbreite"}]
[{"$f":"IF($L$1=\"D\",VLOOKUP(11,Übersetzung!$A$2:$D$100,2),IF($L$1=\"F\",VLOOKUP(11,Übersetzung!$A$2:$D$100,3),VLOOKUP(11,Übersetzung!$A$2:$D$100,4)))","v":"Glattkant"},"18,5 x 137","1 / 210",7.15,{"$f":"I10+I10*$H$5","v":38.935000000000002},{"$f":"J10+J10*$H$5","v":37.049999999999997},null,null,29.95,28.5,27.1,24.4]
[null,"18,5 x 178","1 / 150",5.62,38.935000000000002,37.049999999999997,null,null,29.95,28.5,27.1,24.4]
[{"$f":"IF($L$1=\"D\",VLOOKUP(103,Übersetzung!$A$2:$D$149,2),IF($L$1=\"F\",VLOOKUP(103,Übersetzung!$A$2:$D$149,3),VLOOKUP(103,Übersetzung!$A$2:$D$149,4)))","v":"Brettbreite = Berechnungsbreite"}]
[{"$f":"IF($L$1=\"D\",VLOOKUP(12,Übersetzung!$A$2:$D$100,2),IF($L$1=\"F\",VLOOKUP(12,Übersetzung!$A$2:$D$100,3),VLOOKUP(12,Übersetzung!$A$2:$D$100,4)))","v":"Deckleiste"},"18,5 x 65","6 / 420","13,34*",{"$f":"I13+I13*$H$5","v":46.93},{"$f":"J13+J13*$H$5","v":44.589999999999996},null,null,36.1,34.299999999999997,32.6,29.3]
[{"$f":"IF($L$1=\"D\",VLOOKUP(103,Übersetzung!$A$2:$D$149,2),IF($L$1=\"F\",VLOOKUP(103,Übersetzung!$A$2:$D$149,3),VLOOKUP(103,Übersetzung!$A$2:$D$149,4)))","v":"Brettbreite = Berechnungsbreite"}]
[{"$f":"IF($L$1=\"D\",VLOOKUP(39,Übersetzung!$A$2:$D$100,2),IF($L$1=\"F\",VLOOKUP(39,Übersetzung!$A$2:$D$100,3),VLOOKUP(39,Übersetzung!$A$2:$D$100,4)))","v":"Rhombus 20°"},"18,5 x 65","6 / 420","14,29*",{"$f":"I15+I15*$H$5","v":3.4449999999999998},{"$f":"J15+J15*$H$5","v":3.25},null,null,2.65,2.5,2.35,2.1]
[{"$f":"IF($L$1=\"D\",VLOOKUP(104,Übersetzung!$A$2:$D$149,2),IF($L$1=\"F\",VLOOKUP(104,Übersetzung!$A$2:$D$149,3),VLOOKUP(104,Übersetzung!$A$2:$D$149,4)))","v":"Leistenbreite = Berechnungsbreite"}]
[{"$f":"IF($L$1=\"D\",VLOOKUP(92,Übersetzung!$A$2:$D$100,2),IF($L$1=\"F\",VLOOKUP(92,Übersetzung!$A$2:$D$100,3),VLOOKUP(92,Übersetzung!$A$2:$D$100,4)))","v":"Doppelrhombus "},{"$f":"IF($L$1=\"D\",VLOOKUP(95,Übersetzung!$A$2:$D$100,2),IF($L$1=\"F\",VLOOKUP(95,Übersetzung!$A$2:$D$100,3),VLOOKUP(95,Übersetzung!$A$2:$D$100,4)))","v":"18,5 x 137\nDeckmaß: 124 mm"},"6 / 210",8.07,{"$f":"O17+O17*$H$5","v":40.144314516129036},{"$f":"P17+P17*$H$5","v":38.205322580645159},null,null,27.95,26.6,25.25,22.7,null,null,{"$f":"I17*137/124","v":30.880241935483873},{"$f":"J17*137/124","v":29.388709677419357},27.89717741935484,25.079838709677421]
[{"$f":"IF($L$1=\"D\",VLOOKUP(102,Übersetzung!$A$2:$D$149,2),IF($L$1=\"F\",VLOOKUP(102,Übersetzung!$A$2:$D$149,3),VLOOKUP(102,Übersetzung!$A$2:$D$149,4)))","v":"Deckmaß = Berechnungsbreite"}]
[{"$f":"IF($L$1=\"D\",VLOOKUP(175,Übersetzung!$A$2:$D$301,2),IF($L$1=\"F\",VLOOKUP(175,Übersetzung!$A$2:$D$301,3),VLOOKUP(175,Übersetzung!$A$2:$D$301,4)))","v":"*Auf Basis einer Schattenfuge von 10mm!!!"},null,null,8]
[]
[]
[{"$f":"IF($L$1=\"D\",VLOOKUP(40,Übersetzung!$A$2:$D$100,2),IF($L$1=\"F\",VLOOKUP(40,Übersetzung!$A$2:$D$100,3),VLOOKUP(40,Übersetzung!$A$2:$D$100,4)))","v":"Standardfarben:"}]
[]
[{"$f":"IF($L$1=\"D\",VLOOKUP(125,Übersetzung!$A$2:$D$124,2),IF($L$1=\"F\",VLOOKUP(125,Übersetzung!$A$2:$D$124,3),VLOOKUP(125,Übersetzung!$A$2:$D$124,4)))","v":"Abschlussprofile (Länge 3,04m)"}]
[{"$f":"IF($L$1=\"D\",VLOOKUP(41,Übersetzung!$A$2:$D$100,2),IF($L$1=\"F\",VLOOKUP(41,Übersetzung!$A$2:$D$100,3),VLOOKUP(41,Übersetzung!$A$2:$D$100,4)))","v":"Außenecken"}]
[{"$f":"IF($L$1=\"D\",VLOOKUP(42,Übersetzung!$A$2:$D$100,2),IF($L$1=\"F\",VLOOKUP(42,Übersetzung!$A$2:$D$100,3),VLOOKUP(42,Übersetzung!$A$2:$D$100,4)))","v":"(für eine Außenecke \nbenötigt man 2 Teile)"},"a) 32 x 108","1 / 20",null,{"$f":"CONCATENATE(ROUND(I26+I26*$H$5,2),$N$32)","v":"32,76 €/Stk."},{"$f":"CONCATENATE(ROUND(K26+K26*$H$5,2),$N$32)","v":"28,08 €/Stk."},null,null,25.2,null,21.6,19.399999999999999]
[{"$f":"IF($L$1=\"D\",VLOOKUP(41,Übersetzung!$A$2:$D$100,2),IF($L$1=\"F\",VLOOKUP(41,Übersetzung!$A$2:$D$100,3),VLOOKUP(41,Übersetzung!$A$2:$D$100,4)))","v":"Außenecken"},"b) 32 x 140","1 / 20 ",null,{"$f":"CONCATENATE(ROUND(I27+I27*$H$5,2),$N$32)","v":"32,76 €/Stk."},{"$f":"CONCATENATE(ROUND(K27+K27*$H$5,2),$N$32)","v":"28,08 €/Stk."},null,null,25.2,null,21.6,19.399999999999999]
[{"$f":"IF($L$1=\"D\",VLOOKUP(43,Übersetzung!$A$2:$D$100,2),IF($L$1=\"F\",VLOOKUP(43,Übersetzung!$A$2:$D$100,3),VLOOKUP(43,Übersetzung!$A$2:$D$100,4)))","v":"Eckbrett"},"35 x 86","1 / 20",null,{"$f":"CONCATENATE(ROUND(I28+I28*$H$5,2),$N$32)","v":"23,27 €/Stk."},{"$f":"CONCATENATE(ROUND(K28+K28*$H$5,2),$N$32)","v":"20,93 €/Stk."},null,null,17.899999999999999,null,16.100000000000001,14.5]
[{"$f":"IF($L$1=\"D\",VLOOKUP(44,Übersetzung!$A$2:$D$100,2),IF($L$1=\"F\",VLOOKUP(44,Übersetzung!$A$2:$D$100,3),VLOOKUP(44,Übersetzung!$A$2:$D$100,4)))","v":"Innenecke"},"32 x 32","1 / 20",null,{"$f":"CONCATENATE(ROUND(I29+I29*$H$5,2),$N$32)","v":"17,42 €/Stk."},{"$f":"CONCATENATE(ROUND(K29+K29*$H$5,2),$N$32)","v":"15,73 €/Stk."},null,null,13.4,null,12.1,10.9]
[{"$f":"IF($L$1=\"D\",VLOOKUP(45,Übersetzung!$A$2:$D$100,2),IF($L$1=\"F\",VLOOKUP(45,Übersetzung!$A$2:$D$100,3),VLOOKUP(45,Übersetzung!$A$2:$D$100,4)))","v":"Edelstahlnägel"},{"$f":"IF($L$1=\"D\",VLOOKUP(44,Übersetzung!$A$2:$D$100,2),IF($L$1=\"F\",VLOOKUP(44,Übersetzung!$A$2:$D$100,3),VLOOKUP(44,Übersetzung!$A$2:$D$100,4)))","v":"Innenecke"},{"$f":"IF($L$1=\"D\",VLOOKUP(44,Übersetzung!$A$2:$D$100,2),IF($L$1=\"F\",VLOOKUP(44,Übersetzung!$A$2:$D$100,3),VLOOKUP(44,Übersetzung!$A$2:$D$100,4)))","v":"Innenecke"},null,{"$f":"IF($L$1=\"D\",VLOOKUP(44,Übersetzung!$A$2:$D$100,2),IF($L$1=\"F\",VLOOKUP(44,Übersetzung!$A$2:$D$100,3),VLOOKUP(44,Übersetzung!$A$2:$D$100,4)))","v":"Innenecke"},{"$f":"IF($L$1=\"D\",VLOOKUP(44,Übersetzung!$A$2:$D$100,2),IF($L$1=\"F\",VLOOKUP(44,Übersetzung!$A$2:$D$100,3),VLOOKUP(44,Übersetzung!$A$2:$D$100,4)))","v":"Innenecke"}]
[{"$f":"IF($L$1=\"D\",VLOOKUP(46,Übersetzung!$A$2:$D$100,2),IF($L$1=\"F\",VLOOKUP(46,Übersetzung!$A$2:$D$100,3),VLOOKUP(46,Übersetzung!$A$2:$D$100,4)))","v":"Nägel farbig beschichtet mit Hammerschutz"},"ø2,7 x 64                  ",{"$f":"CONCATENATE(\"Box 680 \",N31)","v":"Box 680  Stk."},{"$f":" CONCATENATE(\"20\",N31,\"/m²\")","v":"20 Stk./m²"},{"$f":"CONCATENATE(ROUND(I31+I31*$H$31,2),$N$31)","v":"74,72 Stk."},null,null,{"$f":"IF($I$1=\"A\",VLOOKUP(4,MargenVersionen!$A$9:$G$12,2),IF($I$1=\"B\",VLOOKUP(4,MargenVersionen!$A$9:$G$12,4),VLOOKUP(4,MargenVersionen!$A$9:$G$12,6)))","v":0.6},46.7,40.299999999999997,null,37.799999999999997,null,{"$f":"IF($L$1=\"D\",VLOOKUP(203,Übersetzung!$A$2:$D$299,2),IF($L$1=\"F\",VLOOKUP(203,Übersetzung!$A$2:$D$299,3),VLOOKUP(203,Übersetzung!$A$2:$D$299,4)))","v":" Stk."}]
[{"$f":"IF($L$1=\"D\",VLOOKUP(47,Übersetzung!$A$2:$D$100,2),IF($L$1=\"F\",VLOOKUP(47,Übersetzung!$A$2:$D$100,3),VLOOKUP(47,Übersetzung!$A$2:$D$100,4)))","v":"Original Cape Cod Farbe*"},{"$f":"IF($L$1=\"D\",VLOOKUP(46,Übersetzung!$A$2:$D$100,2),IF($L$1=\"F\",VLOOKUP(46,Übersetzung!$A$2:$D$100,3),VLOOKUP(46,Übersetzung!$A$2:$D$100,4)))","v":"Nägel farbig beschichtet mit Hammerschutz"},{"$f":"IF($L$1=\"D\",VLOOKUP(46,Übersetzung!$A$2:$D$100,2),IF($L$1=\"F\",VLOOKUP(46,Übersetzung!$A$2:$D$100,3),VLOOKUP(46,Übersetzung!$A$2:$D$100,4)))","v":"Nägel farbig beschichtet mit Hammerschutz"},null,{"$f":"IF($L$1=\"D\",VLOOKUP(46,Übersetzung!$A$2:$D$100,2),IF($L$1=\"F\",VLOOKUP(46,Übersetzung!$A$2:$D$100,3),VLOOKUP(46,Übersetzung!$A$2:$D$100,4)))","v":"Nägel farbig beschichtet mit Hammerschutz"},{"$f":"IF($L$1=\"D\",VLOOKUP(46,Übersetzung!$A$2:$D$100,2),IF($L$1=\"F\",VLOOKUP(46,Übersetzung!$A$2:$D$100,3),VLOOKUP(46,Übersetzung!$A$2:$D$100,4)))","v":"Nägel farbig beschichtet mit Hammerschutz"},null,null,null,null,null,null,null,{"$f":"IF($L$1=\"D\",VLOOKUP(202,Übersetzung!$A$2:$D$299,2),IF($L$1=\"F\",VLOOKUP(202,Übersetzung!$A$2:$D$299,3),VLOOKUP(202,Übersetzung!$A$2:$D$299,4)))","v":" €/Stk."}]
[{"$f":"IF($L$1=\"D\",VLOOKUP(174,Übersetzung!$A$2:$D$299,2),IF($L$1=\"F\",VLOOKUP(174,Übersetzung!$A$2:$D$299,3),VLOOKUP(174,Übersetzung!$A$2:$D$299,4)))","v":"Zum Streichen von Schnittkanten und zum vollflächigen Überarbeiten"},{"$f":"IF($L$1=\"D\",VLOOKUP(20,Übersetzung!$A$2:$D$100,2),IF($L$1=\"F\",VLOOKUP(20,Übersetzung!$A$2:$D$100,3),VLOOKUP(20,Übersetzung!$A$2:$D$100,4)))","v":"Gebinde 1L "},"1 / 6","1 L / ±70m²",{"$f":"CONCATENATE(ROUND(I33+I33*$H$31,2),$N$33)","v":"23,68 €/Gebinde"},{"$f":"CONCATENATE(ROUND(K33+K33*$H$31,2),$N$33)","v":"21,28 €/Gebinde"},null,null,14.8,null,13.3,11.95,null,{"$f":"IF($L$1=\"D\",VLOOKUP(201,Übersetzung!$A$2:$D$299,2),IF($L$1=\"F\",VLOOKUP(201,Übersetzung!$A$2:$D$299,3),VLOOKUP(201,Übersetzung!$A$2:$D$299,4)))","v":" €/Gebinde"}]
[null,{"$f":"IF($L$1=\"D\",VLOOKUP(96,Übersetzung!$A$2:$D$100,2),IF($L$1=\"F\",VLOOKUP(96,Übersetzung!$A$2:$D$100,3),VLOOKUP(96,Übersetzung!$A$2:$D$100,4)))","v":"Gebinde 3,75L"},"1 / 2","1 L / ±70m²",{"$f":"CONCATENATE(ROUND(I34+I34*$H$31,2),$N$33)","v":"87,2 €/Gebinde"},{"$f":"CONCATENATE(ROUND(K34+K34*$H$31,2),$N$33)","v":"78,4 €/Gebinde"},null,null,54.5,null,49,44.1]
[{"$f":"IF($L$1=\"D\",VLOOKUP(49,Übersetzung!$A$2:$D$299,2),IF($L$1=\"F\",VLOOKUP(49,Übersetzung!$A$2:$D$299,3),VLOOKUP(49,Übersetzung!$A$2:$D$299,4)))","v":"Kombigrund*"}]
[{"$f":"IF($L$1=\"D\",VLOOKUP(50,Übersetzung!$A$2:$D$299,2),IF($L$1=\"F\",VLOOKUP(50,Übersetzung!$A$2:$D$299,3),VLOOKUP(50,Übersetzung!$A$2:$D$299,4)))","v":"Fungizider Isoliergrund \"deckend\" weiss - angegebener Verbrauch für 2 Anstriche"},{"$f":"IF($L$1=\"D\",VLOOKUP(97,Übersetzung!$A$2:$D$100,2),IF($L$1=\"F\",VLOOKUP(97,Übersetzung!$A$2:$D$100,3),VLOOKUP(97,Übersetzung!$A$2:$D$100,4)))","v":"Gebinde 2,5L"},null,"150 g/m²",{"$f":"I36+I36*$H$31","v":22.72},null,null,null,14.2]
[null,{"$f":"IF($L$1=\"D\",VLOOKUP(98,Übersetzung!$A$2:$D$100,2),IF($L$1=\"F\",VLOOKUP(98,Übersetzung!$A$2:$D$100,3),VLOOKUP(98,Übersetzung!$A$2:$D$100,4)))","v":"Gebinde 20L"},null,"150 g/m²",{"$f":"I37+I37*$H$31","v":15.759999999999998},null,null,null,9.85]
[{"$f":"IF($L$1=\"D\",VLOOKUP(173,Übersetzung!$A$2:$D$299,2),IF($L$1=\"F\",VLOOKUP(173,Übersetzung!$A$2:$D$299,3),VLOOKUP(173,Übersetzung!$A$2:$D$299,4)))","v":"Wetterschutzfarbe*"},{"$f":"IF($L$1=\"D\",VLOOKUP(46,Übersetzung!$A$2:$D$100,2),IF($L$1=\"F\",VLOOKUP(46,Übersetzung!$A$2:$D$100,3),VLOOKUP(46,Übersetzung!$A$2:$D$100,4)))","v":"Nägel farbig beschichtet mit Hammerschutz"},{"$f":"IF($L$1=\"D\",VLOOKUP(46,Übersetzung!$A$2:$D$100,2),IF($L$1=\"F\",VLOOKUP(46,Übersetzung!$A$2:$D$100,3),VLOOKUP(46,Übersetzung!$A$2:$D$100,4)))","v":"Nägel farbig beschichtet mit Hammerschutz"},null,{"$f":"IF($L$1=\"D\",VLOOKUP(46,Übersetzung!$A$2:$D$100,2),IF($L$1=\"F\",VLOOKUP(46,Übersetzung!$A$2:$D$100,3),VLOOKUP(46,Übersetzung!$A$2:$D$100,4)))","v":"Nägel farbig beschichtet mit Hammerschutz"},{"$f":"IF($L$1=\"D\",VLOOKUP(46,Übersetzung!$A$2:$D$100,2),IF($L$1=\"F\",VLOOKUP(46,Übersetzung!$A$2:$D$100,3),VLOOKUP(46,Übersetzung!$A$2:$D$100,4)))","v":"Nägel farbig beschichtet mit Hammerschutz"}]
[{"$f":"IF($L$1=\"D\",VLOOKUP(52,Übersetzung!$A$2:$D$299,2),IF($L$1=\"F\",VLOOKUP(52,Übersetzung!$A$2:$D$299,3),VLOOKUP(52,Übersetzung!$A$2:$D$299,4)))","v":"Für angrenzende Bauteile wie z.B. Sichtgebälk, Fensterlaibungen etc. Nicht zum Ausbessern in der Fläche! Wasserverdünnbar Reinacrylbasis, nach CapeCod-Farbton - angegebener Verbrauch für 2 Anstriche."},{"$f":"IF($L$1=\"D\",VLOOKUP(20,Übersetzung!$A$2:$D$100,2),IF($L$1=\"F\",VLOOKUP(20,Übersetzung!$A$2:$D$100,3),VLOOKUP(20,Übersetzung!$A$2:$D$100,4)))","v":"Gebinde 1L "},null,"130 g/m²",{"$f":"I39+I39*$H$31","v":23.2},null,null,null,14.5]
[null,{"$f":"IF($L$1=\"D\",VLOOKUP(97,Übersetzung!$A$2:$D$100,2),IF($L$1=\"F\",VLOOKUP(97,Übersetzung!$A$2:$D$100,3),VLOOKUP(97,Übersetzung!$A$2:$D$100,4)))","v":"Gebinde 2,5L"},null,"130 g/m²",{"$f":"I40+I40*$H$31","v":20.32},null,null,null,12.7]
[null,{"$f":"IF($L$1=\"D\",VLOOKUP(99,Übersetzung!$A$2:$D$100,2),IF($L$1=\"F\",VLOOKUP(99,Übersetzung!$A$2:$D$100,3),VLOOKUP(99,Übersetzung!$A$2:$D$100,4)))","v":"Gebinde 12L"},null,"130 g/m²",{"$f":"I41+I41*$H$31","v":18.72},null,null,null,11.7]
[]
[null,null,null,null,{"$f":"I43+I43*$H$5","v":1.17},null,null,null,0.9,null,null,null,null,null,0.9]
[{"$f":"IF($L$1=\"D\",VLOOKUP(59,Übersetzung!$A$2:$D$100,2),IF($L$1=\"F\",VLOOKUP(59,Übersetzung!$A$2:$D$100,3),VLOOKUP(59,Übersetzung!$A$2:$D$100,4)))","v":"*Lieferzeit 1 Woche per Paketdienst"}]
[{"$f":"IF($L$1=\"D\",VLOOKUP(55,Übersetzung!$A$2:$D$100,2),IF($L$1=\"F\",VLOOKUP(55,Übersetzung!$A$2:$D$100,3),VLOOKUP(55,Übersetzung!$A$2:$D$100,4)))","v":"Sonderfarbe nach Muster, NCS, RAL ab 50m² möglich an 335,-€ pauschal; ab 100m² ohne Aufschlag"}]
[]
[{"$f":"IF($L$1=\"D\",VLOOKUP(57,Übersetzung!$A$2:$D$100,2),IF($L$1=\"F\",VLOOKUP(57,Übersetzung!$A$2:$D$100,3),VLOOKUP(57,Übersetzung!$A$2:$D$100,4)))","v":"Cape Cod Fassadenprofile mit 15 Jahren Garantie"},{"$f":"IF($L$1=\"D\",VLOOKUP(46,Übersetzung!$A$2:$D$100,2),IF($L$1=\"F\",VLOOKUP(46,Übersetzung!$A$2:$D$100,3),VLOOKUP(46,Übersetzung!$A$2:$D$100,4)))","v":"Nägel farbig beschichtet mit Hammerschutz"},{"$f":"IF($L$1=\"D\",VLOOKUP(46,Übersetzung!$A$2:$D$100,2),IF($L$1=\"F\",VLOOKUP(46,Übersetzung!$A$2:$D$100,3),VLOOKUP(46,Übersetzung!$A$2:$D$100,4)))","v":"Nägel farbig beschichtet mit Hammerschutz"},null,{"$f":"IF($L$1=\"D\",VLOOKUP(46,Übersetzung!$A$2:$D$100,2),IF($L$1=\"F\",VLOOKUP(46,Übersetzung!$A$2:$D$100,3),VLOOKUP(46,Übersetzung!$A$2:$D$100,4)))","v":"Nägel farbig beschichtet mit Hammerschutz"},{"$f":"IF($L$1=\"D\",VLOOKUP(46,Übersetzung!$A$2:$D$100,2),IF($L$1=\"F\",VLOOKUP(46,Übersetzung!$A$2:$D$100,3),VLOOKUP(46,Übersetzung!$A$2:$D$100,4)))","v":"Nägel farbig beschichtet mit Hammerschutz"}]
[{"$f":"IF($L$1=\"D\",VLOOKUP(58,Übersetzung!$A$2:$D$100,2),IF($L$1=\"F\",VLOOKUP(58,Übersetzung!$A$2:$D$100,3),VLOOKUP(58,Übersetzung!$A$2:$D$100,4)))","v":"Lodgepole Kiefer endbehandelt, feiner Bandsägeschnitt, KD auf ca. 12% HF, feinastig, frei von Astlöchern, losen Astknoten und anderen strukturellen Defekten."}]
[]
[]
[]
[]
[]
[]
[]
[]
[]
[]
[]
[]
[]
[]
[]
[]
[]
[]
[]
[]
[]
[]
[]
[]
[{"$f":"IF($L$1=\"D\",VLOOKUP(107,Übersetzung!$A$2:$D$149,2),IF($L$1=\"F\",VLOOKUP(107,Übersetzung!$A$2:$D$149,3),VLOOKUP(107,Übersetzung!$A$2:$D$149,4)))","v":"Gültig ab 1. März 2018 !"},null,{"$f":"IF($L$1=\"D\",VLOOKUP(152,Übersetzung!$A$2:$D$300,2),IF($L$1=\"F\",VLOOKUP(152,Übersetzung!$A$2:$D$300,3),VLOOKUP(152,Übersetzung!$A$2:$D$300,4)))","v":"Seite: "},{"$f":"_xlfn.SHEET(D73)-1 & \"/\" & MargenVersionen!K6","v":"10/13"},null,{"$f":"IF($L$1=\"D\",VLOOKUP(185,Übersetzung!$A$2:$D$300,2),IF($L$1=\"F\",VLOOKUP(185,Übersetzung!$A$2:$D$300,3),VLOOKUP(185,Übersetzung!$A$2:$D$300,4)))","v":"v01"}]

{"sheet":"CapeCod-Lagerprogramm (S.11)","index":11,"n_rows":36,"n_cols":16,"rows_kept":36,"cut":false,"hidden":false,"merged":[[14,11,15,11],[14,12,15,12],[30,0,31,0],[26,12,27,12],[28,0,29,0],[28,1,29,1],[28,2,29,2],[28,3,29,3],[28,4,29,4],[28,5,29,5],[28,6,29,6],[28,7,29,7],[28,8,29,8],[26,6,27,6],[26,7,27,7],[26,8,27,8],[26,9,27,9],[26,10,27,10],[26,11,27,11],[28,12,29,12],[28,9,29,9],[28,10,29,10],[28,11,29,11],[24,12,25,12],[26,0,27,0],[26,1,27,1],[26,2,27,2],[26,3,27,3],[26,4,27,4],[26,5,27,5],[20,12,21,12],[22,0,23,0],[22,1,23,1],[22,2,23,2],[22,3,23,3],[22,4,23,4],[22,5,23,5],[22,12,23,12],[24,0,25,0],[24,1,25,1],[24,2,25,2],[24,3,25,3],[24,4,25,4],[24,5,25,5],[24,6,25,6],[24,7,25,7],[24,8,25,8],[22,6,23,6],[22,7,23,7],[22,8,23,8],[22,9,23,9],[22,10,23,10],[22,11,23,11],[24,9,25,9],[20,0,21,0],[20,1,21,1],[20,2,21,2],[20,3,21,3],[20,4,21,4],[20,5,21,5],[20,6,21,6],[20,7,21,7],[20,10,21,10],[20,8,21,8],[20,11,21,11],[24,10,25,10],[24,11,25,11],[16,12,17,12],[18,0,19,0],[18,1,19,1],[18,2,19,2],[18,3,19,3],[18,4,19,4],[18,5,19,5],[18,6,19,6],[18,7,19,7],[18,8,19,8],[16,6,17,6],[16,7,17,7],[16,8,17,8],[16,9,17,9],[16,10,17,10],[16,11,17,11],[18,9,19,9],[18,10,19,10],[18,11,19,11],[18,12,19,12],[10,11,11,11],[10,12,11,12],[12,0,13,0],[10,7,11,7],[10,8,11,8],[10,9,11,9],[10,10,11,10],[12,11,13,11],[12,12,13,12],[12,1,13,1],[12,7,13,7],[12,8,13,8],[12,9,13,9],[12,10,13,10],[10,5,11,5],[10,6,11,6],[12,2,13,2],[12,3,13,3],[12,4,13,4],[12,5,13,5],[12,6,13,6],[14,9,15,9],[14,8,15,8],[14,7,15,7],[20,9,21,9],[2,3,4,7],[10,0,11,0],[10,1,11,1],[10,2,11,2],[10,3,11,3],[10,4,11,4],[14,0,15,0],[16,0,17,0],[16,1,17,1],[16,2,17,2],[16,3,17,3],[16,4,17,4],[16,5,17,5],[14,2,15,2],[14,3,15,3],[14,4,15,4],[14,5,15,5],[14,6,15,6],[14,1,15,1]]}
[null,null,null,null,null,null,null,null,null,null,null,null,null,null,null,"d"]
[]
[null,null,null,{"$f":"IF($P$1=\"D\",VLOOKUP(24,Übersetzung!$A$2:$D$100,2),IF($P$1=\"F\",VLOOKUP(24,Übersetzung!$A$2:$D$100,3),VLOOKUP(24,Übersetzung!$A$2:$D$100,4)))","v":"Lagerware"}]
[]
[]
[]
[]
[]
[null,{"$f":"IF($P$1=\"D\",VLOOKUP(73,Übersetzung!$A$2:$D$100,2),IF($P$1=\"F\",VLOOKUP(73,Übersetzung!$A$2:$D$100,3),VLOOKUP(73,Übersetzung!$A$2:$D$100,4)))","v":"Meerblau"},{"$f":"IF($P$1=\"D\",VLOOKUP(74,Übersetzung!$A$2:$D$100,2),IF($P$1=\"F\",VLOOKUP(74,Übersetzung!$A$2:$D$100,3),VLOOKUP(74,Übersetzung!$A$2:$D$100,4)))","v":"Eisblau"},{"$f":"IF($P$1=\"D\",VLOOKUP(75,Übersetzung!$A$2:$D$100,2),IF($P$1=\"F\",VLOOKUP(75,Übersetzung!$A$2:$D$100,3),VLOOKUP(75,Übersetzung!$A$2:$D$100,4)))","v":"Mango"},{"$f":"IF($P$1=\"D\",VLOOKUP(76,Übersetzung!$A$2:$D$100,2),IF($P$1=\"F\",VLOOKUP(76,Übersetzung!$A$2:$D$100,3),VLOOKUP(76,Übersetzung!$A$2:$D$100,4)))","v":"Granat"},{"$f":"IF($P$1=\"D\",VLOOKUP(77,Übersetzung!$A$2:$D$100,2),IF($P$1=\"F\",VLOOKUP(77,Übersetzung!$A$2:$D$100,3),VLOOKUP(77,Übersetzung!$A$2:$D$100,4)))","v":"Terracotta"},{"$f":"IF($P$1=\"D\",VLOOKUP(78,Übersetzung!$A$2:$D$100,2),IF($P$1=\"F\",VLOOKUP(78,Übersetzung!$A$2:$D$100,3),VLOOKUP(78,Übersetzung!$A$2:$D$100,4)))","v":"Sandelholz"},{"$f":"IF($P$1=\"D\",VLOOKUP(79,Übersetzung!$A$2:$D$100,2),IF($P$1=\"F\",VLOOKUP(79,Übersetzung!$A$2:$D$100,3),VLOOKUP(79,Übersetzung!$A$2:$D$100,4)))","v":"Weiß"},{"$f":"IF($P$1=\"D\",VLOOKUP(80,Übersetzung!$A$2:$D$100,2),IF($P$1=\"F\",VLOOKUP(80,Übersetzung!$A$2:$D$100,3),VLOOKUP(80,Übersetzung!$A$2:$D$100,4)))","v":"Vik. Grau"},{"$f":"IF($P$1=\"D\",VLOOKUP(81,Übersetzung!$A$2:$D$100,2),IF($P$1=\"F\",VLOOKUP(81,Übersetzung!$A$2:$D$100,3),VLOOKUP(81,Übersetzung!$A$2:$D$100,4)))","v":"Kaminrot"},{"$f":"IF($P$1=\"D\",VLOOKUP(82,Übersetzung!$A$2:$D$100,2),IF($P$1=\"F\",VLOOKUP(82,Übersetzung!$A$2:$D$100,3),VLOOKUP(82,Übersetzung!$A$2:$D$100,4)))","v":"Vanille"},{"$f":"IF($P$1=\"D\",VLOOKUP(83,Übersetzung!$A$2:$D$100,2),IF($P$1=\"F\",VLOOKUP(83,Übersetzung!$A$2:$D$100,3),VLOOKUP(83,Übersetzung!$A$2:$D$100,4)))","v":"Kieselgrau"},{"$f":"IF($P$1=\"D\",VLOOKUP(84,Übersetzung!$A$2:$D$100,2),IF($P$1=\"F\",VLOOKUP(84,Übersetzung!$A$2:$D$100,3),VLOOKUP(84,Übersetzung!$A$2:$D$100,4)))","v":"Schwarz"}]
[{"$f":"IF($P$1=\"D\",VLOOKUP(60,Übersetzung!$A$2:$D$100,2),IF($P$1=\"F\",VLOOKUP(60,Übersetzung!$A$2:$D$100,3),VLOOKUP(60,Übersetzung!$A$2:$D$100,4)))","v":"Bevel Profil\n24 x 137 mm"},"4,88m","4,88m","4,88m","4,88 m","4,88 m","4,88 m","4,88m","4,88m","4,88 m","4,88 m ","4,88m","4,88m"]
[{"$f":"IF($P$1=\"D\",VLOOKUP(61,Übersetzung!$A$2:$D$100,2),IF($P$1=\"F\",VLOOKUP(61,Übersetzung!$A$2:$D$100,3),VLOOKUP(61,Übersetzung!$A$2:$D$100,4)))","v":"Channel Profil\n18,5 x 137 mm"},null,null,null,null,null,null,"4,88m","4,88m","4,88 m ",null,"4,88m"]
[]
[{"$f":"IF($P$1=\"D\",VLOOKUP(62,Übersetzung!$A$2:$D$100,2),IF($P$1=\"F\",VLOOKUP(62,Übersetzung!$A$2:$D$100,3),VLOOKUP(62,Übersetzung!$A$2:$D$100,4)))","v":"Glattkant\n18,5 x 137 mm"},"4,88m","4,88m","4,88m","4,88m","4,88m","4,88m","4,88m","4,88m","4,88 m","4,88m","4,88m","4,88m"]
[]
[{"$f":"IF($P$1=\"D\",VLOOKUP(63,Übersetzung!$A$2:$D$100,2),IF($P$1=\"F\",VLOOKUP(63,Übersetzung!$A$2:$D$100,3),VLOOKUP(63,Übersetzung!$A$2:$D$100,4)))","v":"Glattkant\n18,5 x 178 mm"},"4,88m","4,88m","4,88m","4,88m","4,88m","4,88m","4,88m","4,88m","4,88 m ",null,"4,88m","4,88m"]
[null,null,null,null,null,null,null,null,null,null,"4,88m"]
[{"$f":"IF($P$1=\"D\",VLOOKUP(64,Übersetzung!$A$2:$D$100,2),IF($P$1=\"F\",VLOOKUP(64,Übersetzung!$A$2:$D$100,3),VLOOKUP(64,Übersetzung!$A$2:$D$100,4)))","v":"Deckleiste\n18,5 x 65 mm"},null,null,null,null,null,null,"4,88m","4,88m","4,88 m ",null,"4,88m"]
[]
[{"$f":"IF($P$1=\"D\",VLOOKUP(65,Übersetzung!$A$2:$D$100,2),IF($P$1=\"F\",VLOOKUP(65,Übersetzung!$A$2:$D$100,3),VLOOKUP(65,Übersetzung!$A$2:$D$100,4)))","v":"Rhombusleiste\n18,5 x 65 mm"},null,null,null,null,null,null,"4,88m","4,88m","4,88 m ",null,"4,88m"]
[]
[{"$f":"IF($P$1=\"D\",VLOOKUP(66,Übersetzung!$A$2:$D$100,2),IF($P$1=\"F\",VLOOKUP(66,Übersetzung!$A$2:$D$100,3),VLOOKUP(66,Übersetzung!$A$2:$D$100,4)))","v":"Doppelrhombus\n18,5 x 137 mm"},null,null,null,null,null,null,"4,88 m ","4,88 m","4,88 m ",null,"4,88 m"]
[]
[{"$f":"IF($P$1=\"D\",VLOOKUP(67,Übersetzung!$A$2:$D$100,2),IF($P$1=\"F\",VLOOKUP(67,Übersetzung!$A$2:$D$100,3),VLOOKUP(67,Übersetzung!$A$2:$D$100,4)))","v":"Außenecke\n32 x 108 mm"},null,null,null,null,null,null,"3,04m","3,04m","3,04 m ",null,"3,04m"]
[]
[{"$f":"IF($P$1=\"D\",VLOOKUP(68,Übersetzung!$A$2:$D$100,2),IF($P$1=\"F\",VLOOKUP(68,Übersetzung!$A$2:$D$100,3),VLOOKUP(68,Übersetzung!$A$2:$D$100,4)))","v":"Außenecke\n32 x 140 mm"},null,null,null,null,null,null,"3,04m","3,04m","3,04 m ",null,"3,04m"]
[]
[{"$f":"IF($P$1=\"D\",VLOOKUP(69,Übersetzung!$A$2:$D$100,2),IF($P$1=\"F\",VLOOKUP(69,Übersetzung!$A$2:$D$100,3),VLOOKUP(69,Übersetzung!$A$2:$D$100,4)))","v":"Eckbrett\n35 x 86 mm"},null,null,null,null,null,null,"3,04m","3,04m","3,04 m ",null,"3,04m"]
[]
[{"$f":"IF($P$1=\"D\",VLOOKUP(70,Übersetzung!$A$2:$D$100,2),IF($P$1=\"F\",VLOOKUP(70,Übersetzung!$A$2:$D$100,3),VLOOKUP(70,Übersetzung!$A$2:$D$100,4)))","v":"Innenecke\n32 x 32 mm"},null,null,null,null,null,null,"3,04m","3,04m","3,04 m ",null,"3,04m"]
[]
[{"$f":"IF($P$1=\"D\",VLOOKUP(71,Übersetzung!$A$2:$D$100,2),IF($P$1=\"F\",VLOOKUP(71,Übersetzung!$A$2:$D$100,3),VLOOKUP(71,Übersetzung!$A$2:$D$100,4)))","v":"Ausbesserungsfarbe"},"1l","1l","1l","1l","1l","1l","1l","1l","1l","1l","1l","1l"]
[null,"3,75l","3,75l","3,75l","3,75l","3,75l","3,75l","3,75l","3,75l","3,75l","3,75l","3,75l","3,75l"]
[]
[{"$f":"IF($P$1=\"D\",VLOOKUP(129,Übersetzung!$A$2:$D$201,2),IF($P$1=\"F\",VLOOKUP(129,Übersetzung!$A$2:$D$201,3),VLOOKUP(129,Übersetzung!$A$2:$D$201,4)))","v":"Alle Varianten, für welche keine Längen angegeben sind, können auf Kommission bestellt werden. Lieferzeit ca. 8 - 10 Wochen. "}]
[]
[{"$f":"IF($P$1=\"D\",VLOOKUP(107,Übersetzung!$A$2:$D$149,2),IF($P$1=\"F\",VLOOKUP(107,Übersetzung!$A$2:$D$149,3),VLOOKUP(107,Übersetzung!$A$2:$D$149,4)))","v":"Gültig ab 1. März 2018 !"},null,null,null,null,{"$f":"IF($P$1=\"D\",VLOOKUP(152,Übersetzung!$A$2:$D$300,2),IF($P$1=\"F\",VLOOKUP(152,Übersetzung!$A$2:$D$300,3),VLOOKUP(152,Übersetzung!$A$2:$D$300,4)))","v":"Seite: "},{"$f":"_xlfn.SHEET(D73)-1 & \"/\" & MargenVersionen!K6","v":"11/13"},null,null,null,null,null,{"$f":"IF($L$1=\"D\",VLOOKUP(185,Übersetzung!$A$2:$D$300,2),IF($L$1=\"F\",VLOOKUP(185,Übersetzung!$A$2:$D$300,3),VLOOKUP(185,Übersetzung!$A$2:$D$300,4)))","v":"v01"}]

{"sheet":"Zubehör (S.12)","index":12,"n_rows":51,"n_cols":13,"rows_kept":51,"cut":false,"hidden":false,"merged":[[1,1,2,5],[50,0,50,1],[10,0,10,5],[12,9,13,9],[5,1,5,2],[6,1,6,2],[7,1,7,2],[8,1,8,2],[9,1,9,2],[11,1,11,2],[12,1,12,2],[39,2,39,3],[39,5,39,6],[13,1,13,2],[15,2,15,3],[15,5,15,6],[27,2,27,3],[27,5,27,6],[3,10,3,11],[4,10,4,11]]}
[null,null,null,null,null,null,null,null,null,null,"a",null,"d"]
[null,{"$f":"\"   \" & IF($K$1=\"a\",(IF($M$1=\"D\",VLOOKUP(48,Übersetzung!$A$2:$D$100,2),IF($M$1=\"F\",VLOOKUP(48,Übersetzung!$A$2:$D$100,3),VLOOKUP(48,Übersetzung!$A$2:$D$100,4)))),(IF($M$1=\"D\",VLOOKUP(125,Übersetzung!$A$2:$D$150,2),IF($M$1=\"F\",VLOOKUP(125,Übersetzung!$A$2:$D$150,3),VLOOKUP(125,Übersetzung!$A$2:$D$150,4)))))","v":"   Händlerpreisliste 2018"}]
[]
[null,null,null,null,null,null,null,null,null,null,"Leithändlerpreise 02/2018"]
[]
[{"$f":"IF($M$1=\"D\",VLOOKUP(122,Übersetzung!$A$2:$D$121,2),IF($M$1=\"F\",VLOOKUP(122,Übersetzung!$A$2:$D$121,3),VLOOKUP(122,Übersetzung!$A$2:$D$121,4)))","v":"Nr."},{"$f":"IF($M$1=\"D\",VLOOKUP(111,Übersetzung!$A$2:$D$110,2),IF($M$1=\"F\",VLOOKUP(111,Übersetzung!$A$2:$D$110,3),VLOOKUP(111,Übersetzung!$A$2:$D$110,4)))","v":"ZUBEHÖR"},null,{"$f":"IF($M$1=\"D\",VLOOKUP(109,Übersetzung!$A$2:$D$108,2),IF($M$1=\"F\",VLOOKUP(109,Übersetzung!$A$2:$D$108,3),VLOOKUP(109,Übersetzung!$A$2:$D$108,4)))","v":"Abmessungen (mm)"},{"$f":"IF($M$1=\"D\",VLOOKUP(3,Übersetzung!$A$2:$D$100,2),IF($M$1=\"F\",VLOOKUP(3,Übersetzung!$A$2:$D$100,3),VLOOKUP(3,Übersetzung!$A$2:$D$100,4)))","v":"Länge\n(m)"},{"$f":"IF($M$1=\"D\",VLOOKUP(110,Übersetzung!$A$2:$D$109,2),IF($M$1=\"F\",VLOOKUP(110,Übersetzung!$A$2:$D$109,3),VLOOKUP(110,Übersetzung!$A$2:$D$109,4)))","v":"Einzelpreis (/m)"},{"$f":"IF($M$1=\"D\",VLOOKUP(177,Übersetzung!$A$2:$D$301,2),IF($M$1=\"F\",VLOOKUP(177,Übersetzung!$A$2:$D$301,3),VLOOKUP(177,Übersetzung!$A$2:$D$301,4)))","v":"Einzelpreis (ab 60 lfm)"},null,null,"Marge W&R auf EK Habis","Einzelpreis","Paketpreis"]
[1,{"$f":"IF($M$1=\"D\",VLOOKUP(112,Übersetzung!$A$2:$D$111,2),IF($M$1=\"F\",VLOOKUP(112,Übersetzung!$A$2:$D$111,3),VLOOKUP(112,Übersetzung!$A$2:$D$111,4)))","v":"Außenecke (geschlossen) aus \neloxiertem Aluminium"},null,"65 x 65 x 2",6,{"$f":"ROUND(K7+K7*$J$7,2)","v":12.4},11.12,null,null,{"$f":"IF($K$1=\"A\",VLOOKUP(4,MargenVersionen!$A$9:$G$12,2),IF($K$1=\"B\",VLOOKUP(4,MargenVersionen!$A$9:$G$12,4),VLOOKUP(4,MargenVersionen!$A$9:$G$12,6)))","v":0.6},7.75,6.95]
[2,{"$f":"IF($M$1=\"D\",VLOOKUP(113,Übersetzung!$A$2:$D$112,2),IF($M$1=\"F\",VLOOKUP(113,Übersetzung!$A$2:$D$112,3),VLOOKUP(113,Übersetzung!$A$2:$D$112,4)))","v":"Außenecke (offen) aus \neloxiertem Aluminium"},null,"65 x 65 x 2",6,10.56,9.52,null,null,null,6.6,5.95]
[3,{"$f":"IF($M$1=\"D\",VLOOKUP(114,Übersetzung!$A$2:$D$113,2),IF($M$1=\"F\",VLOOKUP(114,Übersetzung!$A$2:$D$113,3),VLOOKUP(114,Übersetzung!$A$2:$D$113,4)))","v":"Innenecke aus \neloxiertem Aluminium"},null,"65 x 65 x 2",6,10.56,9.52,null,null,null,6.6,5.95]
[4,{"$f":"IF($M$1=\"D\",VLOOKUP(115,Übersetzung!$A$2:$D$114,2),IF($M$1=\"F\",VLOOKUP(115,Übersetzung!$A$2:$D$114,3),VLOOKUP(115,Übersetzung!$A$2:$D$114,4)))","v":"Trennprofil aus \neloxiertem Aluminium"},null,"85 x 80 x 2",6,17.52,15.92,null,null,null,10.95,9.9499999999999993]
[null,null,null,null,null,null,{"$f":"IF($M$1=\"D\",VLOOKUP(178,Übersetzung!$A$2:$D$301,2),IF($M$1=\"F\",VLOOKUP(178,Übersetzung!$A$2:$D$301,3),VLOOKUP(178,Übersetzung!$A$2:$D$301,4)))","v":"Paketpreis (ab 330 Stück)"}]
[5,{"$f":"IF($M$1=\"D\",VLOOKUP(145,Übersetzung!$A$2:$D$301,2),IF($M$1=\"F\",VLOOKUP(145,Übersetzung!$A$2:$D$301,3),VLOOKUP(145,Übersetzung!$A$2:$D$301,4)))","v":"Unterkonstruktion, Douglasie (KD), kalibriert, einseitig abgeschrägt, 4-seitig lackiert (Tiefschwarz)"},null,{"$f":"IF($M$1=\"D\",VLOOKUP(122,Übersetzung!$A$2:$D$301,2),IF($M$1=\"F\",VLOOKUP(122,Übersetzung!$A$2:$D$301,3),VLOOKUP(122,Übersetzung!$A$2:$D$301,4)))","v":"22 x 45"},4.5,{"$f":"ROUND(K12+K12*$J$12,2)","v":1.76},{"$f":"ROUND(L12+L12*$J$12,2)","v":1.47},null,null,{"$f":"IF($K$1=\"A\",VLOOKUP(1,MargenVersionen!$A$9:$G$12,2),IF($K$1=\"B\",VLOOKUP(1,MargenVersionen!$A$9:$G$12,4),VLOOKUP(1,MargenVersionen!$A$9:$G$12,6)))","v":0.3},1.35,1.1299999999999999]
[6,{"$f":"IF($M$1=\"D\",VLOOKUP(172,Übersetzung!$A$2:$D$301,2),IF($M$1=\"F\",VLOOKUP(172,Übersetzung!$A$2:$D$301,3),VLOOKUP(172,Übersetzung!$A$2:$D$301,4)))","v":"Schrauben für DuraSidings, Edelstahl VA2, TX10, VPE 1000 Stück"},null,"ø3,2x40","/",{"$f":"ROUND(K13+K13*$J$13,2)","v":89.6},null,null,null,{"$f":"IF($K$1=\"A\",VLOOKUP(4,MargenVersionen!$A$9:$G$12,2),IF($K$1=\"B\",VLOOKUP(4,MargenVersionen!$A$9:$G$12,4),VLOOKUP(4,MargenVersionen!$A$9:$G$12,6)))","v":0.6},56,"/"]
[7,{"$f":"IF($M$1=\"D\",VLOOKUP(182,Übersetzung!$A$2:$D$301,2),IF($M$1=\"F\",VLOOKUP(182,Übersetzung!$A$2:$D$301,3),VLOOKUP(182,Übersetzung!$A$2:$D$301,4)))","v":"Zylinder-Senkkopf, Edelstahl V2A, mit schwarzem Kopf (lackiert in RAL9004 passend zu DuraAkzent), inkl. Spezialbit, VPE 500 Stück"},null,"ø4,0x50","/",{"$f":"ROUND(K14+K14*$J$13,2)","v":76.64},null,null,null,null,47.9,"/"]
[]
[null,{"$f":"IF($M$1=\"D\",VLOOKUP(117,Übersetzung!$A$2:$D$116,2),IF($M$1=\"F\",VLOOKUP(117,Übersetzung!$A$2:$D$116,3),VLOOKUP(117,Übersetzung!$A$2:$D$116,4)))","v":"Zubehör Nr. 1"},{"$f":"IF($M$1=\"D\",VLOOKUP(118,Übersetzung!$A$2:$D$117,2),IF($M$1=\"F\",VLOOKUP(118,Übersetzung!$A$2:$D$117,3),VLOOKUP(118,Übersetzung!$A$2:$D$117,4)))","v":"Zubehör Nr. 2"},null,null,{"$f":"IF($M$1=\"D\",VLOOKUP(119,Übersetzung!$A$2:$D$118,2),IF($M$1=\"F\",VLOOKUP(119,Übersetzung!$A$2:$D$118,3),VLOOKUP(119,Übersetzung!$A$2:$D$118,4)))","v":"Zubehör Nr. 3"}]
[]
[]
[]
[]
[]
[]
[]
[]
[]
[]
[]
[null,{"$f":"IF($M$1=\"D\",VLOOKUP(120,Übersetzung!$A$2:$D$119,2),IF($M$1=\"F\",VLOOKUP(120,Übersetzung!$A$2:$D$119,3),VLOOKUP(120,Übersetzung!$A$2:$D$119,4)))","v":"Zubehör Nr. 4"},{"$f":"IF($M$1=\"D\",VLOOKUP(121,Übersetzung!$A$2:$D$120,2),IF($M$1=\"F\",VLOOKUP(121,Übersetzung!$A$2:$D$120,3),VLOOKUP(121,Übersetzung!$A$2:$D$120,4)))","v":"Zubehör Nr. 5"},null,null,{"$f":"IF($M$1=\"D\",VLOOKUP(171,Übersetzung!$A$2:$D$301,2),IF($M$1=\"F\",VLOOKUP(171,Übersetzung!$A$2:$D$301,3),VLOOKUP(171,Übersetzung!$A$2:$D$301,4)))","v":"Zubehör Nr. 6"}]
[]
[]
[]
[]
[]
[]
[]
[]
[]
[]
[]
[null,{"$f":"IF($M$1=\"D\",VLOOKUP(186,Übersetzung!$A$2:$D$301,2),IF($M$1=\"F\",VLOOKUP(186,Übersetzung!$A$2:$D$301,3),VLOOKUP(186,Übersetzung!$A$2:$D$301,4)))","v":"Zubehör Nr. 7"}]
[]
[]
[null,null,null," "]
[]
[]
[]
[]
[]
[]
[]
[{"$f":"IF($M$1=\"D\",VLOOKUP(108,Übersetzung!$A$2:$D$107,2),IF($M$1=\"F\",VLOOKUP(108,Übersetzung!$A$2:$D$107,3),VLOOKUP(108,Übersetzung!$A$2:$D$107,4)))","v":"Gültig ab 1. März 2018 !"},null,null,{"$f":"IF($M$1=\"D\",VLOOKUP(152,Übersetzung!$A$2:$D$300,2),IF($M$1=\"F\",VLOOKUP(152,Übersetzung!$A$2:$D$300,3),VLOOKUP(152,Übersetzung!$A$2:$D$300,4)))","v":"Seite: "},{"$f":"_xlfn.SHEET(D73)-1 & \"/\" & MargenVersionen!K6","v":"12/13"},null,{"$f":"IF($M$1=\"D\",VLOOKUP(185,Übersetzung!$A$2:$D$300,2),IF($M$1=\"F\",VLOOKUP(185,Übersetzung!$A$2:$D$300,3),VLOOKUP(185,Übersetzung!$A$2:$D$300,4)))","v":"v01"}]

{"sheet":"Endblatt (S.13)","index":13,"n_rows":44,"n_cols":11,"rows_kept":44,"cut":false,"hidden":false,"merged":[]}
[]
[]
[]
[]
[]
[]
[]
[]
[]
[]
[]
[]
[]
[]
[]
[]
[]
[]
[]
[]
[]
[]
[]
[]
[]
[]
[]
[]
[]
[]
[]
[]
[]
[]
[]
[]
[]
[]
[]
[]
[]
[]
[]
[null,null,null,null,null,null,null,null,null,null," "]

{"sheet":"Übersetzung","index":14,"n_rows":206,"n_cols":5,"rows_kept":206,"cut":false,"hidden":false,"merged":[]}
[null,"D","F","N"]
[1,"Profile","Profilés","Profielen"]
[2,"Dimension in mm Stärke x Breite","Dimensions en mm épaisseur x largeur","Afmeting in mm dikte x breedte"]
[3,"Länge\n(m)","Longueur\n(m)","Lengte\n(m)"]
[4,"VPE Bund/Paket","Unité d'emballage par faisceau/paquet","Verpakking per bundel/pakket"]
[5,"Kommissions-preis (weniger als ein Paket)","Prix pour petite quantité (moins qu'un paquet)","Prijs kleine hoeveelheid (minder dan één pakket)"]
[6,"Anbruchpreis (Restmenge, die über ganze Pakete hinausgeht)","Prix de paquet entamé (quantité restante au-delà de paquets entiers)","Prijs aangebroken pakket (hoeveelheid groter dan één pak of meer paketten)"]
[7,"Paketpreis","Prix par paquet ","Pakketprijs"]
[8,"Empf. VK-Preis inkl. MwSt.","Prix de vente recommandé tvac","Aanbevolen verkoopprijs incl. btw."]
[9,"Qualität: PREMIUM","Qualité: PREMIUM","Kwaliteit: PREMIUM"]
[10,"Trapez","Trapèze","Trapezium"]
[11,"Glattkant","Bords droits","Gladde Kant"]
[12,"Deckleiste","Cache","Deklijst"]
[14,"Nimbus","Nimbus","Nimbus"]
[15,"- Standardlängen von 3,0m bis 6,0m in Schritten von 10cm!\n- Keine Kurzlängen wie bei der Qualität \"Selekt\", dafür Mehrlieferungen bis 5% mitgehend!\n- Alle Dimensionen wie bei der Qualität \"Selekt\" möglich, außer 21x170mm und 40x170mm.","- Longueurs standards de 3,0m à 6,0m en pas de 10cm!\n- Pas de longueurs courtes comme pour la qualité \"select\", mais jusqu'à 5% de surplus possible!\n- Toutes les dimensions comme pour la qualité \"select\", sauf 21x170mm et 40x170mm. ","- Standaardlengtes van 3,0m tot 6,0m in stappen van 10cm!\n- Geen kortlengtes zoals bij de kwaliteit \"select\", maar tot 5% meerlevering mogelijk!\n- Alle afmetingen zoals bij de kwallteit \"select\", behalve 21x170mm en 40x170mm."]
[16,"Rhombus 15° ","Losange 15° ","Ruit 15°"]
[17]
[18,"Beistreichfarben","Peinture","Verf"]
[19,"Zum Streichen von Schnittkanten und zum vollflächigen Überarbeiten (Reichweite für Schnittkanten ca. 70m² Giebelbekleidung pro Liter)","Pour enduire les chants de coupe et pour l'application en surface (rendement pour chants de coupe env. 70m² de façade par litre)","Om de snijkanten en volledige oppervlaktes te behandelen (verbruik voor snijkanten ±70m² gevelbekleding per liter)"]
[20,"Gebinde 1L ","Boîte 1L","Blik 1 l"]
[21,"Gebinde 5L","Boîte 5L","Blik 5 l"]
[22,"Empf. VK, 1l inkl. MwSt.","Prix de vente recommandé, 1L tvac","Aanbevolen verkoopprijs 1l, incl. Btw"]
[23,"Empf. VK, 5l inkl. MwSt.","Prix de vente recommandé, 5L tvac","Aanbevolen verkoopprijs 5l, incl. Btw"]
[24,"Lagerware","Marchandise de stock","Magazijngoederen"]
[25,"LAGERWARE (nur in den Farbtönen - Kristallgrau / Lavagrau / Gletschergrau)\n- Bei der Qualität \"Selekt\" sind Verschnittlängen (200/250/300/350 cm) bis 10 % mitgehend!\n- Für Lieferungen ohne Kurzlängen berechnen wir 7% Aufpreis. \n- Bitte bei Bestellung angeben, ob Bestellmenge zzgl. oder inkl. Verschnitt ist.\n  Wenn Sie nichts angeben, liefern wir inkl. Verschnittlängen.\n- Lieferzeit: ca. 2 Wochen (Genaue Lieferzeit auf Anfrage!)","MARCHANDISE DE STOCK (uniquement dans les teintes gris cristal / gris lave / gris glacier)\n- Pour la qualité \"Select\" des longueurs courtes (200/250/300/350 cm) sont tolérées jusqu'à 10 %!\n- Pour des livraisons sans longueurs courtes nous facturons un supplément de 7%!\n- Prière d'indiquer si votre quantité commandée est hors longueurs courtes ou si elles sont comprises. \n  Si vous ne spécifiez rien, nous partons du principe que les longueurs courtes sont comprises.  \n- Délai de livraison: env. 2 semaines (Un délai précis peut être communiquer sur demande!) ","MAGAZIJNGOEDEREN (alleen in de kleuren kristal-, lava- en gletsjergrijs)\n- Voor de kwaliteit \"select\" zijn kortlengtes (200/250/300/350cm) tot 10% getolereerd.\n- Voor leveringen zonder kortlengten berekenen wij 7% meerkosten!\n- Gelieve alltijd aan te geven of de bestelde hoeveelheid inclusief of zonder kortlengtes is. \n  Als er niets aangegeven wordt, zullen wij uw hoeveelheden altijd inclusief kortlengtes leveren.\n- Levertijd: ± 2 weken (Een precieze leveringstermijn op aanvraag!)"]
[26,"22 x 142\nDeckmaß: 125 mm","22 x 142\ncouverture: 125 mm","22 x 142\ndekmaat: 125 mm"]
[27,"21 x 92\nDeckmaß: 80 mm","21 x 92\ncouverture: 80 mm","21 x 92\ndekmaat: 80 mm"]
[28,"AUF BESTELLUNG","Sur commande","Op bestelling"]
[29,"ab 50 m² in den Farbtönen Kristallgrau/Lavagrau/Gletschergrau/Tundragrau/Basaltgrau/Schiefergrau     ","A partir de 50 m² dans les couleures Gris Lave, Gris Glacier, Gris Cristal, Gris Basalte, Gris Ardoise, Gris Toundra     ","Vanaf 50 m² in de kleuren lavagrijs, gletsjergrijs, kristalgrijs, basaltgrijs, leisteengrijs, toendragrijs"]
[30,"Keilgezinkt","Aboutés micro dentures","Gevingerlast"]
[31,"Doppelrhombus 15° Schräge","Double Losange 15°","Dubbele Ruit 15°"]
[32]
[33,"Kommissions- preis 50 -  150m² in €","Prix de commission jusqu'à 150m² en €/surface utile","Prijs tot 150m² in €/nuttige breedte"]
[34,"*Schindeln: Premiumqualität bei Überlappung 50%","Bardeaux: qualité Premium pour chevauchement 50%","Shingles: premium kwaliteit bij overlapping van 50%"]
[35,"Zum Streichen von Schnittkanten. Für Farbtöne: Lavagrau, Gletschergrau, Kristallgrau, Basaltgrau, Tundragrau, Schiefergrau","Pour enduire les chants de coupe. Pour les teintes: Gris Lave, Gris Glacier, Gris Cristal, Gris Basalte, Gris Toundra, Gris Ardoise","Om de snijkanten te behandelen. Voor de kleuren: lavagrijs, gletsjergrijs, kristalgrijs, basaltgrijs, toendragrijs, leisteengrijs"]
[36,"Für angrenzende Bauteile aus Fichte gehobelt, z.Bsp. Sichtgebälk, Schalung, usw. \nImprägnierlasur 3.01 für Farbtöne: Lavagrau, Gletschergrau, Kristallgrau, Basaltgrau, Tundragrau, Schiefergrau","Pour des éléments adjacents en épicéa raboté, comme p. ex. gîtage apparent.\nLasure d'imprégnation 3.01 pour les teintes: Gris Lave, Gris Glacier, Gris Cristal, Gris Basalte, Gris Toundra, Gris Ardoise","Voor aangrenzende bouwdelen uit geschaafd spar, bijv. zichtbare balken. Voor de kleuren: lavagrijs, gletsjergrijs, kristalgrijs, basaltgrijs, toendragrijs, leisteengrijs "]
[37,"Bevel","Bevel","Bevel"]
[38,"Channel Profil","Channel","Channel"]
[39,"Rhombus 20°","Losange 20°","Ruit 20°"]
[40,"Standardfarben:","Couleurs standard:","Standaardkleuren:"]
[41,"Außenecken","Cornière extérieure","Buitenhoek "]
[42,"(für eine Außenecke \nbenötigt man 2 Teile)","(il faut 2 pièces pour\n un coin extérieur)","(2 delen voor \neen buitenhoek)"]
[43,"Eckbrett","Planche cornière ","Hoekprofiel "]
[44,"Innenecke","Cornière intérieure","Binnenhoek "]
[45,"Edelstahlnägel","Clous inox","Nagels Inox"]
[46,"Nägel farbig beschichtet mit Hammerschutz","Clous inox; clou à revêtement de couleur et protection d'impact","Nagels zijn van roestvrij staal, gerild en voorzien van een bolle kop met poedercoating in kleur."]
[47,"Original Cape Cod Farbe*","Couleur originale Cape Cod*","Originele CapeCod-Verf*"]
[48,"Händlerpreisliste 2018","Tarifs distributeurs 2018","Prijslijst handelaars 2018"]
[49,"Kombigrund*","Couche de fond*","Grondlaag*","OK"]
[50,"Fungizider Isoliergrund \"deckend\" weiss - angegebener Verbrauch für 2 Anstriche","Couche de fond isolante, fongicide, opacifiante, blanche - consommation indiquée valable pour deux couches","Isolerende grondlaag, dekkend, wit - aangegeven verbruik voor twee lagen","OK"]
[51,"Beistreichfarbe","Peinture","Verf"]
[52,"Für angrenzende Bauteile wie z.B. Sichtgebälk, Fensterlaibungen etc. Nicht zum Ausbessern in der Fläche! Wasserverdünnbar Reinacrylbasis, nach CapeCod-Farbton - angegebener Verbrauch für 2 Anstriche.","Pour éléments adjacents comme p. ex. gîtage apparent, baies de fenêtre, etc. Ne convient pas pour les retouches en surface! En phase aqueuse à base d'acrylique, suivant teinte CapeCod - consommation indiquée valable pour deux couches.","Voor aangrenzende bouwdelen zoals balken, kozijnen enz. Niet geschikt voor het herstellen van de oppervlakte. Op basis van water, op zuivere acrylbasis, volgens CapeCod-tint. Verbruik: ca. 130g/m² voor 2 lagen.","OK"]
[53,"Mehrpreis, Fungizidschutz für Wetterschutzfarbe*",null,null,"OK"]
[54,null,null,null,"OK"]
[55,"Sonderfarbe nach Muster, NCS, RAL ab 50m² möglich an 335,-€ pauschal; ab 100m² ohne Aufschlag","Couleur spéciale d´après NCS, RAL ou selon échantillon à partir de 50m² pour un forfait de 335,-€; à partir de 100m² sans coûts supplémentaires","Alle kleuren mogelijk (keuze volgens RAL, NCS of stalen) vanaf 50m² voor een forfait van 335,-€; vanaf 100m² zonder bijkomende kosten"]
[56,"Lagerprogramm Europalager",null,null,"OK"]
[57,"Cape Cod Fassadenprofile mit 15 Jahren Garantie","CapeCod, façades en bois massif avec 15 ans de garantie.","CapeCod, massieve houten gevelbekleding met 15 jaar garantie!"]
[58,"Lodgepole Kiefer endbehandelt, feiner Bandsägeschnitt, KD auf ca. 12% HF, feinastig, frei von Astlöchern, losen Astknoten und anderen strukturellen Defekten.","Lodgepole Pine, traitement de finition, aspect brut de sciage, sec séchoir, noeuds fins et exempt de trous de noeuds et d'autres défauts structurels.","Lodgepole Pine, deze houtsoort heeft een fijne, rechte structuur, kleine vastgegroeide kwasten en laat zich makkelijk verwerken."]
[59,"*Lieferzeit 1 Woche per Paketdienst","*Délai de livraison: 1 semaine","*Levertijd: 1 week"]
[60,"Bevel Profil\n24 x 137 mm","Bevel\n24 x 137 mm","Bevel\n24 x 137 mm"]
[61,"Channel Profil\n18,5 x 137 mm","Channel\n18,5 x 137 mm","Channel\n18,5 x 137 mm"]
[62,"Glattkant\n18,5 x 137 mm","Bords droits\n18,5 x 137 mm","Gladde Kant\n18,5 x 137 mm"]
[63,"Glattkant\n18,5 x 178 mm","Bords droits\n18,5 x 178 mm","Gladde Kant\n18,5 x 178 mm"]
[64,"Deckleiste\n18,5 x 65 mm","Cache\n18,5 x 65 mm","Deklijst\n18,5 x 65 mm"]
[65,"Rhombusleiste\n18,5 x 65 mm","Losanges\n18,5 x 65 mm","Ruit\n18,5 x 65 mm"]
[66,"Doppelrhombus\n18,5 x 137 mm","Double Losanges\n18,5 x 137 mm","Dubbele Ruit\n18,5 x 137 mm"]
[67,"Außenecke\n32 x 108 mm","Cornière ext.\n32 x 108mm","Buitenhoek\n32 x 108 mm"]
[68,"Außenecke\n32 x 140 mm","Cornière ext.\n32 x 140 mm","Buitenhoek\n32 x 140 mm"]
[69,"Eckbrett\n35 x 86 mm","Planche cornière\n35 x 86 mm","Hoekprofiel\n35 x 86 mm"]
[70,"Innenecke\n32 x 32 mm","Cornière int.\n32 x 32 mm","Binnenhoek\n32 x 32 mm"]
[71,"Ausbesserungsfarbe","Peinture","Bijwerkverf"]
[72,"Nägel                               2,7 x 64 mm","Clous\n2,7 x 64 mm","Nagels\n 2,7 x 64 mm"]
[73,"Meerblau","Bleu océan","Zeeblauw"]
[74,"Eisblau","Bleu glacé","Ijsblauw"]
[75,"Mango","Mangue","Mango"]
[76,"Granat","Grenat","Granaat"]
[77,"Terracotta","Terracotta","Terracotta"]
[78,"Sandelholz","Bois de Santal","Sandelhout"]
[79,"Weiß","Blanc","Wit"]
[80,"Vik. Grau","Gris victorien","Victoriaans grijs"]
[81,"Kaminrot","Rouge carmin","Karmijnrood"]
[82,"Vanille","Vanille","Vanille"]
[83,"Kieselgrau","Gris silex","Kiezelgrijs"]
[84,"Schwarz","Noir","Zwart"]
[85,"26 x 142\nDeckmaß: 125 mm","26 x 142\ncouverture: 125 mm","26 x 142\ndekmaat: 125 mm"]
[86,"19,5 x 92\nDeckmaß: 80 mm","19,5 x 92\ncouverture: 80 mm","19,5 x 92\ndekmaat: 80 mm"]
[87,"24 x 140\nDeckmaß: 128 mm","24 x 140\ncouverture: 128 mm","24 x 140\ndekmaat: 128 mm"]
[88,"20 x 92\nDeckmaß: 80 mm","20 x 92\ncouverture: 80 mm","20 x 92\ndekmaat: 80 mm"]
[89,"22 x 142\nDeckmaß: 125 mm","22 x 142\ncouverture: 125 mm","22 x 142\ndekmaat: 125 mm"]
[90,"21 x 92\nDeckmaß: 80 mm","21 x 92\ncouverture 80 mm","21 x 92\ndekmaat: 80 mm"]
[91,"Qualität","Qualité","Kwaliteit"]
[92,"Doppelrhombus ","Double Losange","Dubbele Ruit"]
[93,"24 x 137\nDeckmaß: 124 mm","24 x 137\ncouverture: 124 mm","24 x 137\ndekmaat: 124 mm"]
[94,"18,5 x 137\nDeckmaß: 124 mm","18,5 x 137\ncouverture: 124 mm","18,5 x 137\ndekmaat: 124 mm"]
[95,"18,5 x 137\nDeckmaß: 124 mm","18,5 x 137\ncouverture: 124 mm","18,5 x 137\ndekmaat: 124 mm"]
[96,"Gebinde 3,75L","Boîte 3,75L","Blik 3,75 l"]
[97,"Gebinde 2,5L","Boîte 2,5L","Blik 2,5 l"]
[98,"Gebinde 20L","Boîte 20L","Blik 20 l"]
[99,"Gebinde 12L","Boîte 12L","Blik 12 l"]
[100,"Deckleiste","Cache","Deklijst "]
[101,"Rhombus 15° / Deckleiste","Losange 15° / Cache","Ruit 15° / Deklijst"]
[102,"Deckmaß = Berechnungsbreite","Largeur utile = largeur facturée","Netto dekmaat = berekeningsmaat"]
[103,"Brettbreite = Berechnungsbreite","Largeur planche = largeur facturée","Plankbreedte = berekeningsmaat"]
[104,"Leistenbreite = Berechnungsbreite","Largeur latte = largeur facturée","Breedte lijst  = berekeningsmaat"]
[105,"26 x 140\nDeckmaß: 128 mm","26 x 140\ncouverture: 128 mm","26 x 140\ndekmaat: 128 mm"]
[106,"21 x 140\nDeckmaß: 128 mm","21 x 140\ncouverture: 128 mm","21 x 140\ndekmaat: 128 mm"]
[107,"Gültig ab 1. März 2018 !","Valable à partir du 1er mars 2018 !","Geldig vanaf 1 maart 2018 !"]
[108,"Abmessungen (mm)","Dimensions (mm)","Afmetingen (mm)"]
[109,"Einzelpreis (/m)","Prix unitaire (/m)","Prijs (/m)"]
[110,"ZUBEHÖR","ACCESSOIRES","ACCESSOIRES"]
[111,"Außenecke (geschlossen) aus \neloxiertem Aluminium","Coin extérieur fermé en \nalu anodisé","Buitenhoek (gesloten) uit \ngeëloxeerd aluminium"]
[112,"Außenecke (offen) aus \neloxiertem Aluminium","Coin extérieur ouvert en \nalu anodisé","Buitenhoek (open) uit \ngeëloxeerd aluminium"]
[113,"Innenecke aus \neloxiertem Aluminium","Coin intérieur en \nalu anodisé","Binnenhoek uit \ngeëloxeerd aluminium"]
[114,"Trennprofil aus \neloxiertem Aluminium","Profil de séparation en \nalu anodisé","Separatie profiel uit \ngeëloxeerd aluminium"]
[115,"Unterkonstruktion, Weißtanne, \nRhombus, 1 Seite Bandsäge-\nschnitt, schwarz behandelt","Sous-structure, sapin-blanc,\nlosange, 1 côté aspect brut de \nsciage fin, traité noir","Onderconstructie, zilverden,\nruitvorming profiel, 1 kant zaag-\nsnede, in het zwart behandeld"]
[116,"Zubehör Nr. 1","Accessoire n° 1","Accessoire nr 1"]
[117,"Zubehör Nr. 2","Accessoire n° 2","Accessoire nr 2"]
[118,"Zubehör Nr. 3","Accessoire n° 3","Accessoire nr 3"]
[119,"Zubehör Nr. 4","Accessoire n° 4","Accessoire nr 4"]
[120,"Zubehör Nr. 5","Accessoire n° 5","Accessoire nr 5"]
[121,"Nr.","N°","Nr."]
[122,"22 x 45","22 x 45","22 x 45"]
[123,"4,0 \noder\n5,0","4,0 \nou\n5,0","4,0\nof\n5,0"]
[124,"Abschlussprofile (Länge 3,04m)","Finitions (longueur 3,04m)","Afsluitprofielen (lengte 3,04m)"]
[125,"Preisliste Verarbeiter 2018","Tarifs monteurs 2018","Prijslijst aannemers 2018"]
[126,"- A -","- A -","- A -"]
[127,"- B -","- B -","- B -"]
[128,"- C -","- C -","- C -"]
[129,"Alle Varianten, für welche keine Längen angegeben sind, können auf Kommission bestellt werden. Lieferzeit ca. 8 - 10 Wochen. ","Toutes les variantes pour lesquelles il n'y a pas de longueurs indiquées peuvent être commandées. Délai: 8 à 10 semaines!","Alle varianten waar geen lengtes aangegeven zijn kunnen besteld worden. Levertijd 8 tot 10 weken!"]
[130,"ECO GRAU","GRIS ECO","ECO GRIJS"]
[131,"ECO GRAU - Weisstanne","GRIS ECO - Sapin blanc","ECO GRIJS - Witte den"]
[132,"ECO GRAU - Fichte","GRIS ECO - Épicéa","ECO GRIJS - Spar"]
[133,"- Produktion ab 50m² (kleinere Mengen nur als Sammelauftrag möglich - Achtung: evt. längere Lieferzeit!).\n- Mindermengenzuschlag bis 100m² - Farbtöne Kristall, Lava & Gletscher: 55,- €.\n- Mindermengenzuschlag bis 100m² - Farbtöne Basalt, Tundra & Schiefer: 170,- €.\n- Verschnittlängen (200/250/300/350 cm) bis 10% mitgehend!\n- Für Lieferungen ohne Kurzlängen berechnen wir 7% Aufpreis. \n- Bitte bei Bestellung angeben, ob Bestellmenge zzgl. oder inkl. Verschnitt ist. \n  Wenn Sie nichts angeben, liefern wir inkl. Verschnittlängen!\n- Lieferzeit: 6 - 8 Wochen (Genaue Lieferzeit auf Anfrage!).","- Production à partir de 50m² (des quantités plus petites sont possibles en commandes groupées - Attention: délai de livraison evt. plus long!).\n- Supplément pour quantité réduite jusqu'à 100m² - teintes cristal, lave & glacier: 55,- €.\n- Supplément pour quantité réduite jusqu'à 100m² - teintes basalte, toundra & ardoise: 170,- €.\n- Longueurs courtes (200/250/300/350 cm) tolérées jusqu'à 10%! \n- Pour des livraisons sans longueurs courtes nous facturons un supplément de 7%!\n- Prière d'indiquer si votre quantité commandée est hors longueurs courtes ou si elles sont comprises. \n  Si vous ne spécifiez rien, nous partons du principe que les longueurs courtes sont comprises. \n- Délai de livraison: 6 - 8 semaines (Un délai précis peut être communiquer sur demande!).","- Productie vanaf 50m² (kleinere hoeveelheden alleen maar als gegroepeerde bestelling mogelijk - Let op: eventueel langere levertermijn!).\n- Toeslag voor kleine hoeveelheden tot 100m² - kleuren kristal, lava & gletsjer: 55,- €.\n- Toeslag voor kleine hoeveelheden tot 100m² - kleuren basalt, toendra & leisteen: 170,- €.\n- Kortlengtes (200/250/300/350 cm) tot 10% getolereed.\n- Voor leveringen zonder kortlengtes berekenen wij 7% meerkosten!\n- Gelieve alltijd aan te geven of de bestelde hoeveelheid inclusief of zonder kortlengtes is. \n  Als er niets aangegeven wordt, zullen wij uw hoeveelheden altijd inclusief kortlengtes leveren.\n- Levertijd 6 - 8 weken (Een precieze levertermijn op aanvraag!)."]
[134,"Eisgrau, Sandgrau, Betongrau, Steingrau, Graphitgrau","Gris Glace, Gris Sable, Gris Béton, Gris Pierre, Gris Graphite","Ijsgrijs, Zandgrijs, Betongrijs, Steengrijs, Graphitgrijs"]
[135,"Mattschwarz","Noir mat","Matzwart"]
[136,"keine Vorgabe","pas applicable","niet van toepassing"]
[137,"Es können alle Profile hergestellt werden, die technisch realisierbar sind! \nHier einige Beispiele. Die Preise finden Sie auf Seite 4.","Tous les profilés qui sont techniquement réalisables peuvent être fabriqué sur commande. \nVoici quelques examples. Vous trouverez les prix à la page 4. ","Alle profielen, die technisch mogelijk zijn, kunnen op bestelling gefabriciëert worden. \nHier enkele voorbeelden. U vindt de prijzen op pagina 4."]
[138,"Selekt","Select","Select"]
[139,"Premium","Premium","Premium"]
[140,"Keilgezinkt","Aboutés","Gevingerlast"]
[141,"Qualität: KEILGEZINKT","Qualités: ABOUTES","Kwaliteit: GEVINGERLAST"]
[142,"Große Auswahl an Profilen! Die technische Machbarkeit muss geprüft werden! Bitte fragen Sie uns!","Large choix de profilés. La faisabilité doit être vérifié! Veuillez-nous contactez!","Groote keuze aan profielen! De technische haalbaarheid moet gecontrolleerd worden! Contacteer ons!"]
[143,"Selekt Seitenware","Select planches de dosses","Select zijkantplanken"]
[144,"Selekt Rifts/Halbrifts","Select Quartier/Demi-Quartier","Select radiaal/half-radiaal"]
[145,"Unterkonstruktion, Douglasie (KD), kalibriert, einseitig abgeschrägt, 4-seitig lackiert (Tiefschwarz)","Sous-structure, douglas (KD), calibré, 1 côté oblique, laqué 4 faces (noir profond)","Onderconstructie, douglas-spar (KD), gekalibreerd en eenzijdig afgeschuind, \n4-zijdig gelakt (diep zwart)"]
[146,"ROMBOFIX - UNSICHTBARE BEFESTIGUNG","ROMBOFIX - FIXATION INVISIBLE","ROMBOFIX - ONZICHTBARE BEVESTIGING"]
[147,"ROMBOFIX MONTAGEPACK:","ROMBOFIX KIT DE MONTAGE:","ROMBOFIX MONTAGEKIT:"]
[148,"* 100 Klammern inkl. Schrauben ø4,5 x 45mm\n* 15 Ausgleichs Clips\n* 1 Bit (TX20)\n* 10 Schrauben \"BohrFix\" FB ø4,2 x 22mm\n* Montageanleitung\n* Verbrauch für Rhombusleiste 21x65mm bei einem Abstand der Unterkonstruktion von 40-50cm: ca. 38-48 St./m²\n\nBitte beachten Sie: \n- Bei dieser Sonderfräsung können bei allen Qualitäten zusätzlich bis 10% Kurzlängen anfallen! \n  Eine Bestellung inklusive Kurzlängen ist nur in der Qualität \"Selekt\" möglich.\n\n- Erhältlich in den Längen 4,00m, 4,50m und 5,00m, je nach Verfügbarkeit!","* 100 attaches, vis ø4,5 x 45mm inclus\n* 15 cales d'égalisation\n* 1 Bit (TX20)\n* 10 vis \"BohrFix\" FB ø4,2 x 22mm\n* Notice de montage\n* Consommation sur base d'un entre-axe de la sous-structure de 40-50cm et le profil losange 21x65mm env. 38-48 pce./m²\n\nAttention: \n- Pour des profils avec fraisage spécial RomboFix il y peut y avoir pour toutes les qualités jusqu'à 10% de longueurs courtes \n  en supplément! Une commande avec longueurs courtes comprises est uniquement possible pour la qualité \"select\"!\n\n- Livrable en longueurs de 4,00m, 4,50m et 5,00m suivant disponibilité!","* 100 bevestigingsclips inclusief schroeven ø4,5 x 45mm\n* 15 egalisatieclips\n* 1 Bit (TX20)\n* 10 schroeven \"BohrFix\" FB ø4,2 x 22mm\n* Montagehandleiding\n* Verbruik op basis van een asafstand van de onderconstructie van 40-50cm en het profiel ruit 21x65mm ca. 38-48 st./m²\n\nOpgelet: \n- Voor de profielen met een speciaal RomboFix-frezen kunnen er voor iedere kwaliteit tot 10% kortlengtes bijkomen! \n  Een bestelling inclusief kortlengtes is alleen voor de kwaliteit \"select\" mogelijk!\n\n- Leverbaar in lengten van 4,00m, 4,50m en 5,00m volgens beschikbaarheid!"]
[149,"Packpreis ","Prix kit de montage","Prijs montagekit"]
[150,"Packpreis ab 25 Pack ","Prix kit de montage à partir de 25 pièces","Prijs vanaf 25 montagekits"]
[151,"Zuschlag auf Rhombusleiste für Sonderfräsung: 0,34 €/lfm","Supplément pour rainure sur profil losange (fixation invisible): 0,34 €/mct","Toeslag voor het frezen van een groef op profiel ruit: 0,34 €/m"]
[152,"Seite: ","page:","pagina:"]
[153,"INHALT","CONTENU","INHOUD"]
[154,"INFORMATIONEN","INFORMATIONS","INFORMATIES"]
[155,"KONTAKT","CONTACT","CONTACT"]
[156,"Alle Preise in dieser Preisliste sind empfohlene VK-Preise bei Verkauf an den Verarbeiter. Sie verstehen sich zuzüglich der gesetzlichen MwSt.! Als Händler gewähren wir Ihnen auf diese Preise (außer Transportkosten) folgende Rabatte:\n- Profile, Unterkonstruktion, Rhombofix und Zuschläge: 15%. \n- Beistreichfarbe, Schrauben und Alu-Profile: 25%. ","Tous les prix de ce tarif sont des prix de vente conseillés en cas de vente vers un monteur. Ils s'entendent hors TVA! En tant que distributeur, nous vous accordons sur ces prix (sauf frais de transport) les remises suivantes:\n- Profilés, sous-structure, RhomboFix et supplément: 15%\n- Peinture, vis et profilés alu: 25%","Alle prijzen in deze prijslijst zijn aanbevolen verkoopprijzen bij verkoop aan de aannemer. Ze zijn zonder btw! Als handelaar verlenen wij u op deze prijzen (zonder transportkosten) volgende kortingen:\n- Profielen, onderconstructie, RhomboFix en meerkosten: 15%\n- Verf, schroeven en alu-profielen: 25%"]
[157,"Pauschal 175,- € \nAb einem netto Warenwert von 1.800,- €: Lieferung frei Haus!","Forfait: 175,- €\nA partir d'une valeur net de marchandise de 1.800,- €: livraison franco vos ateliers!","Forfait: 175,- €\nVanaf een netto goederenbedrag van 1.800,- € franco levering! "]
[158,"Zubehör (Beistreichfarbe, Schrauben, usw.) bis 19 kg\n- BELGIEN: 10,- €\n- LUXEMBURG, NIEDERLANDE & FRANKREICH: 15,- €\nLiefrezeit: 2 bis 3 Arbeitstage!","Accessoires (peinture pour traitement des champs de coupe, vis, etc.) jusqu'à 19 kg\n- BELGIQUE:  10,- €\n- LUXEMBOURG, PAYSBAS & FRANCE: 15,- €\nDélai de livraison: 2 à 3 jours ouvrables!","Accessoires (kleur voor het behandelen van de snijkanten, schroeven, enz.) tot 19 kg\n- BELGIË:  10,- €\n- LUXEMBURG, NEDERLAND & FRANKRIJK: 15,- €\nLevertijd: 2 tot 3 werkdagen!"]
[159,"Siehe die jeweiligen Preislisten der verschiedenen Produktgruppen! Achtung: Auch Lagerware kann je nach Auftragslage kurzzeitig vergriffen sein! Einen genauen Liefertermin teilen wir Ihnen gerne auf Anfrage mit!","Voir les listes de prix des différents groupes de produits! Attention: La marchandise de stock peut être non livrable pendant une courte durée en fonction du nombre des commandes en cours! Pour connaître le délai exact, n'hésitez pas à nous contacter!","Zie de verschillende prijslijsten van de verschillende productseries! Opgelet: afhankelijk van de ordersituatie kunnen ook magazijngoederen gedurende een korte periode niet leverbaar zijn! Aarzel niet ons te contacteren voor een precieze levertermijn! "]
[160,"Preise:","Prix:","Prijzen:"]
[161,"Transportkosten: ","Frais de transport: ","Transportkosten: "]
[162,"Paketversand:","Envoi de colis:","Pakketverzending:"]
[163,"Lieferzeiten: ","Délai de livraison: ","Levertijd: "]
[164,"Lieferzeit: 6 - 8 Wochen","Délai de livraison: 6 - 8 semaines","Levertijd: 6 - 8 weken"]
[165,"Farbtöne:","Teintes:","Kleuren:"]
[166,"Bitte achten Sie darauf, immer die komplett benötigte Menge Ihres Projektes auf einmal zu bestellen! Holz ist ein natürlicher und lebendiger Rohstoff. Unterschiede in der Struktur sind naturgegeben. Bei späteren Nachlieferungen kann es deshalb zu Farbunterschieden kommen! Wir möchten darauf hinweisen, dass diese keinen Reklamationsgrund darstellen!\n\nAufgrund einer neuen EU-Verordnung wurde das für die Behandlung verwendete Öl leicht modifiziert. Leichte Farbtonunterschiede zu alten Variante (vor 09/2015) sind möglich. Bitte bei Nachbestellungen zu älteren Lieferungen bitte immer unsere Auftragsbestätigungs-Nr angeben. Wir können immer noch in der alten Variante produzieren lassen.","Prière de bien vouloir acheter toujours la quantité totale dont vous avez besoin pour votre projet! Le bois est une matière première naturelle et vivante. Des différences dans la structure du bois sont naturelles. Lors de deux livraisons séparées, il peut y avoir des différences de couleurs! Nous vous signalons que ces différences ne pourront pas faire l'objet d'une réclamation!\n\nA cause d'une nouvelle directive européenne, le produit de traitement a été modifié légèrement. Des différences dans la teinte par rapport à l'ancienne version (avant 09/2015) sont possibles. Lors de rajout de commande à des anciennes livraisons veuillez spécifier notre numéro de confirmation de commande. Nous pouvons faire produire la marchandise dans l'ancienne teinte.","Bestel altijd de volledig benodigde hoeveelheid van het project in één keer! Hout is een natuurlijk en levend product. Verschillen in de structuur zijn normaal. Bij latere leveringen kunnen er derhalve kleurverschillen optreden! We zouden er graag op wijzen dat deze geen reden voor een klacht zijn!\n\nDoor een nieuw europees directief wordt de samenstelling van het behandelingsproduct licht veranderd. Kleine verschillen met de oude versie (vóór 09/2015) zijn mogelijk. Indien u voor een oude levering nabestelt, deel ons het nummer van onze orderbevestiging mee. Wij kunnen alltijd nog met de oude versie laten produceren."]
[167,"Stapler zum Abladen muss vorhanden sein! Wir beliefern keine Baustellen!","Un chariot élévateur doit être sur place pour le déchargement! Nous ne livrons pas sur chantier!","Een heftruck voor het afladen moet ter plaatse zijn! Wij leveren niet op de werf!"]
[168]
[169,"EcoGrau","GrisEco","EcoGrijs"]
[170,"Zubehör","Accessoires","Accessoires"]
[171,"Zubehör Nr. 6","Accessoire n° 6","Accessoire nr 6"]
[172,"Schrauben für DuraSidings, Edelstahl VA2, TX10, VPE 1000 Stück","Vis pour DuraSidings, inox A2, TX10, unité d'emballage 1000 pièces","Schroeven voor DuraSidings, inox A2, TX10, verpakking 1000 stuks"]
[173,"Wetterschutzfarbe*","Peinture de protection contre les intempéries*","Weerbestendige, beschermende coating*"]
[174,"Zum Streichen von Schnittkanten und zum vollflächigen Überarbeiten","Pour enduire les chants de coupe et pour l'application en surface ","Om de snijkanten en volledige oppervlakken te behandelen "]
[175,"*Auf Basis einer Schattenfuge von 10mm!!!","*Sur base d'un ajouré de 10mm!!!","*Op basis van een schaduwvoeg van 10mm!!"]
[176,"Bedarf (m/m²)","Consommation (m/m²)","Verbruik (m/m²)"]
[177,"Einzelpreis (ab 60 lfm)","Prix unitaire (à partir de 60 mct.)","Prijs (vanaf 60m)"]
[178,"Paketpreis (ab 330 Stück)","Prix par paquet (à partir de 330 pcs)","Pakketprijs (vanaf 330 stuks)"]
[179,"Verbrauch (m²/Liter)","Consommation (m²/litre)","Verbruik (m²/liter)"]
[180,"Alle Preise verstehen sich ab Lager Büllingen - Transportkosten auf Anfrage!","Tous les sprix s'entendent départ notre magasin à Bullange - frais de port sur demande!","Alle prijzen zijn vanaf magazijn Büllingen - Transportkosten op aanvraag!"]
[181,"Alle Preise in dieser Preisliste verstehen sich rein netto zuzüglich der gesetzlichen MwSt.!","Tous les prix de ce tarif sont des prix net hors TVA!","Alle prijzen in deze prijslijst zijn netto zonder btw! "]
[182,"Zylinder-Senkkopf, Edelstahl V2A, mit schwarzem Kopf (lackiert in RAL9004 passend zu DuraAkzent), inkl. Spezialbit, VPE 500 Stück","Vis cylindrique creuse, inox A2, tête laqué en noir (RAL9004 pour DuraAkzent), avec bit spécial, unité d'emballage 500 pièces","Cilinderschroef, inox A2, kop zwart gelakt (RAL9004 voor DuraAkzent), met speciale bit, verpakking 500 stuks"]
[183,"Zum Streichen von Schnittkanten und zum vollflächigen Überarbeiten. \nFür Farbtöne: Arizona, Nubia, Savanna","Pour enduire les chants de coupe et pour l'application en surface. \nPour les teintes: Arizona, Nubia, Savanna","Om de snijkanten en volledige oppervlakken te behandelen. \nVoor de kleuren: Arizona, Nubia, Savanna"]
[184,"Für angrenzende Bauteile aus Fichte gehobelt, z.Bsp. Sichtgebälk, Schalung, usw. \nImprägnierlasur 3.01 für Farbtöne: Arizona, Nubia, Savanna","Pour des éléments voisins en épicéa raboté, comme p. ex. gîtage apparent etc.\nLasure d'imprégnation 3.01 pour les teintes: Arizona, Nubia, Savanna","Voor aangrenzende bouwdelen uit geschaafde spar, bijv. zichtbare balken. \nVoor de kleuren: Arizona, Nubia, Savanna"]
[185,"v01","v01","v01"]
[186,"Zubehör Nr. 7","Accessoire n° 7","Accessoire nr 7"]
[187,"Zubehör Nr. 8","Accessoire n° 8","Accessoire nr 8"]
[188,"Zubehör Nr. 9","Accessoire n° 9","Accessoire nr 9"]
[189]
[190,"- Preisbasis: Qualität \"Selekt\" + 5% Aufschlag.","- Prix de base: Qualité \"select\" + 5% de supplément.","- Prijsbasis: Kwaliteit \"select\" + 5% toeslag."]
[191,"- Sonderlängen (z. Bsp. 3,54m oder 5,42m) sowie Überlängen (>6,0m) auf Anfrage möglich.","- Longueurs spéciales (p. ex. 3,54m ou 5,42m) ainsi que des surlongueurs (>6,0m) sur demande.","- Speciale lengtes (bvb. 3,54m of 5,42m), alsook grotere lengtes (>6,0m) op aanvraag mogelijk. "]
[192,"Beispielprofile finden Sie auf Seite 5.","Vous trouverez des examples de profilés à la page 5.","Voorbeeldprofielen vind u op pagina 5."]
[193,"KOMMISSIONSWARE","DISPONIBLE SUR COMMANDE","OP BESTELLING BESCHIKBAAR"]
[194,"KOMMISSIONSWARE (Fortsetzung)","DISPONIBLE SUR COMMANDE (suite)","OP BESTELLING BESCHIKBAAR (voortzetting)"]
[195,"3D-Fassade","La façade 3D","3D-gevelbekleding"]
[196,"Profil","Profilé","Profiel"]
[197,"Richtpreis bei 100m²:","Prix indicatif pour 100m²:","Richtprijs voor 100m²:"]
[198,"Verbrauch pro Profil: ca. 2,8 lfm/m²","Consommation par profilé: env. 2,8 m'/m²","Verbruik per profiel: ca. 2,8 m'/m²"]
[199,"Für diese 3D-Fassade in den Serien DuraAkzent oder DuraNatur (Qualität \"Selekt\") berechnen wir 8% Aufschlag!","Pour des façades 3D en DuraAkzent ou DuraNatur (qualité \"select\") nous facturons un supplément de 8%!","Voor deze 3D-gevelbekleding in DuraAkzent of DuraNatur (kwaliteit \"select\") berekenen wij meerkosten van 8%!"]
[200,"Beispielfassade in der Qualität \"Selekt\" (3D-Fassaden sind in unendlich vielen Ausführungen möglich. Für Ihre persönliche Variante kontaktieren Sie uns!)","Examples de façades 3D en qualité \"select\" (Les façades 3D sont disponibles dans un nombre infini de variantes. Pour votre version personnelle, contactez-nous!)","Voorbeeldgevelbekleding in de kwaliteit \"select\" (3D-gevelbekleding is beschikbaar in een oneindelijk vele variaties. Voor uw persoonlijke variatie, contacteer ons!"]
[201," €/Gebinde"," €/boîtie"," €/blik"]
[202," €/Stk."," €/pc."," €/st."]
[203," Stk."," pc"," st."]
[204,"- Alle Dimensionen wie bei ECOGRAU Weisstanne in der Qualität \"BASIC\" möglich, außer 21x170mm und 40x170mm.","- Toutes les dimensions comme pour GRISECO sapin blanc en qualité \"BASIC\", sauf 21x170mm et 40x170mm. ","- Alle afmetingen zoals bij ECOGRIJS zilverden in de kwaliteit \"BASIC\" mogelijk, behalve 21x170mm en 40x170mm."]
[205,"- Preisbasis: Qualität Basic + 10% Aufschlag.","- Prix de base: Qualité \"basic\" + 10% de supplément.","- Prijsbasis: Kwaliteit \"basic\" + 10% toeslag."]
[206,"Zum Streichen von Schnittkanten und zum vollflächigen Überarbeiten. \nFür Farbton: Mattschwarz","Pour enduire les chants de coupe et pour l'application en surface. \nPour la teinte: noir mat","Om de snijkanten en volledige oppervlakken te behandelen. \nVoor de kleur: zwartmat"]

{"sheet":"Änd. nächste Preisliste","index":15,"n_rows":3,"n_cols":1,"rows_kept":3,"cut":false,"hidden":false,"merged":[]}
["Änderungen für nächste Preisliste "]
[]
["Farbnamen Gross-Kleinschreibung"]

{"sheet":"MargenVersionen","index":16,"n_rows":21,"n_cols":11,"rows_kept":21,"cut":false,"hidden":false,"merged":[[17,0,17,6],[1,0,1,6],[3,0,3,6],[6,3,6,4],[5,5,5,6],[6,5,6,6],[5,1,5,2],[5,3,5,4]]}
[]
["Preisberechnung je nach Kundengruppe"]
[]
["Einstellungen zur Preisberechnung:"]
[]
[null,"Händlerpreisliste (A)",null,"Monteurspreisliste (B)",null,"xxx (C)",null,null,null,"Anzahl Seiten:",13]
[]
[null,"Marge auf EK HABIS","Marge auf Anbruchpreis","Marge auf EK HABIS","Marge auf Anbruchpreis","Marge auf EK HABIS","Marge auf Anbruchpreis"]
[1,0.3,0.4,0.3,0.4]
[2,0.35,0.45,0.35,0.45]
[3,0.4,0.4,0.4,0.4]
[4,0.6,0.6,0.6,0.6]
[]
[]
[]
[]
[]
["Versionen der Preiliste"]
[]
[null,"v01","Erste Version vom 30.01.2018"]
[null,"v02","…wäre nächtse Version"]

{"sheet":"Qualitätskriterien","index":17,"n_rows":54,"n_cols":1,"rows_kept":54,"cut":false,"hidden":false,"merged":[]}
[]
["Qualitätskriterien"]
[]
["In der Regel gilt die Sortierung auf 95% der Ware:"]
[]
["Qualitätskriterien Weisstanne:"]
[]
["Selekt:"]
[]
["- astarme Qualität mit max. 1 kleinen Schwarzast je laufendem Meter (Äste bis max. 2 cm Größe, Schwarzäste sind eingeleimt)"]
[]
["PREMIUM:"]
[]
["- im Prinzip astfrei, vereinzelt kleine Punktäste erlaubt"]
[]
["KEILZINKUNG:"]
[]
["- PU-verleimt, Abstände der Zinkung 17 - 90 cm"]
[]
["Premium und Standard:"]
[]
["- 90% Rifts/Halbrifts (ausgenommen Glattkant)"]
["- Flügeläste auf der Sichtseite nicht erlaubt"]
["- Rückseite ohne Qualitätsanforderung, solange die Bruchfestigkeit gewährleistet ist"]
["- Defekte auf der Sichtseite nicht erlaubt"]
["- Fäule ist ausgeschlossen"]
["- Holzfeuchte bis max. 20% zulässig"]
["- Endrisse bis 10 cm erlaubt, ansonsten keine Risse zugelassen"]
["- Stirnende sauber gekappt"]
["- Wuchsgebiet zu 100% aus Schwarzwald, Allgäu und Österreich"]
[]
[]
[]
["Qualitätskriterien Douglasie:"]
[]
["- Fest verwachsene Äste bis 5 cm ohne Einschränkungen zulässig, Flügeläste bis 1/2 Brettbreite erlaubt, Kantenausbruch möglich"]
["- Splint bis zu 30% auf der Sichtseite erlaubt"]
["- Kleine Risse zulässig, durchgehende Risse nicht zulässig"]
["- Endrisse bis Brettbreite erlaubt"]
["- Wurmlöcher sind nicht zulässig"]
["- Hobelqualität: Längskanten und Sichtseite ohne Hobelfehler, im Astbereich leichte raue Stellen zulässig"]
["- Keine Harzgallen, Harzaustritt jedoch tröpfchenförmig möglich"]
["- Douglasie ist PEFC-Zertifiziert"]
[]
["Qualitätskriterien Thermo Kiefer:"]
[]
["- Fest verwachsene Äste ohne Einschränkungen erlaubt, Durchfalläste sind nicht erlaubt, ein gebrochener Flügelast pro Brett zulässig"]
["- Splint ist nicht erlaubt"]
["- Kleine Haarrisse zulässig"]
["- Endrisse sind bis zur Brettbreite erlaubt"]
["- Wurmlöcher sind nicht zulässig"]
["- Längskanten und Sichtseite ohne Hobelfehler"]
["- Harzfrei"]
["- Thermo Kiefer ist PEFC-Zertifiziert"]